Workbook

Sheet COPERTINA
A11: ASSICURAZIONI VITA - RAMO I
A13: PORTAFOGLIO DIRETTO ITALIANO (IMPRESE NAZIONALI E RAPPRESENTANZE DI IMPRESE EXTRA SEE)
A16: ELABORAZIONI STATISTICHE AL 31 DICEMBRE 2019
A22: SERVIZIO STUDI E GESTIONE DATI - DIVISIONE STUDI E ANALISI STATISTICHE

Sheet INDICE
A1: RAMO I
A2: INDICE DELLE TAVOLE STATISTICHE
A3: Tavola n. 1: premi lordi contabilizzati
A4: Tavola n. 2: distribuzione dei premi lordi contabilizzati per quartili
A5: Tavola n. 3: raccolta premi per gruppo assicurativo
A6: Tavola n. 4: composizione delle spese di gestione e loro incidenza sui premi lordi contabilizzati
A7: Tavola n. 5: serie storica degli oneri per sinistri
A8: Tavola n. 6: serie storica delle uscite per riscatto
A9: Tavola n. 7: serie storica delle riserve matematiche
A10: Tavola n. 8: sintesi del conto tecnico del ramo
A11: Tavola n. 9: indicatori del bilancio tecnico
A12: Tavola n. 10: indicatori del bilancio tecnico distinti per quartili

Sheet 1
A2: TAVOLA N. 1
A4: Ramo I - Premi lordi contabilizzati e riserve tecniche
E6: (importi in milioni di euro)
A7: Esercizio | B7: N. imprese (a) | C7: Premi | D7: Var. % su anno precedente | E7: % sul totale portafoglio rami vita | F7: Riserve tecniche
A8: 2006 | B8: 96 | C8: 3,101 | E8: 8.5
A9: 2007 | B9: 94 | C9: 3,190 | D9: 2.9 | E9: 8.6
A10: 2008 | B10: 103 | C10: 3,202 | D10: 0.4 | E10: 8.7
A11: 2014 | B11: 59 | C11: 82,578 | D11: 27.1 | E11: 74.7 | F11: 378,784
A12: 2015 | B12: 56 | C12: 77,875 | D12: -5.7 | E12: 67.7 | F12: 415,256
A13: =+A12+1 -> 2016 | B13: 53 | C13: 73,635 | D13: =+(C13-C12)/C12*100 -> -5.4 | E13: 72.0 | F13: 452,011
A14: =+A13+1 -> 2017 | B14: 50 | C14: 62,778 | D14: =+(C14-C13)/C13*100 -> -14.7 | E14: 64.9 | F14: 479,981
A15: =+A14+1 -> 2018 | B15: 45 | C15: 66,181 | D15: =+(C15-C14)/C14*100 -> 5.4 | E15: 64.9 | F15: 497,592
A16: =+A15+1 -> 2019 | B16: 46 | C16: 72,637 | D16: =+(C16-C15)/C15*100 -> 9.8 | E16: 68.5 | F16: 525,807
A17: Fonte: Regolamento ISVAP n. 22/2008, Modulo 20, ramo I

Sheet fd-2-7 (hidden)
A1: Prospetto 2
A2: FL1 | B2: ANNO | C2: NIMP | D2: PREM | E2: SPES | F2: PREC | G2: ONER | H2: I004 | I2: I007 | J2: I008 | K2: I009 | L2: I010 | M2: I011 | N2: I012 | O2: I013 | P2: I018 | Q2: I023 | R2: I024 | S2: I025 | T2: I026 | U2: I027 | V2: I028 | W2: I029 | X2: I035
A3: 1 | B3: 2007 | C3: 8 | D3: 1938768 | E3: 604365 | F3: 1920706 | G3: -984983 | H3: 742480 | I3: 238834 | J3: 49 | K3: 22542 | L3: 261424 | M3: 723275 | N3: 29103 | O3: 752377 | P3: -1013594 | Q3: 710325 | R3: 4955 | S3: 32934 | T3: 748215 | U3: 434200 | V3: 22269 | W3: 456468 | X3: 28612
A4: 1 | B4: 2008 | C4: 8 | D4: 1935353 | E4: 575689 | F4: 1938429 | G4: -1029785 | H4: 748163 | I4: 249169 | J4: 52 | K4: 23308 | L4: 272528 | M4: 734157 | N4: 27407 | O4: 761563 | P4: -1033814 | Q4: 735938 | R4: 5241 | S4: 33182 | T4: 774361 | U4: 423938 | V4: 21942 | W4: 445880 | X4: 4029
A5: 1 | B5: 2009 | C5: 8 | D5: 2008710 | E5: 596519 | F5: 2022651 | G5: -1190378 | H5: 773093 | I5: 276826 | J5: 139 | K5: 21605 | L5: 298571 | M5: 807295 | N5: 26746 | O5: 834041 | P5: -1132435 | Q5: 796945 | R5: 4623 | S5: 32488 | T5: 834056 | U5: 504840 | V5: 18906 | W5: 523745 | X5: -57943
A6: 1 | B6: 2010 | C6: 8 | D6: 1928537 | E6: 585834 | F6: 1954117 | G6: -1086492 | H6: 746899 | I6: 260908 | J6: 457 | K6: 22017 | L6: 283382 | M6: 797637 | N6: 25900 | O6: 823537 | P6: -1106279 | Q6: 785920 | R6: 4673 | S6: 33357 | T6: 823949 | U6: 514421 | V6: 16570 | W6: 530991 | X6: 19786
A7: 1 | B7: 2011 | C7: 10 | D7: 2116369 | E7: 646256 | F7: 2126156 | G7: -1144501 | H7: 830715 | I7: 273684 | J7: 605 | K7: 28635 | L7: 302924 | M7: 842718 | N7: 32052 | O7: 874770 | P7: -1172419 | Q7: 834350 | R7: 5194 | S7: 39297 | T7: 878841 | U7: 598302 | V7: 21664 | W7: 619966 | X7: 27918
A8: 1 | B8: 2012 | C8: 10 | D8: 2078908 | E8: 645363 | F8: 2079775 | G8: -1077408 | H8: 829897 | I8: 228829 | J8: 361 | K8: 26819 | L8: 256008 | M8: 804252 | N8: 30505 | O8: 834757 | P8: -1089199 | Q8: 800541 | R8: 5543 | S8: 40623 | T8: 846707 | U8: 614064 | V8: 23937 | W8: 638002 | X8: 11792
A9: 1 | B9: 2013 | C9: 7 | D9: 1883607 | E9: 604318 | F9: 1918360 | G9: -876388 | H9: 743704 | I9: 178026 | J9: 6 | K9: 27364 | L9: 205397 | M9: 714725 | N9: 30622 | O9: 745347 | P9: -950522 | Q9: 681778 | R9: 4645 | S9: 39138 | T9: 725562 | U9: 523527 | V9: 22246 | W9: 545774 | X9: 74134
A10: 1 | B10: 2014 | C10: 6 | D10: 1972072 | E10: 653519 | F10: 1976379 | G10: -940045 | H10: 782881 | I10: 185532 | J10: 5 | K10: 30380 | L10: 215918 | M10: 733871 | N10: 33729 | O10: 767600 | P10: -983297 | Q10: 671724 | R10: 4827 | S10: 42194 | T10: 718745 | U10: 562715 | V10: 23233 | W10: 585948 | X10: 43252
A11: 2 | B11: 2007 | C11: 8 | D11: 580263 | E11: 237473 | F11: 576635 | G11: -248087 | H11: 232402 | I11: 58856 | J11: 42 | K11: 6832 | L11: 65730 | M11: 191220 | N11: 13290 | O11: 204510 | P11: -270138 | Q11: 176634 | R11: 1422 | S11: 12336 | T11: 190392 | U11: 109708 | V11: 6217 | W11: 115925 | X11: 22051
A12: 2 | B12: 2008 | C12: 6 | D12: 488861 | E12: 175147 | F12: 479405 | G12: -245643 | H12: 210972 | I12: 57122 | J12: 0 | K12: 5783 | L12: 62905 | M12: 175324 | N12: 11041 | O12: 186365 | P12: -249089 | Q12: 171377 | R12: 1173 | S12: 10571 | T12: 183121 | U12: 97718 | V12: 5254 | W12: 102972 | X12: 3446
A13: 2 | B13: 2009 | C13: 6 | D13: 477394 | E13: 161398 | F13: 477253 | G13: -261900 | H13: 228749 | I13: 62575 | J13: 3 | K13: 7286 | L13: 69864 | M13: 188778 | N13: 12195 | O13: 200973 | P13: -270763 | Q13: 175980 | R13: 1082 | S13: 11010 | T13: 188072 | U13: 103030 | V13: 6236 | W13: 109266 | X13: 8863
A14: 2 | B14: 2010 | C14: 5 | D14: 380828 | E14: 130321 | F14: 382942 | G14: -224602 | H14: 191600 | I14: 49583 | J14: 0 | K14: 5598 | L14: 55181 | M14: 157542 | N14: 8894 | O14: 166436 | P14: -221551 | Q14: 149587 | R14: 910 | S14: 9309 | T14: 159806 | U14: 92039 | V14: 5000 | W14: 97039 | X14: -3051
A15: 2 | B15: 2011 | C15: 2 | D15: 148626 | E15: 50541 | F15: 146471 | G15: -80499 | H15: 80950 | I15: 16683 | J15: 0 | K15: 2530 | L15: 19213 | M15: 56206 | N15: 2697 | O15: 58903 | P15: -78115 | Q15: 62586 | R15: 439 | S15: 3616 | T15: 66641 | U15: 41269 | V15: 2056 | W15: 43325 | X15: -2384
A16: 2 | B16: 2012 | C16: 3 | D16: 202374 | E16: 69908 | F16: 202407 | G16: -92696 | H16: 98445 | I16: 22923 | J16: 0 | K16: 3409 | L16: 26332 | M16: 66683 | N16: 3309 | O16: 69992 | P16: -96322 | Q16: 67629 | R16: 568 | S16: 4905 | T16: 73102 | U16: 41680 | V16: 3896 | W16: 45576 | X16: 3626
A17: 2 | B17: 2013 | C17: 3 | D17: 257802 | E17: 87916 | F17: 256057 | G17: -95168 | H17: 125962 | I17: 27026 | J17: 1 | K17: 3605 | L17: 30632 | M17: 73201 | N17: 3933 | O17: 77134 | P17: -107765 | Q17: 76438 | R17: 332 | S17: 4913 | T17: 81683 | U17: 56067 | V17: 3529 | W17: 59596 | X17: 12597
A18: 2 | B18: 2014 | C18: 2 | D18: 166659 | E18: 61208 | F18: 165480 | G18: -75870 | H18: 87022 | I18: 17189 | J18: 2 | K18: 2629 | L18: 19820 | M18: 54680 | N18: 2757 | O18: 57437 | P18: -77251 | Q18: 47313 | R18: 318 | S18: 3193 | T18: 50824 | U18: 28960 | V18: 1724 | W18: 30684 | X18: 1381
A19: 3 | B19: 2007 | C19: 25 | D19: 556692 | E19: 204787 | F19: 526725 | G19: -242356 | H19: 295747 | I19: 56884 | J19: 114 | K19: 5923 | L19: 62920 | M19: 196663 | N19: 12897 | O19: 209561 | P19: -272357 | Q19: 161076 | R19: 1117 | S19: 11439 | T19: 173633 | U19: 123905 | V19: 8866 | W19: 132771 | X19: 30001
A20: 3 | B20: 2008 | C20: 29 | D20: 655815 | E20: 263068 | F20: 648753 | G20: -257946 | H20: 324925 | I20: 65814 | J20: 262 | K20: 6405 | L20: 72481 | M20: 207583 | N20: 13046 | O20: 220629 | P20: -293090 | Q20: 170535 | R20: 1580 | S20: 12729 | T20: 184844 | U20: 137468 | V20: 9167 | W20: 146634 | X20: 35144
A21: 3 | B21: 2009 | C21: 27 | D21: 574123 | E21: 227624 | F21: 557571 | G21: -215429 | H21: 290938 | I21: 50918 | J21: 14 | K21: 5047 | L21: 55979 | M21: 182635 | N21: 11606 | O21: 194240 | P21: -250202 | Q21: 142983 | R21: 975 | S21: 10164 | T21: 154122 | U21: 120233 | V21: 7145 | W21: 127378 | X21: 34773
A22: 3 | B22: 2010 | C22: 27 | D22: 619359 | E22: 245282 | F22: 585185 | G22: -220878 | H22: 326375 | I22: 49203 | J22: 31 | K22: 4360 | L22: 53593 | M22: 184942 | N22: 11320 | O22: 196262 | P22: -249841 | Q22: 140545 | R22: 1309 | S22: 10353 | T22: 152207 | U22: 132330 | V22: 7233 | W22: 139563 | X22: 28963
A23: 3 | B23: 2011 | C23: 27 | D23: 643569 | E23: 239242 | F23: 602036 | G23: -225015 | H23: 382394 | I23: 50084 | J23: 189 | K23: 5779 | L23: 56052 | M23: 185487 | N23: 11072 | O23: 196559 | P23: -256766 | Q23: 144869 | R23: 1169 | S23: 10563 | T23: 156601 | U23: 131669 | V23: 8381 | W23: 140050 | X23: 31751
A24: 3 | B24: 2012 | C24: 25 | D24: 575304 | E24: 211453 | F24: 550377 | G24: -202078 | H24: 378417 | I24: 43778 | J24: 1 | K24: 4973 | L24: 48752 | M24: 173672 | N24: 10002 | O24: 183674 | P24: -232395 | Q24: 134637 | R24: 1113 | S24: 9549 | T24: 145299 | U24: 131130 | V24: 7532 | W24: 138662 | X24: 30317
A25: 3 | B25: 2013 | C25: 27 | D25: 684171 | E25: 249685 | F25: 659000 | G25: -248120 | H25: 406467 | I25: 55952 | J25: 403 | K25: 5806 | L25: 62161 | M25: 211162 | N25: 11108 | O25: 222270 | P25: -282070 | Q25: 164139 | R25: 1467 | S25: 11831 | T25: 177437 | U25: 188072 | V25: 7974 | W25: 196046 | X25: 33950
A26: 3 | B26: 2014 | C26: 27 | D26: 710287 | E26: 259007 | F26: 690433 | G26: -241496 | H26: 429533 | I26: 51683 | J26: 463 | K26: 5892 | L26: 58038 | M26: 208880 | N26: 11806 | O26: 220686 | P26: -275641 | Q26: 154620 | R26: 1576 | S26: 11779 | T26: 167975 | U26: 211223 | V26: 9547 | W26: 220770 | X26: 34145
A27: 4 | B27: 2007 | C27: 53 | D27: 114600 | E27: 34609 | F27: 107283 | G27: -36503 | H27: 49973 | I27: 7504 | J27: 8 | K27: 1180 | L27: 8693 | M27: 34942 | N27: 1721 | O27: 36663 | P27: -45239 | Q27: 25142 | R27: 215 | S27: 1545 | T27: 26903 | U27: 37134 | V27: 1358 | W27: 38490 | X27: 8736
A28: 4 | B28: 2008 | C28: 60 | D28: 121766 | E28: 43329 | F28: 118129 | G28: -33663 | H28: 47650 | I28: 7097 | J28: 11 | K28: 1305 | L28: 8414 | M28: 34696 | N28: 1513 | O28: 36209 | P28: -44568 | Q28: 22199 | R28: 230 | S28: 1376 | T28: 23805 | U28: 32409 | V28: 1317 | W28: 33725 | X28: 10905
A29: 4 | B29: 2009 | C29: 55 | D29: 119059 | E29: 48429 | F29: 106527 | G29: -31065 | H29: 52708 | I29: 5601 | J29: 10 | K29: 1057 | L29: 6669 | M29: 30063 | N29: 1329 | O29: 31393 | P29: -38053 | Q29: 20360 | R29: 358 | S29: 1333 | T29: 22052 | U29: 26747 | V29: 1164 | W29: 27912 | X29: 6988
A30: 4 | B30: 2010 | C30: 50 | D30: 118586 | E30: 44589 | F30: 107752 | G30: -30293 | H30: 57932 | I30: 7153 | J30: 0 | K30: 1303 | L30: 8456 | M30: 28171 | N30: 1385 | O30: 29557 | P30: -37962 | Q30: 18834 | R30: 84 | S30: 1136 | T30: 20054 | U30: 22202 | V30: 1146 | W30: 23349 | X30: 7670
A31: 4 | B31: 2011 | C31: 48 | D31: 127601 | E31: 56442 | F31: 114667 | G31: -30326 | H31: 75590 | I31: 6496 | J31: 1 | K31: 1192 | L31: 7687 | M31: 27889 | N31: 1141 | O31: 29030 | P31: -36680 | Q31: 16252 | R31: 76 | S31: 1001 | T31: 17330 | U31: 22533 | V31: 1020 | W31: 23553 | X31: 6354
A32: 4 | B32: 2012 | C32: 48 | D32: 119597 | E32: 50932 | F32: 113430 | G32: -25298 | H32: 79209 | I32: 5925 | J32: 1 | K32: 1062 | L32: 6988 | M32: 26300 | N32: 1217 | O32: 27516 | P32: -34497 | Q32: 18265 | R32: 58 | S32: 1000 | T32: 19324 | U32: 20005 | V32: 885 | W32: 20890 | X32: 9200
A33: 4 | B33: 2013 | C33: 45 | D33: 131993 | E33: 55935 | F33: 125912 | G33: -39847 | H33: 106786 | I33: 8006 | J33: 29 | K33: 1274 | L33: 9310 | M33: 34875 | N33: 1331 | O33: 36207 | P33: -45497 | Q33: 21123 | R33: 195 | S33: 1157 | T33: 22475 | U33: 24770 | V33: 1024 | W33: 25794 | X33: 5648
A34: 4 | B34: 2014 | C34: 39 | D34: 124534 | E34: 51945 | F34: 122523 | G34: -35815 | H34: 103537 | I34: 7597 | J34: 15 | K34: 1209 | L34: 8821 | M34: 35784 | N34: 1848 | O34: 37631 | P34: -46738 | Q34: 20081 | R34: 199 | S34: 1149 | T34: 21428 | U34: 23260 | V34: 936 | W34: 24196 | X34: 10923
A35: 9 | B35: 2007 | C35: 94 | D35: 3190323 | E35: 1081234 | F35: 0 | G35: 0 | H35: 0 | I35: 0 | J35: 0 | K35: 0 | L35: 0 | M35: 0 | N35: 0 | O35: 0 | P35: 0 | Q35: 0 | R35: 0 | S35: 0 | T35: 0 | U35: 0 | V35: 0 | W35: 0 | X35: 0
A36: 9 | B36: 2008 | C36: 103 | D36: 3201795 | E36: 1057233 | F36: 0 | G36: 0 | H36: 0 | I36: 0 | J36: 0 | K36: 0 | L36: 0 | M36: 0 | N36: 0 | O36: 0 | P36: 0 | Q36: 0 | R36: 0 | S36: 0 | T36: 0 | U36: 0 | V36: 0 | W36: 0 | X36: 0
A37: 9 | B37: 2009 | C37: 96 | D37: 3179286 | E37: 1033970 | F37: 0 | G37: 0 | H37: 0 | I37: 0 | J37: 0 | K37: 0 | L37: 0 | M37: 0 | N37: 0 | O37: 0 | P37: 0 | Q37: 0 | R37: 0 | S37: 0 | T37: 0 | U37: 0 | V37: 0 | W37: 0 | X37: 0
A38: 9 | B38: 2010 | C38: 90 | D38: 3047310 | E38: 1006026 | F38: 0 | G38: 0 | H38: 0 | I38: 0 | J38: 0 | K38: 0 | L38: 0 | M38: 0 | N38: 0 | O38: 0 | P38: 0 | Q38: 0 | R38: 0 | S38: 0 | T38: 0 | U38: 0 | V38: 0 | W38: 0 | X38: 0
A39: 9 | B39: 2011 | C39: 87 | D39: 3036165 | E39: 992481 | F39: 0 | G39: 0 | H39: 0 | I39: 0 | J39: 0 | K39: 0 | L39: 0 | M39: 0 | N39: 0 | O39: 0 | P39: 0 | Q39: 0 | R39: 0 | S39: 0 | T39: 0 | U39: 0 | V39: 0 | W39: 0 | X39: 0
A40: 9 | B40: 2012 | C40: 86 | D40: 2976183 | E40: 977656 | F40: 0 | G40: 0 | H40: 0 | I40: 0 | J40: 0 | K40: 0 | L40: 0 | M40: 0 | N40: 0 | O40: 0 | P40: 0 | Q40: 0 | R40: 0 | S40: 0 | T40: 0 | U40: 0 | V40: 0 | W40: 0 | X40: 0
A41: 9 | B41: 2013 | C41: 82 | D41: 2957573 | E41: 997854 | F41: 0 | G41: 0 | H41: 0 | I41: 0 | J41: 0 | K41: 0 | L41: 0 | M41: 0 | N41: 0 | O41: 0 | P41: 0 | Q41: 0 | R41: 0 | S41: 0 | T41: 0 | U41: 0 | V41: 0 | W41: 0 | X41: 0
A42: 9 | B42: 2014 | C42: 74 | D42: 2973552 | E42: 1025679 | F42: 0 | G42: 0 | H42: 0 | I42: 0 | J42: 0 | K42: 0 | L42: 0 | M42: 0 | N42: 0 | O42: 0 | P42: 0 | Q42: 0 | R42: 0 | S42: 0 | T42: 0 | U42: 0 | V42: 0 | W42: 0 | X42: 0

Sheet 2
A1: TAVOLA N. 2
A3: Ramo I - Distribuzione dei premi lordi contabilizzati per quartili
M6: (importi in milioni di euro)
B7: 2014 | F7: 2015 | J7: 2016
B8: N. imprese | C8: Premi | D8: Var. % su anno precedente | E8: % sul totale | F8: N. imprese | G8: Premi | H8: Var. % su anno precedente | I8: % sul totale | J8: N. imprese | K8: Premi | L8: Var. % su anno precedente | M8: % sul totale
A10: I quartile | B10: 15 | C10: 683 | D10: -1.5 | E10: =+C10/$C$24*100 -> 1.1 | F10: 14 | G10: 861 | H10: =+(G10-C10)/C10*100 -> 26.1 | I10: =+G10/$K$24*100 -> 1.2 | J10: 14 | K10: 1,440 | L10: =+(K10-G10)/G10*100 -> 67.2 | M10: =+K10/$K$24*100 -> 2.0 | O10: -1.459439872 | P10: =+(C10-Q10)/Q10*100 -> -1.459439872 | Q10: 692.663
A11: II quartile | B11: 15 | C11: 6,856 | D11: 119.9 | E11: =+C11/$C$24*100 -> 11.0 | F11: 14 | G11: 5,877 | H11: =+(G11-C11)/C11*100 -> -14.3 | I11: =+G11/$K$24*100 -> 8.1 | J11: 13 | K11: 4,984 | L11: =+(K11-G11)/G11*100 -> -15.2 | M11: =+K11/$K$24*100 -> 6.9 | O11: 119.9028464 | P11: =+(C11-Q11)/Q11*100 -> 119.9028464 | Q11: 3117.539
A12: III quartile | B12: 14 | C12: 11,008 | D12: -0.7 | E12: =+C12/$C$24*100 -> 17.7 | F12: 14 | G12: 10,726 | H12: =+(G12-C12)/C12*100 -> -2.6 | I12: =+G12/$K$24*100 -> 14.8 | J12: 13 | K12: 11,012 | L12: =+(K12-G12)/G12*100 -> 2.7 | M12: =+K12/$K$24*100 -> 15.2 | O12: -0.6538294688 | P12: -0.6538294688 | Q12: 11080.871
A13: IV quartile | B13: 15 | C13: 64,032 | D13: 27.9 | E13: =+C13/$C$24*100 -> 103.1 | F13: 14 | G13: 60,411 | H13: =+(G13-C13)/C13*100 -> -5.7 | I13: =+G13/$K$24*100 -> 83.2 | J13: 13 | K13: 56,199 | L13: =+(K13-G13)/G13*100 -> -7.0 | M13: =+K13/$K$24*100 -> 77.4 | O13: 27.88898653 | P13: 27.88898653 | Q13: 50068.302
A14: Totale | B14: =SUM(B10:B13) -> 59 | C14: =SUM(C10:C13) -> 82,578 | D14: 27.1 | E14: 100.0 | F14: =SUM(F10:F13) -> 56 | G14: =SUM(G10:G13) -> 77,875 | H14: =+(G14-C14)/C14*100 -> -5.7 | I14: =+G14/$G$24*100 -> 117.7 | J14: =SUM(J10:J13) -> 53 | K14: =SUM(K10:K13) -> 73,635 | L14: =+(K14-G14)/G14*100 -> -5.4 | M14: =+SUM(M10:M13) -> 101.4 | O14: 27.12310733 | P14: 27.12310733 | Q14: 64959.375
B17: 2017 | F17: 2018 | J17: 2019
B18: N. imprese | C18: Premi | D18: Var. % su anno precedente | E18: % sul totale | F18: N. imprese | G18: Premi | H18: Var. % su anno precedente | I18: % sul totale | J18: N. imprese | K18: Premi | L18: Var. % su anno precedente | M18: % sul totale
A20: I quartile | B20: 12 | C20: 1,091 | D20: =+(C20-K10)/K10*100 -> -24.2 | E20: =+C20/$K$24*100 -> 1.5 | F20: 12 | G20: 1,359 | H20: =+(G20-C20)/C20*100 -> 24.5 | I20: =+G20/$K$24*100 -> 1.9 | J20: 12 | K20: 1,563 | L20: =+(K20-G20)/G20*100 -> 15.0 | M20: =+K20/$K$24*100 -> 2.2 | P20: 1562.509 | Q20: =+R20/1000 -> 1562.509 | R20: 1562509
A21: II quartile | B21: 12 | C21: 4,069 | D21: =+(C21-K11)/K11*100 -> -18.3 | E21: =+C21/$K$24*100 -> 5.6 | F21: 11 | G21: 5,421 | H21: =+(G21-C21)/C21*100 -> 33.2 | I21: =+G21/$K$24*100 -> 7.5 | J21: 11 | K21: 4,944 | L21: =+(K21-G21)/G21*100 -> -8.8 | M21: =+K21/$K$24*100 -> 6.8 | P21: 4943.698 | Q21: =+R21/1000 -> 4943.698 | R21: 4943698
A22: III quartile | B22: 12 | C22: 8,427 | D22: =+(C22-K12)/K12*100 -> -23.5 | E22: =+C22/$K$24*100 -> 11.6 | F22: 11 | G22: 11,369 | H22: =+(G22-C22)/C22*100 -> 34.9 | I22: =+G22/$K$24*100 -> 15.7 | J22: 11 | K22: 13,231 | L22: =+(K22-G22)/G22*100 -> 16.4 | M22: =+K22/$K$24*100 -> 18.2 | P22: 13231.309 | Q22: =+R22/1000 -> 13231.309 | R22: 13231309
A23: IV quartile | B23: 12 | C23: 48,512 | D23: -13.7 | E23: =+C23/$K$24*100 -> 66.8 | F23: 11 | G23: 48,032 | H23: =+(G23-C23)/C23*100 -> -1.0 | I23: =+G23/$K$24*100 -> 66.1 | J23: 12 | K23: 52,900 | L23: =+(K23-G23)/G23*100 -> 10.1 | M23: =+K23/$K$24*100 -> 72.8 | P23: 52899.642 | Q23: =+R23/1000 -> 52899.642 | R23: 52899642
A24: Totale | B24: =SUM(B20:B23) -> 48 | C24: =SUM(C20:C23) -> 62,100 | D24: -16 | E24: =+SUM(E20:E23) -> 85.5 | F24: =SUM(F20:F23) -> 45 | G24: =SUM(G20:G23) -> 66,181 | H24: =+(G24-C24)/C24*100 -> 6.6 | I24: =+SUM(I20:I23) -> 91.1 | J24: =SUM(J20:J23) -> 46 | K24: =SUM(K20:K23) -> 72,637 | L24: =+(K24-G24)/G24*100 -> 9.8 | M24: =+SUM(M20:M23) -> 100.0 | P24: 72637.158 | Q24: =+R24/1000 -> 72637.158 | R24: =SUM(R20:R23) -> 72637158
A25: Fonte: Regolamento ISVAP n. 22/2008, Modulo 20, ramo I
A29: TAVOLA N. 2b
A31: Ramo I - Composizione dei premi lordi contabilizzati per quartili
M34: (importi in milioni di euro)
B35: 2014 | F35: 2015 | J35: 2016
B36: N. | C36: I Ann. | D36: Ann. Succ. | E36: Unici | F36: N. | G36: I Ann. | H36: Ann. Succ. | I36: Unici | J36: N. | K36: I Ann. | L36: Ann. Succ. | M36: Unici
B37: Imprese | F37: Imprese | J37: Imprese
A38: I quartile | B38: 15 | C38: 54 | D38: 154 | E38: 475 | F38: 14 | G38: 34 | H38: 121 | I38: 705 | J38: 14 | K38: 113 | L38: 239 | M38: 1,088
A39: II quartile | B39: 15 | C39: 481 | D39: 388 | E39: 5,986 | F39: 14 | G39: 418 | H39: 414 | I39: 5,045 | J39: 13 | K39: 217 | L39: 463 | M39: 4,305
A40: III quartile | B40: 14 | C40: 553 | D40: 809 | E40: 9,647 | F40: 14 | G40: 536 | H40: 919 | I40: 9,271 | J40: 13 | K40: 520 | L40: 843 | M40: 9,649
A41: IV quartile | B41: 15 | C41: 3,311 | D41: 8,475 | E41: 52,246 | F41: 14 | G41: 3,451 | H41: 8,024 | I41: 48,937 | J41: 13 | K41: 3,483 | L41: 9,301 | M41: 43,415
A42: Totale | B42: =SUM(B38:B41) -> 59 | C42: 4,399 | D42: 9,826 | E42: 68,353 | F42: 56 | G42: 4,439 | H42: 9,478 | I42: 63,958 | J42: 53 | K42: =SUM(K38:K41) -> 4,332 | L42: =SUM(L38:L41) -> 10,846 | M42: =SUM(M38:M41) -> 58,456
B45: 2017 | F45: 2018 | J45: 2019
B46: N. | C46: I Ann. | D46: Ann. Succ. | E46: Unici | F46: N. | G46: I Ann. | H46: Ann. Succ. | I46: Unici | J46: N. | K46: I Ann. | L46: Ann. Succ. | M46: Unici
B47: Imprese | F47: Imprese | J47: Imprese
A48: I quartile | B48: 13 | C48: 72 | D48: 282 | E48: 737 | F48: 12 | G48: 366 | H48: 281 | I48: 1,290 | J48: 12 | K48: 67 | L48: 350 | M48: 1,146
A49: II quartile | B49: 13 | C49: 228 | D49: 544 | E49: 3,771 | F49: 11 | G49: 104 | H49: 528 | I49: 4,722 | J49: 11 | K49: 543 | L49: 570 | M49: 3,831
A50: III quartile | B50: 12 | C50: 512 | D50: 841 | E50: 7,278 | F50: 11 | G50: 551 | H50: 902 | I50: 10,402 | J50: 11 | K50: 582 | L50: 617 | M50: 12,032
A51: IV quartile | B51: 12 | C51: 1,985 | D51: 9,918 | E51: 36,610 | F51: 11 | G51: 1,567 | H51: 9,911 | I51: 35,556 | J51: 12 | K51: 1,250 | L51: 9,176 | M51: 42,473
A52: Totale | B52: =SUM(B48:B51) -> 50 | C52: 2,797 | D52: 11,585 | E52: 48,396 | F52: =SUM(F48:F51) -> 45 | G52: 2,588 | H52: 11,623 | I52: 51,970 | J52: =SUM(J48:J51) -> 46 | K52: 2,442 | L52: 10,713 | M52: 59,482
A53: Fonte: Regolamento ISVAP n. 22/2008, Modulo 20, ramo I

Sheet 3
A1: TAVOLA N. 3
A2: Ramo I - Raccolta premi per gruppo assicurativo (a)
L4: (importi in milioni di euro)
A5: 2014 | E5: 2015 | I5: 2016
A6: Gruppo | B6: N. Imprese | C6: Premi | D6: quota di mercato % | E6: Gruppo | F6: N. Imprese | G6: Premi | H6: quota di mercato % | I6: Gruppo | J6: N. Imprese | K6: Premi | L6: quota di mercato %
A7: Intesa Sanpaolo | B7: 2 | C7: 16,163 | D7: 19.6 | E7: Allianz | F7: 3 | G7: 2,549 | H7: =+G7/$K$31*100 -> 3.5 | I7: Poste | J7: 1 | K7: 19,266 | L7: 26.2
A8: Poste | B8: 1 | C8: 14,713 | D8: 17.8 | E8: Generali | F8: 4 | G8: 15,622 | H8: 21.5 | I8: Generali | J8: 4 | K8: 14,801 | L8: =+K8/$K$31*100 -> 20.4
A9: Generali | B9: 4 | C9: 13,882 | D9: 16.8 | E9: Poste | F9: 1 | G9: 17,910 | H9: 24.7 | I9: Intesa Sanpaolo | J9: 2 | K9: 7,591 | L9: 10.3
A10: Unipol | B10: 2 | C10: 6,225 | D10: 7.5 | E10: Unipol | F10: 5 | G10: 5,503 | H10: 7.6 | I10: Unipol | J10: 5 | K10: 4,955 | L10: 6.7
A11: BNP Paribas | B11: 1 | C11: 3,864 | D11: 4.7 | E11: BNP Paribas | F11: 1 | G11: 2,875 | H11: 4.0 | I11: BNP Paribas | J11: 1 | K11: 2,954 | L11: 4.0
A12: Allianz | B12: 2 | C12: 3,792 | D12: 4.6 | E12: Intesa Sanpaolo | F12: 2 | G12: 11,717 | H12: 16.1 | I12: AXA | J12: 3 | K12: 2,689 | L12: 3.7
A13: Credit Agricole | B13: 1 | C13: 2,927 | D13: 3.5 | E13: Cattolica | F13: 1 | G13: 2,474 | H13: 3.2 | I13: Cattolica | J13: 4 | K13: 1,905 | L13: 2.6
A14: Cattolica | B14: 5 | C14: 2,838 | D14: 3.4 | E14: Credit Agricole | F14: 1 | G14: 2,375 | H14: 3.1 | I14: Credit Agricole | J14: 1 | K14: 2,197 | L14: 2.9
A15: Totale | B15: =SUM(B7:B14) -> 18 | C15: =SUM(C7:C14) -> 64,404 | D15: =SUM(D7:D14) -> 78.0 | E15: Totale | F15: =SUM(F7:F14) -> 18 | G15: =SUM(G7:G14) -> 61,025 | H15: =+G15/G17*100 -> 78.4 | I15: Totale | J15: =SUM(J7:J14) -> 21 | K15: =SUM(K7:K14) -> 56,358 | L15: =+K15/K17*100 -> 76.5
A16: Altre Imprese | B16: =+B17-B15 -> 46 | C16: =+C17-C15 -> 18,174 | D16: =+D17-D15 -> 22.0 | E16: Altre Imprese | F16: =+F17-F15 -> 41 | G16: =+G17-G15 -> 16,850 | H16: =+H17-H15 -> 21.6 | I16: Altre Imprese | J16: =+J17-J15 -> 32 | K16: =+K17-K15 -> 17,277 | L16: =+L17-L15 -> 23.5
A17: Totale Mercato | B17: 64 | C17: 82,578 | D17: 100.0 | E17: Totale Mercato | F17: 59 | G17: 77,875 | H17: 100.0 | I17: Totale Mercato | J17: 53 | K17: 73,635 | L17: 100.0
A19: 2017 | E19: 2018 | I19: 2019
A20: Gruppo | B20: N. Imprese | C20: Premi | D20: quota di mercato % | E20: Gruppo | F20: N. Imprese | G20: Premi | H20: quota di mercato % | I20: Gruppo | J20: N. Imprese | K20: Premi | L20: quota di mercato %
A21: Poste | B21: 1 | C21: 19,634 | D21: 31.3 | E21: Poste | F21: 1 | G21: 15,782 | H21: =+G21/$K$31*100 -> 21.7 | I21: Poste | J21: 1 | K21: 15,702 | L21: =+K21/$K$31*100 -> 21.6
A22: Generali | B22: 4 | C22: 12,759 | D22: 20.2 | E22: Generali | F22: 4 | G22: 12,802 | H22: =+G22/$K$31*100 -> 17.6 | I22: Generali | J22: 4 | K22: 14,907 | L22: 20.5
A23: Intesa Sanpaolo | B23: 2 | C23: 5,871 | D23: 9.4 | E23: Intesa Sanpaolo | F23: 2 | G23: 7,118 | H23: 9.8 | I23: Intesa Sanpaolo | J23: 2 | K23: 7,812 | L23: 10.8
A24: Aviva | B24: 4 | C24: 3,544 | D24: 5.7 | E24: Aviva | F24: 4 | G24: 5,278 | H24: 7.3 | I24: Aviva | J24: 4 | K24: 4,685 | L24: 6.4
A25: Unipol | B25: 3 | C25: 2,219 | D25: 3.5 | E25: Unipol | F25: 3 | G25: 3,437 | H25: 4.7 | I25: Unipol | J25: 3 | K25: 3,702 | L25: =+K25/$K$31*100 -> 5.1
A26: BNP Paribas | B26: 1 | C26: 2,449 | D26: 3.9 | E26: BNP Paribas | F26: 1 | G26: 2,785 | H26: 3.8 | I26: BNP Paribas | J26: 1 | K26: 3,392 | L26: 4.7
A27: Cattolica | B27: 2 | C27: 1,961 | D27: 3.1 | E27: Cattolica | F27: 6 | G27: 2,706 | H27: 3.7 | I27: Cattolica | J27: 6 | K27: 3,132 | L27: 4.3
A28: AXA | B28: 2 | C28: 1,923 | D28: 3.1 | E28: AXA | F28: 2 | G28: 2,623 | H28: 3.6 | I28: AXA | J28: 2 | K28: 3,073 | L28: 4.2
A29: Totale | B29: =SUM(B21:B28) -> 19 | C29: =SUM(C21:C28) -> 50,360 | D29: =SUM(D21:D28) -> 80.2 | E29: Totale | F29: =SUM(F21:F28) -> 23 | G29: =SUM(G21:G28) -> 52,531 | H29: 72.3 | I29: Totale | J29: =SUM(J21:J28) -> 23 | K29: =SUM(K21:K28) -> 56,405 | L29: 77.7
A30: Altre Imprese | B30: =+B31-B29 -> 31 | C30: =+C31-C29 -> 12,418 | D30: =+D31-D29 -> 19.8 | E30: Altre Imprese | F30: =+F31-F29 -> 27 | G30: =+G31-G29 -> 13,650 | H30: 18.8 | I30: Altre Imprese | J30: =+J31-J29 -> 23 | K30: =+K31-K29 -> 16,232 | L30: 22.3
A31: Totale Mercato | B31: 50 | C31: 62,778 | D31: 100.0 | E31: Totale Mercato | F31: 50 | G31: 66,181 | H31: 100.0 | I31: Totale Mercato | J31: 46 | K31: 72,637 | L31: 100.0
A33: Fonte: Regolamento ISVAP n. 22/2008, Modulo 20
A35: (a) Sono indicati i maggiori 8 gruppi per ciascun anno, incluse le imprese non appartenenti a gruppi.

Sheet fd-1-4-5-6 (hidden)
A1: Prospetto 1
A2: ANNO | B2: NIMP | C2: PREM | D2: PTOT | E2: PREC | F2: RPFR | G2: RPRC | H2: PROV | I2: SPAQ | J2: SPAM | K2: ONER | L2: ALTP | M2: SALT | N2: QUTI | O2: RISL | P2: RISN | Q2: I004 | R2: I007 | S2: I008 | T2: I009 | U2: I010 | V2: I011 | W2: I012 | X2: I013 | Y2: I018 | Z2: I023 | AA2: I024 | AB2: I025 | AC2: I026 | AD2: I027 | AE2: I028 | AF2: I029 | AG2: I035
A3: 2006 | B3: 96 | C3: 3101157 | D3: 36670980 | E3: 3042607 | F3: 1263525 | G3: 371 | H3: 748461 | I3: 108805 | J3: 146084 | K3: -1547186 | L3: -76348 | M3: 414838 | N3: 99081 | O3: 513917 | P3: 462625 | Q3: 1263896 | R3: 358313 | S3: 427 | T3: 36737 | U3: 395478 | V3: 1167424 | W3: 54835 | X3: 1222259 | Y3: -1617162 | Z3: 1024734 | AA3: 9654 | AB3: 55424 | AC3: 1089812 | AD3: 710393 | AE3: 37178 | AF3: 747571 | AG3: 69977
A4: 2007 | B4: 94 | C4: 3190323 | D4: 37143745 | E4: 3131349 | F4: 1320068 | G4: 534 | H4: 790456 | I4: 119123 | J4: 171655 | K4: -1511929 | L4: -74415 | M4: 462209 | N4: 106780 | O4: 568989 | P4: 515079 | Q4: 1320602 | R4: 362078 | S4: 213 | T4: 36477 | U4: 398767 | V4: 1146100 | W4: 57011 | X4: 1203111 | Y4: -1601328 | Z4: 1073177 | AA4: 7709 | AB4: 58254 | AC4: 1139143 | AD4: 704947 | AE4: 38710 | AF4: 743654 | AG4: 89400
A5: 2008 | B5: 103 | C5: 3201795 | D5: 37013985 | E5: 3184716 | F5: 1331173 | G5: 538 | H5: 784917 | I5: 116773 | J5: 155543 | K5: -1567037 | L5: -77717 | M5: 480236 | N5: 40858 | O5: 521094 | P5: 480697 | Q5: 1331710 | R5: 379202 | S5: 325 | T5: 36801 | U5: 416328 | V5: 1151760 | W5: 53007 | X5: 1204766 | Y5: -1620561 | Z5: 1100049 | AA5: 8224 | AB5: 57858 | AC5: 1166131 | AD5: 691533 | AE5: 37680 | AF5: 729211 | AG5: 53524
A6: 2009 | B6: 96 | C6: 3179286 | D6: 36284330 | E6: 3164002 | F6: 1344628 | G6: 858 | H6: 763044 | I6: 120989 | J6: 149937 | K6: -1698772 | L6: -72610 | M6: 359593 | N6: 122696 | O6: 482289 | P6: 459139 | Q6: 1345488 | R6: 395920 | S6: 166 | T6: 34995 | U6: 431083 | V6: 1208771 | W6: 51876 | X6: 1260647 | Y6: -1691453 | Z6: 1136268 | AA6: 7038 | AB6: 54995 | AC6: 1198302 | AD6: 754850 | AE6: 33451 | AF6: 788301 | AG6: -7319
A7: 2010 | B7: 90 | C7: 3047310 | D7: 35159125 | E7: 3029996 | F7: 1322326 | G7: 486 | H7: 750359 | I7: 121006 | J7: 134661 | K7: -1562265 | L7: -80669 | M7: 382086 | N7: 57092 | O7: 439178 | P7: 397924 | Q7: 1322806 | R7: 366847 | S7: 488 | T7: 33278 | U7: 400612 | V7: 1168292 | W7: 47499 | X7: 1215792 | Y7: -1615633 | Z7: 1094886 | AA7: 6976 | AB7: 54155 | AC7: 1156016 | AD7: 760992 | AE7: 29949 | AF7: 790942 | AG7: 53368
A8: 2011 | B8: 87 | C8: 3036165 | D8: 36029469 | E8: 2989330 | F8: 1369649 | G8: 2 | H8: 736956 | I8: 116995 | J8: 138530 | K8: -1480341 | L8: -67705 | M8: 448855 | N8: 38345 | O8: 487200 | P8: 461839 | Q8: 1369649 | R8: 346947 | S8: 795 | T8: 38136 | U8: 385876 | V8: 1112300 | W8: 46962 | X8: 1159262 | Y8: -1543980 | Z8: 1058057 | AA8: 6878 | AB8: 54477 | AC8: 1119413 | AD8: 793773 | AE8: 33121 | AF8: 826894 | AG8: 63639
A9: 2012 | B9: 86 | C9: 2976183 | D9: 35274012 | E9: 2945989 | F9: 1385967 | G9: 0 | H9: 709945 | I9: 129671 | J9: 138040 | K9: -1397480 | L9: -52587 | M9: 518499 | N9: 94370 | O9: 612869 | P9: 569135 | Q9: 1385968 | R9: 301455 | S9: 363 | T9: 36263 | U9: 338080 | V9: 1070907 | W9: 45033 | X9: 1115939 | Y9: -1452413 | Z9: 1021072 | AA9: 7282 | AB9: 56077 | AC9: 1084432 | AD9: 806879 | AE9: 36250 | AF9: 843130 | AG9: 54935
A10: 2013 | B10: 82 | C10: 2957573 | D10: 33530196 | E10: 2959329 | F10: 1382895 | G10: 26 | H10: 717229 | I10: 134833 | J10: 145792 | K10: -1259523 | L10: -65887 | M10: 636045 | N10: 67216 | O10: 703261 | P10: 642020 | Q10: 1382919 | R10: 269010 | S10: 439 | T10: 38049 | U10: 307500 | V10: 1033963 | W10: 46994 | X10: 1080958 | Y10: -1385854 | Z10: 943478 | AA10: 6639 | AB10: 57039 | AC10: 1007157 | AD10: 792436 | AE10: 34773 | AF10: 827210 | AG10: 126329
A11: 2014 | B11: 74 | C11: 2973552 | D11: 32613082 | E11: 2954815 | F11: 1402921 | G11: 62 | H11: 732150 | I11: 138094 | J11: 155435 | K11: -1293226 | L11: -63247 | M11: 572667 | N11: 71212 | O11: 643879 | P11: 612540 | Q11: 1402973 | R11: 262001 | S11: 485 | T11: 40110 | U11: 302597 | V11: 1033215 | W11: 50140 | X11: 1083354 | Y11: -1382927 | Z11: 893738 | AA11: 6920 | AB11: 58315 | AC11: 958972 | AD11: 826158 | AE11: 35440 | AF11: 861598 | AG11: 89701
A12: 
H13: =(H11/H10-1)*100 -> 2.1 | I13: =(I11/I10-1)*100 -> 2.4 | J13: =(J11/J10-1)*100 -> 6.6 | K13: =(H11+I11+J11)/(H10+I10+J10) -> 1.027884841
J15: =SUM(H10:J10) -> 997854
J16: =SUM(H11:J11) -> 1025679
A17: SENZA COMPAGNIE | J17: =(J16/J15-1)*100 -> 2.8
A19: ANNO | B19: NIMP | C19: PREM | D19: PTOT | E19: PREC | F19: RPFR | G19: RPRC | H19: PROV | I19: SPAQ | J19: SPAM | K19: ONER | L19: ALTP | M19: SALT | N19: QUTI | O19: RISL | P19: RISN | Q19: I004 | R19: I007 | S19: I008 | T19: I009 | U19: I010 | V19: I011 | W19: I012 | X19: I013 | Y19: I018 | Z19: I023 | AA19: I024 | AB19: I025 | AC19: I026 | AD19: I027 | AE19: I028 | AF19: I029 | AG19: I035
A20: 2006 | B20: 92 | C20: 3010252 | D20: 35198308 | E20: 2952825 | F20: 1226265 | G20: 371 | H20: 725862 | I20: 107348 | J20: 140015 | K20: -1505303 | L20: -73172 | M20: 400240 | N20: 96791 | O20: 497029 | P20: 445157 | Q20: 1226636 | R20: 350531 | S20: 427 | T20: 35924 | U20: 386883 | V20: 1127718 | W20: 53394 | X20: 1181112 | Y20: -1567420 | Z20: 997215 | AA20: 9445 | AB20: 53814 | AC20: 1060474 | AD20: 690114 | AE20: 36336 | AF20: 726450 | AG20: 62118
A21: 2007 | B21: 89 | C21: 3100573 | D21: 35751942 | E21: 3042833 | F21: 1284067 | G21: 534 | H21: 767852 | I21: 117364 | J21: 164807 | K21: -1476487 | L21: -73548 | M21: 441213 | N21: 104958 | O21: 546171 | P21: 494062 | Q21: 1284602 | R21: 352744 | S21: 185 | T21: 35623 | U21: 388551 | V21: 1114782 | W21: 55774 | X21: 1170556 | Y21: -1558274 | Z21: 1043856 | AA21: 7426 | AB21: 56610 | AC21: 1107895 | AD21: 682899 | AE21: 37856 | AF21: 720752 | AG21: 81788
A22: 2008 | B22: 98 | C22: 3099482 | D22: 35372622 | E22: 3086560 | F22: 1291016 | G22: 538 | H22: 758180 | I22: 114202 | J22: 147795 | K22: -1530194 | L22: -75892 | M22: 457804 | N22: 40790 | O22: 498594 | P22: 458804 | Q22: 1291553 | R22: 369038 | S22: 324 | T22: 35818 | U22: 405180 | V22: 1121472 | W22: 51873 | X22: 1173344 | Y22: -1577991 | Z22: 1071745 | AA22: 7902 | AB22: 56009 | AC22: 1135656 | AD22: 672657 | AE22: 37108 | AF22: 709763 | AG22: 47797
A23: 2009 | B23: 91 | C23: 3068725 | D23: 34450515 | E23: 3053481 | F23: 1304433 | G23: 858 | H23: 734427 | I23: 118366 | J23: 140694 | K23: -1655098 | L23: -71135 | M23: 334704 | N23: 118702 | O23: 453406 | P23: 431729 | Q23: 1305293 | R23: 385106 | S23: 163 | T23: 34108 | U23: 419379 | V23: 1178167 | W23: 50425 | X23: 1228592 | Y23: -1647705 | Z23: 1107566 | AA23: 6685 | AB23: 53275 | AC23: 1167527 | AD23: 735256 | AE23: 32939 | AF23: 768195 | AG23: -7393
A24: 2010 | B24: 89 | C24: 3046322 | D24: 35124971 | E24: 3029233 | F24: 1321871 | G24: 486 | H24: 750333 | I24: 120586 | J24: 134482 | K24: -1562125 | L24: -80665 | M24: 382092 | N24: 57092 | O24: 439184 | P24: 397930 | Q24: 1322351 | R24: 366826 | S24: 488 | T24: 33237 | U24: 400550 | V24: 1168155 | W24: 47492 | X24: 1215648 | Y24: -1615427 | Z24: 1094840 | AA24: 6976 | AB24: 54121 | AC24: 1155936 | AD24: 760954 | AE24: 29946 | AF24: 790901 | AG24: 53302
A25: 2011 | B25: 86 | C25: 3034415 | D25: 35962907 | E25: 2987995 | F25: 1368779 | G25: 2 | H25: 736897 | I25: 116551 | J25: 138342 | K25: -1479980 | L25: -67703 | M25: 448574 | N25: 38333 | O25: 486907 | P25: 461546 | Q25: 1368779 | R25: 346945 | S25: 795 | T25: 38090 | U25: 385828 | V25: 1112109 | W25: 46955 | X25: 1159064 | Y25: -1543734 | Z25: 1057888 | AA25: 6878 | AB25: 54446 | AC25: 1119213 | AD25: 793679 | AE25: 33115 | AF25: 826794 | AG25: 63754
A26: 2012 | B26: 85 | C26: 2973449 | D26: 35172404 | E26: 2943680 | F26: 1384672 | G26: 0 | H26: 709808 | I26: 129224 | J26: 137854 | K26: -1396924 | L26: -52586 | M26: 517517 | N26: 94331 | O26: 611848 | P26: 568114 | Q26: 1384673 | R26: 301455 | S26: 363 | T26: 36189 | U26: 338006 | V26: 1070386 | W26: 45020 | X26: 1115405 | Y26: -1451805 | Z26: 1021054 | AA26: 7282 | AB26: 56054 | AC26: 1084391 | AD26: 806678 | AE26: 36246 | AF26: 842925 | AG26: 54883
A27: 2013 | B27: 82 | C27: 2957573 | D27: 33530196 | E27: 2959329 | F27: 1382895 | G27: 26 | H27: 717229 | I27: 134833 | J27: 145792 | K27: -1259523 | L27: -65887 | M27: 636045 | N27: 67216 | O27: 703261 | P27: 642020 | Q27: 1382919 | R27: 269010 | S27: 439 | T27: 38049 | U27: 307500 | V27: 1033963 | W27: 46994 | X27: 1080958 | Y27: -1385854 | Z27: 943478 | AA27: 6639 | AB27: 57039 | AC27: 1007157 | AD27: 792436 | AE27: 34773 | AF27: 827210 | AG27: 126329
A28: 2014 | B28: 74 | C28: 2973552 | D28: 32613082 | E28: 2954815 | F28: 1402921 | G28: 62 | H28: 732150 | I28: 138094 | J28: 155435 | K28: -1293226 | L28: -63247 | M28: 572667 | N28: 71212 | O28: 643879 | P28: 612540 | Q28: 1402973 | R28: 262001 | S28: 485 | T28: 40110 | U28: 302597 | V28: 1033215 | W28: 50140 | X28: 1083354 | Y28: -1382927 | Z28: 893738 | AA28: 6920 | AB28: 58315 | AC28: 958972 | AD28: 826158 | AE28: 35440 | AF28: 861598 | AG28: 89701
A29: 
G30: 2013/2012 | H30: =(H28/H27-1)*100 -> 2.1 | I30: =(I28/I27-1)*100 -> 2.4 | J30: =(J28/J27-1)*100 -> 6.6
I32: 2012 | J32: =SUM(H27:J27) -> 997854
B33: 2012/2011 | J33: =SUM(H28:J28) -> 1025679
J34: =(J33/J32-1)*100 -> 2.8 | K34: TOT SPESE GESTIONE
B35: 2013/2012 | C35: =(C28/C27-1)*100 -> 0.5 | D35: 2013/2012 | E35: =(E28/E27-1)*100 -> -0.2
B36: 2013/2008 | C36: =(C28/C23-1)*100 -> -3.1 | H36: =(H28/H23-1)*100 -> -0.3 | I36: =(I28/I23-1)*100 -> 16.7 | J36: =(J28/J23-1)*100 -> 10.5
G38: 2013 | H38: =SUM(H28:J28) -> 1,025,679 | I38: =H38/1000 -> 1,026 | J38: =(I38/I39-1)*100 -> 3.2 | K38: TOT SPESE GESTIONE
G39: 2008 | H39: =SUM(H23:J23) -> 993,487 | I39: =H39/1000 -> 993 | K39: TOT SPESE GESTIONE
H46: 689136
H47: 707108 | I47: =H47/H46-1 -> 0.03
H48: 729269 | I48: =H48/H47-1 -> 0.03
H49: 739806 | I49: 0.01
H50: 721349 | I50: -0.02
H51: 731049 | I51: 0.01
H52: 716887 | I52: -0.02
H53: 709808 | I53: -0.01
H54: 717229 | I54: 0.01

Sheet 4
A3: TAVOLA N. 4
A5: Ramo I - Composizione delle spese di gestione e loro incidenza sui premi lordi contabilizzati
R7: (importi in milioni di euro)
A8: Voci di spesa | B8: Totale mercato | C8: 2001 | D8: 2002 | E8: D% 01/02 | F8: 2014 | G8: D% 02/03 | H8: 2015 | I8: Var. % 15/14* | J8: 2016 | K8: Var. % 16/15 | L8: 2017 | M8: Var. % 17/16* | N8: 2018 | O8: Var. % 18/17* | P8: 2019 | Q8: Var. % 19/18 | R8: Var. % 19/14*
A9: Provvigioni di acquisizione e incasso | B9: Importo | C9: 790 | D9: 785 | E9: -0.7 | F9: 1,914 | G9: -2.8 | H9: 1,855 | I9: =+(H9-F9)/F9*100 -> -3.1 | J9: 1,768 | K9: =+(J9-H9)/H9*100 -> -4.7 | L9: 1,632 | M9: =+(L9-J9)/J9*100 -> -7.7 | N9: 1,359 | O9: =+(N9-L9)/L9*100 -> -16.7 | P9: 1,520 | Q9: =+(P9-N9)/N9*100 -> 11.8 | R9: =+(P9-F9)/P9*100 -> -25.9
B10: Incidenza su premi (%) | C10: 24.8 | D10: 24.5 | F10: 2.3 | H10: 2.4 | J10: 2.4 | L10: 2.6 | N10: 2.3 | P10: 2.1
B11: Incidenza su spese tot. (%) | C11: 73.1 | D11: 74.2 | F11: 59.9 | H11: 59.4 | J11: 58.6 | L11: 50.5 | N11: 54.6 | P11: 53.3
A12: Altre spese di acquisizione | B12: Importo | C12: 119 | D12: 117 | E12: -2.0 | F12: 570 | G12: 3.6 | H12: 570 | I12: =+(H12-F12)/F12*100 -> -0.2 | J12: 560 | K12: =+(J12-H12)/H12*100 -> -1.7 | L12: 524 | M12: =+(L12-J12)/J12*100 -> -6.4 | N12: 516 | O12: =+(N12-L12)/L12*100 -> -1.6 | P12: 548 | Q12: =+(P12-N12)/N12*100 -> 6.2 | R12: =+(P12-F12)/P12*100 -> -4.2
B13: Incidenza su premi (%) | C13: 3.7 | D13: 3.6 | F13: 0.7 | H13: 0.7 | J13: 0.8 | L13: 0.8 | N13: 0.8 | P13: 0.7
B14: Incidenza su spese tot. (%) | C14: 11.0 | D14: 11.0 | F14: 17.9 | H14: 18.3 | J14: 18.6 | L14: 18.1 | N14: 18.2 | P14: 19.2
A15: Altre spese di amministrazione | B15: Importo | C15: 172 | D15: 156 | E15: -9.4 | F15: 709 | G15: -3.6 | H15: 696 | I15: =+(H15-F15)/F15*100 -> -1.8 | J15: 747 | K15: =+(J15-H15)/H15*100 -> 7.3 | L15: 744 | M15: =+(L15-J15)/J15*100 -> -0.4 | N15: 774 | O15: =+(N15-L15)/L15*100 -> 4.0 | P15: 784 | Q15: =+(P15-N15)/N15*100 -> 1.3 | R15: =+(P15-F15)/P15*100 -> 9.6
B16: Incidenza su premi (%) | C16: 5.4 | D16: 4.9 | F16: 0.9 | H16: 0.9 | J16: 1.0 | L16: 1.2 | N16: 1.2 | P16: 1.1
B17: Incidenza su spese tot. (%) | C17: 15.9 | D17: 14.7 | F17: 22.2 | H17: 22.3 | J17: 24.7 | L17: 25.7 | N17: 27.2 | P17: 27.5
A18: Totale spese di gestione | B18: Importo | C18: 1,081 | D18: 1,057 | E18: -2.2 | F18: 3,193 | G18: -2.2 | H18: 3,121 | I18: =+(H18-F18)/F18*100 -> -2.3 | J18: 3,075 | K18: =+(J18-H18)/H18*100 -> -1.5 | L18: 2,900 | M18: =+(L18-J18)/J18*100 -> -5.7 | N18: 2,834 | O18: =+(N18-L18)/L18*100 -> -2.3 | P18: 2,852 | Q18: =+(P18-N18)/N18*100 -> 0.6 | R18: =+(P18-F18)/P18*100 -> -12.0
B19: Incidenza su premi (%) | C19: 33.9 | D19: 33.0 | F19: =+F18/F20*100 -> 3.9 | H19: =+H18/H20*100 -> 4.0 | J19: 4.2 | L19: 4.6 | N19: 4.3 | P19: 3.9
A20: Premi | C20: 3,190 | D20: 3,202 | F20: 82,578 | H20: 77,875 | I20: =+(H20-F20)/F20*100 -> -5.7 | J20: 73,635 | K20: =+(J20-H20)/H20*100 -> -5.4 | L20: 62,778 | M20: =+(L20-J20)/J20*100 -> -14.7 | N20: 66,181 | O20: =+(N20-L20)/L20*100 -> 5.4 | P20: 72,637 | Q20: =+(P20-N20)/N20*100 -> 9.8 | R20: =+(P20-F20)/P20*100 -> -13.7
A21: Fonte: Regolamento ISVAP n. 22/2008, Modulo 20, ramo I

Sheet 5
A3: TAVOLA N. 5
A5: Ramo I - Serie storica degli oneri per sinistri
A7: (importi in milioni di euro)
A8: Classe dimensionale (a) | C8: 2014 | D8: =+C8+1 -> 2015 | E8: =+D8+1 -> 2016 | F8: =+E8+1 -> 2017 | G8: =+F8+1 -> 2018 | H8: =+G8+1 -> 2019
B9: N. Imprese | C9: 59 | D9: 56 | E9: 53 | F9: 50 | G9: 45 | H9: 46
A10: I quartile | B10: Numero di imprese | C10: 15 | D10: 14 | E10: 14 | F10: 13 | G10: 12 | H10: 12
B11: Oneri per Sinistri-Valore mediano | C11: =25011/1000 -> 25 | D11: 22 | E11: 37 | F11: 41 | G11: 51 | H11: 53
B12: Oneri per sinistri/Riserve Mat.(%) -Valore mediano | C12: 10.7 | D12: 10.7 | E12: 9.9 | F12: 14.7 | G12: 8.6 | H12: 6.9
A13: II quartile | B13: Numero di imprese | C13: 15 | D13: 14 | E13: 13 | F13: 13 | G13: 11 | H13: 11
B14: Oneri per Sinistri-Valore mediano | C14: =147013/1000 -> 147 | D14: 195 | E14: 189 | F14: 206 | G14: 318 | H14: 311
B15: Oneri per sinistri/Riserve Mat.(%) -Valore mediano | C15: 12.6 | D15: 13.1 | E15: 9.3 | F15: 7.9 | G15: 9.5 | H15: 9.1
A16: III quartile | B16: Numero di imprese | C16: 14 | D16: 14 | E16: 13 | F16: 12 | G16: 11 | H16: 11
B17: Oneri per Sinistri- Valore mediano | C17: =318388/1000 -> 318 | D17: 393 | E17: 518 | F17: 560 | G17: 677 | H17: 810
B18: Oneri per sinistri/ Riserve Mat.(%) -Valore mediano | C18: 9.7 | D18: 9.6 | E18: 10.8 | F18: 9.9 | G18: 11.5 | H18: 10.9
A19: IV quartile | B19: Numero di imprese | C19: 15 | D19: 14 | E19: 13 | F19: 12 | G19: 11 | H19: 12
B20: Oneri per Sinistri-Valore mediano | C20: =1396332/1000 -> 1,396 | D20: 1,786 | E20: 1,730 | F20: 1,763 | G20: 1,809 | H20: 1,821
B21: Oneri per sinistri/Riserve Mat.(%)-Valore mediano | C21: 10.3 | D21: 12.1 | E21: 10.1 | F21: 9.7 | G21: 9.4 | H21: 9.1
A22: Fonte: Regolamento ISVAP n. 22/2008, Modulo 20, ramo I
A23: (a) Quartili per riserva tecnica nel ramo

Sheet 6
A3: TAVOLA N. 6
A5: Ramo I - Serie storica delle uscite per riscatto
A7: (importi in milioni di euro)
A8: Classe dimensionale (a) | C8: 2014 | D8: =+C8+1 -> 2015 | E8: =+D8+1 -> 2016 | F8: =+E8+1 -> 2017 | G8: =+F8+1 -> 2018 | H8: =+G8+1 -> 2019
B9: N. Imprese | C9: 59 | D9: 56 | E9: 53 | F9: 50 | G9: 45 | H9: 46
A10: I quartile | B10: Numero di imprese | C10: 15 | D10: 14 | E10: 14 | F10: 13 | G10: 12 | H10: 12
B11: Riscatti - Valore mediano | C11: =10530/1000 -> 11 | D11: =11418/1000 -> 11 | E11: =10295/1000 -> 10 | F11: 16 | G11: 27 | H11: 36
B12: Riscatti/Riserve Mat. (%) - Valore mediano | C12: 5.4 | D12: 5.3 | E12: 3.5 | F12: 3.6 | G12: 3.8 | H12: 3.3
A13: II quartile | B13: Numero di imprese | C13: 15 | D13: 14 | E13: 13 | F13: 13 | G13: 11 | H13: 11
B14: Riscatti - Valore mediano | C14: =65297/1000 -> 65 | D14: =77401/1000 -> 77 | E14: =98175/1000 -> 98 | F14: 107 | G14: 126 | H14: 190
B15: Riscatti/Riserve Mat. (%) - Valore mediano | C15: 5.3 | D15: 5.2 | E15: 4.4 | F15: 4.4 | G15: 4.6 | H15: 5.2
A16: III quartile | B16: Numero di imprese | C16: 14 | D16: 14 | E16: 13 | F16: 12 | G16: 11 | H16: 11
B17: Riscatti - Valore mediano | C17: =173530.5/1000 -> 174 | D17: =197425/1000 -> 197 | E17: =265408/1000 -> 265 | F17: 308 | G17: 393 | H17: 429
B18: Riscatti/Riserve Mat. (%) - Valore mediano | C18: 5.5 | D18: 4.9 | E18: 5.4 | F18: 5.1 | G18: 5.1 | H18: 5.2
A19: IV quartile | B19: Numero di imprese | C19: 15 | D19: 14 | E19: 13 | F19: 12 | G19: 11 | H19: 12
B20: Riscatti - Valore mediano | C20: =786222/1000 -> 786 | D20: =1060925/1000 -> 1,061 | E20: =873035/1000 -> 873 | F20: 1,029 | G20: 1,060 | H20: 968
B21: Riscatti/Riserve Mat. (%) - Valore mediano | C21: 5.9 | D21: 8.0 | E21: 4.8 | F21: 6.1 | G21: 5.2 | H21: 4.7
A22: Fonte: Regolamento ISVAP n. 22/2008, Modulo 20, ramo I
A23: (a) Quartili per riserva tecnica nel ramo

Sheet fd-8 (hidden)
A1: PROS | B1: GENE | C1: N | D1: P | E1: N1 | F1: P1 | G1: N2 | H1: P2 | I1: N3 | J1: P3 | K1: N4 | L1: P4 | M1: N5 | N1: P5 | O1: N6 | P1: P6 | Q1: N7 | R1: P7 | S1: N8 | T1: P8
A2: 8 | B2: 2007 | C2: 0 | D2: 44.3 | E2: 0 | F2: 52.1 | G2: 0 | H2: 52.2 | I2: 0 | J2: 51.8 | K2: 0 | L2: 51.7 | M2: 0 | N2: 51.7 | O2: 0 | P2: 51.6 | Q2: 0 | R2: 51.4 | S2: 0 | T2: 51.5 | U2: 3
A3: 8 | B3: 2008 | C3: 0 | D3: 43.5 | E3: 0 | F3: 52.8 | G3: 0 | H3: 52.1 | I3: 0 | J3: 51.6 | K3: 0 | L3: 51.3 | M3: 0 | N3: 51.2 | O3: 0 | P3: 51.1 | Q3: 0 | R3: 0 | S3: 0 | T3: 51.1 | U3: 3
A4: 8 | B4: 2009 | C4: 0 | D4: 46.3 | E4: 0 | F4: 54.2 | G4: 0 | H4: 53.8 | I4: 0 | J4: 53.3 | K4: 0 | L4: 52.9 | M4: 0 | N4: 52.7 | O4: 0 | P4: 0 | Q4: 0 | R4: 0 | S4: 0 | T4: 52.7 | U4: 3
A5: 8 | B5: 2010 | C5: 0 | D5: 45.7 | E5: 0 | F5: 53.1 | G5: 0 | H5: 52.4 | I5: 0 | J5: 51.5 | K5: 0 | L5: 51.1 | M5: 0 | N5: 0 | O5: 0 | P5: 0 | Q5: 0 | R5: 0 | S5: 0 | T5: 51.1 | U5: 3
A6: 8 | B6: 2011 | C6: 0 | D6: 43.8 | E6: 0 | F6: 51.7 | G6: 0 | H6: 50.8 | I6: 0 | J6: 50.1 | K6: 0 | L6: 0 | M6: 0 | N6: 0 | O6: 0 | P6: 0 | Q6: 0 | R6: 0 | S6: 0 | T6: 50.1 | U6: 3
A7: 8 | B7: 2012 | C7: 0 | D7: 41.1 | E7: 0 | F7: 47.7 | G7: 0 | H7: 46.9 | I7: 0 | J7: 0 | K7: 0 | L7: 0 | M7: 0 | N7: 0 | O7: 0 | P7: 0 | Q7: 0 | R7: 0 | S7: 0 | T7: 47 | U7: 3
A8: 8 | B8: 2013 | C8: 0 | D8: 38.7 | E8: 0 | F8: 46.3 | G8: 0 | H8: 0 | I8: 0 | J8: 0 | K8: 0 | L8: 0 | M8: 0 | N8: 0 | O8: 0 | P8: 0 | Q8: 0 | R8: 0 | S8: 0 | T8: 47.1 | U8: 3
A9: 8 | B9: 2014 | C9: 0 | D9: 39 | E9: 0 | F9: 0 | G9: 0 | H9: 0 | I9: 0 | J9: 0 | K9: 0 | L9: 0 | M9: 0 | N9: 0 | O9: 0 | P9: 0 | Q9: 0 | R9: 0 | S9: 0 | T9: 46.9 | U9: 3
A10: 10 | B10: 2007 | C10: 101247 | D10: 16.15 | E10: 111296 | F10: 15.32 | G10: 35513 | H10: 4.86 | I10: 12721 | J10: 1.74 | K10: 3297 | L10: 0.45 | M10: 1071 | N10: 0.15 | O10: 772 | P10: 0.11 | Q10: 838 | R10: 0.11 | S10: 266755 | T10: 36.48 | U10: 3
A11: 10 | B11: 2008 | C11: 86229 | D11: 14.52 | E11: 100934 | F11: 14.67 | G11: 38680 | H11: 5.59 | I11: 13357 | J11: 1.93 | K11: 3627 | L11: 0.52 | M11: 1392 | N11: 0.2 | O11: 858 | P11: 0.12 | Q11: 0 | R11: 0 | S11: 245077 | T11: 35.34 | U11: 3
A12: 10 | B12: 2009 | C12: 78968 | D12: 13.42 | E12: 102151 | F12: 14.92 | G12: 45923 | H12: 6.67 | I12: 11266 | J12: 1.64 | K12: 3192 | L12: 0.46 | M12: 1606 | N12: 0.23 | O12: 0 | P12: 0 | Q12: 0 | R12: 0 | S12: 243106 | T12: 35.26 | U12: 3
A13: 10 | B13: 2010 | C13: 79970 | D13: 14.17 | E13: 113197 | F13: 17.1 | G13: 43648 | H13: 6.55 | I13: 10155 | J13: 1.52 | K13: 3310 | L13: 0.5 | M13: 0 | N13: 0 | O13: 0 | P13: 0 | Q13: 0 | R13: 0 | S13: 250280 | T13: 37.49 | U13: 3
A14: 10 | B14: 2011 | C14: 74167 | D14: 14.21 | E14: 106960 | F14: 17.33 | G14: 40679 | H14: 6.55 | I14: 10431 | J14: 1.68 | K14: 0 | L14: 0 | M14: 0 | N14: 0 | O14: 0 | P14: 0 | Q14: 0 | R14: 0 | S14: 232237 | T14: 37.33 | U14: 3
A15: 10 | B15: 2012 | C15: 68151 | D15: 14.65 | E15: 98465 | F15: 17.72 | G15: 37759 | H15: 6.74 | I15: 0 | J15: 0 | K15: 0 | L15: 0 | M15: 0 | N15: 0 | O15: 0 | P15: 0 | Q15: 0 | R15: 0 | S15: 204375 | T15: 36.47 | U15: 3
A16: 10 | B16: 2013 | C16: 61863 | D16: 14.35 | E16: 91445 | F16: 17.81 | G16: 0 | H16: 0 | I16: 0 | J16: 0 | K16: 0 | L16: 0 | M16: 0 | N16: 0 | O16: 0 | P16: 0 | Q16: 0 | R16: 0 | S16: 153308 | T16: 29.85 | U16: 3
A17: 10 | B17: 2014 | C17: 56929 | D17: 14.19 | E17: 0 | F17: 0 | G17: 0 | H17: 0 | I17: 0 | J17: 0 | K17: 0 | L17: 0 | M17: 0 | N17: 0 | O17: 0 | P17: 0 | Q17: 0 | R17: 0 | S17: 56929 | T17: 14.19 | U17: 3
A18: 11 | B18: 2007 | C18: 0 | D18: 0 | E18: 10440 | F18: 1.44 | G18: 5585 | H18: 0.77 | I18: 2027 | J18: 0.28 | K18: 824 | L18: 0.11 | M18: 387 | N18: 0.05 | O18: 383 | P18: 0.05 | Q18: 134 | R18: 0.02 | S18: 19780 | T18: 2.71 | U18: 3
A19: 11 | B19: 2008 | C19: 0 | D19: 0 | E19: 9525 | F19: 1.38 | G19: 5257 | H19: 0.76 | I19: 2167 | J19: 0.31 | K19: 737 | L19: 0.11 | M19: 476 | N19: 0.07 | O19: 207 | P19: 0.03 | Q19: 0 | R19: 0 | S19: 18369 | T19: 2.65 | U19: 3
A20: 11 | B20: 2009 | C20: 0 | D20: 0 | E20: 7679 | F20: 1.12 | G20: 5641 | H20: 0.82 | I20: 1840 | J20: 0.27 | K20: 820 | L20: 0.12 | M20: 335 | N20: 0.05 | O20: 0 | P20: 0 | Q20: 0 | R20: 0 | S20: 16315 | T20: 2.37 | U20: 3
A21: 11 | B21: 2010 | C21: 0 | D21: 0 | E21: 8185 | F21: 1.24 | G21: 5369 | H21: 0.81 | I21: 2074 | J21: 0.31 | K21: 700 | L21: 0.1 | M21: 0 | N21: 0 | O21: 0 | P21: 0 | Q21: 0 | R21: 0 | S21: 16328 | T21: 2.45 | U21: 3
A22: 11 | B22: 2011 | C22: 0 | D22: 0 | E22: 7235 | F22: 1.17 | G22: 4895 | H22: 0.79 | I22: 1821 | J22: 0.29 | K22: 0 | L22: 0 | M22: 0 | N22: 0 | O22: 0 | P22: 0 | Q22: 0 | R22: 0 | S22: 13951 | T22: 2.24 | U22: 3
A23: 11 | B23: 2012 | C23: 0 | D23: 0 | E23: 5647 | F23: 1.02 | G23: 4304 | H23: 0.77 | I23: 0 | J23: 0 | K23: 0 | L23: 0 | M23: 0 | N23: 0 | O23: 0 | P23: 0 | Q23: 0 | R23: 0 | S23: 9951 | T23: 1.78 | U23: 3
A24: 11 | B24: 2013 | C24: 0 | D24: 0 | E24: 5028 | F24: 0.98 | G24: 0 | H24: 0 | I24: 0 | J24: 0 | K24: 0 | L24: 0 | M24: 0 | N24: 0 | O24: 0 | P24: 0 | Q24: 0 | R24: 0 | S24: 5028 | T24: 0.98 | U24: 3
A25: 11 | B25: 2014 | C25: 0 | D25: 0 | E25: 0 | F25: 0 | G25: 0 | H25: 0 | I25: 0 | J25: 0 | K25: 0 | L25: 0 | M25: 0 | N25: 0 | O25: 0 | P25: 0 | Q25: 0 | R25: 0 | S25: 0 | T25: 0 | U25: 3
A26: 12 | B26: 2007 | C26: 101247 | D26: 16.15 | E26: 100856 | F26: 13.88 | G26: 29928 | H26: 4.1 | I26: 10694 | J26: 1.46 | K26: 2473 | L26: 0.34 | M26: 684 | N26: 0.09 | O26: 389 | P26: 0.05 | Q26: 704 | R26: 0.1 | S26: 246975 | T26: 33.78 | U26: 3
A27: 12 | B27: 2008 | C27: 86229 | D27: 14.52 | E27: 91409 | F27: 13.29 | G27: 33423 | H27: 4.83 | I27: 11190 | J27: 1.61 | K27: 2890 | L27: 0.42 | M27: 916 | N27: 0.13 | O27: 651 | P27: 0.09 | Q27: 0 | R27: 0 | S27: 226708 | T27: 32.69 | U27: 3
A28: 12 | B28: 2009 | C28: 78968 | D28: 13.42 | E28: 94472 | F28: 13.8 | G28: 40282 | H28: 5.85 | I28: 9426 | J28: 1.37 | K28: 2372 | L28: 0.34 | M28: 1271 | N28: 0.18 | O28: 0 | P28: 0 | Q28: 0 | R28: 0 | S28: 226791 | T28: 32.89 | U28: 3
A29: 12 | B29: 2010 | C29: 79970 | D29: 14.17 | E29: 105012 | F29: 15.86 | G29: 38279 | H29: 5.74 | I29: 8081 | J29: 1.21 | K29: 2610 | L29: 0.39 | M29: 0 | N29: 0 | O29: 0 | P29: 0 | Q29: 0 | R29: 0 | S29: 233952 | T29: 35.05 | U29: 3
A30: 12 | B30: 2011 | C30: 74167 | D30: 14.21 | E30: 99725 | F30: 16.15 | G30: 35784 | H30: 5.76 | I30: 8610 | J30: 1.38 | K30: 0 | L30: 0 | M30: 0 | N30: 0 | O30: 0 | P30: 0 | Q30: 0 | R30: 0 | S30: 218286 | T30: 35.08 | U30: 3
A31: 12 | B31: 2012 | C31: 68151 | D31: 14.65 | E31: 92818 | F31: 16.71 | G31: 33455 | H31: 5.97 | I31: 0 | J31: 0 | K31: 0 | L31: 0 | M31: 0 | N31: 0 | O31: 0 | P31: 0 | Q31: 0 | R31: 0 | S31: 194424 | T31: 34.7 | U31: 3
A32: 12 | B32: 2013 | C32: 61863 | D32: 14.35 | E32: 86417 | F32: 16.83 | G32: 0 | H32: 0 | I32: 0 | J32: 0 | K32: 0 | L32: 0 | M32: 0 | N32: 0 | O32: 0 | P32: 0 | Q32: 0 | R32: 0 | S32: 148280 | T32: 28.87 | U32: 3
A33: 12 | B33: 2014 | C33: 56929 | D33: 14.19 | E33: 0 | F33: 0 | G33: 0 | H33: 0 | I33: 0 | J33: 0 | K33: 0 | L33: 0 | M33: 0 | N33: 0 | O33: 0 | P33: 0 | Q33: 0 | R33: 0 | S33: 56929 | T33: 14.19 | U33: 3
A34: 13 | B34: 2007 | C34: 0 | D34: 47.9 | E34: 0 | F34: 91.1 | G34: 0 | H34: 97.6 | I34: 0 | J34: 98.9 | K34: 0 | L34: 99.4 | M34: 0 | N34: 99.6 | O34: 0 | P34: 99.7 | Q34: 0 | R34: 99.7 | S34: 0 | T34: 0.3 | U34: 3
A35: 13 | B35: 2008 | C35: 0 | D35: 47.3 | E35: 0 | F35: 91 | G35: 0 | H35: 97.5 | I35: 0 | J35: 98.9 | K35: 0 | L35: 99.4 | M35: 0 | N35: 99.6 | O35: 0 | P35: 99.7 | Q35: 0 | R35: 0 | S35: 0 | T35: 0.3 | U35: 3
A36: 13 | B36: 2009 | C36: 0 | D36: 47.3 | E36: 0 | F36: 90.7 | G36: 0 | H36: 97.4 | I36: 0 | J36: 98.8 | K36: 0 | L36: 99.3 | M36: 0 | N36: 99.5 | O36: 0 | P36: 0 | Q36: 0 | R36: 0 | S36: 0 | T36: 0.5 | U36: 3
A37: 13 | B37: 2010 | C37: 0 | D37: 47 | E37: 0 | F37: 90.3 | G37: 0 | H37: 97.1 | I37: 0 | J37: 98.5 | K37: 0 | L37: 98.9 | M37: 0 | N37: 0 | O37: 0 | P37: 0 | Q37: 0 | R37: 0 | S37: 0 | T37: 1.1 | U37: 3
A38: 13 | B38: 2011 | C38: 0 | D38: 47.5 | E38: 0 | F38: 89.5 | G38: 0 | H38: 96.4 | I38: 0 | J38: 97.8 | K38: 0 | L38: 0 | M38: 0 | N38: 0 | O38: 0 | P38: 0 | Q38: 0 | R38: 0 | S38: 0 | T38: 2.2 | U38: 3
A39: 13 | B39: 2012 | C39: 0 | D39: 44.7 | E39: 0 | F39: 86.2 | G39: 0 | H39: 93.2 | I39: 0 | J39: 0 | K39: 0 | L39: 0 | M39: 0 | N39: 0 | O39: 0 | P39: 0 | Q39: 0 | R39: 0 | S39: 0 | T39: 6.8 | U39: 3
A40: 13 | B40: 2013 | C40: 0 | D40: 40.1 | E40: 0 | F40: 79.3 | G40: 0 | H40: 0 | I40: 0 | J40: 0 | K40: 0 | L40: 0 | M40: 0 | N40: 0 | O40: 0 | P40: 0 | Q40: 0 | R40: 0 | S40: 0 | T40: 20.7 | U40: 3
A41: 13 | B41: 2014 | C41: 0 | D41: 38.7 | E41: 0 | F41: 0 | G41: 0 | H41: 0 | I41: 0 | J41: 0 | K41: 0 | L41: 0 | M41: 0 | N41: 0 | O41: 0 | P41: 0 | Q41: 0 | R41: 0 | S41: 0 | T41: 61.3 | U41: 3
A42: 14 | B42: 2007 | C42: 0 | D42: 25.2 | E42: 0 | F42: 77.7 | G42: 0 | H42: 92.9 | I42: 0 | J42: 96.4 | K42: 0 | L42: 97.9 | M42: 0 | N42: 98.6 | O42: 0 | P42: 98.9 | Q42: 0 | R42: 99.1 | S42: 0 | T42: 0.9 | U42: 3
A43: 14 | B43: 2008 | C43: 0 | D43: 25.8 | E43: 0 | F43: 78.6 | G43: 0 | H43: 93.2 | I43: 0 | J43: 96.5 | K43: 0 | L43: 97.8 | M43: 0 | N43: 98.3 | O43: 0 | P43: 98.7 | Q43: 0 | R43: 0 | S43: 0 | T43: 1.3 | U43: 3
A44: 14 | B44: 2009 | C44: 0 | D44: 26.2 | E44: 0 | F44: 77.7 | G44: 0 | H44: 92.1 | I44: 0 | J44: 96 | K44: 0 | L44: 97.2 | M44: 0 | N44: 97.9 | O44: 0 | P44: 0 | Q44: 0 | R44: 0 | S44: 0 | T44: 2.1 | U44: 3
A45: 14 | B45: 2010 | C45: 0 | D45: 26.1 | E45: 0 | F45: 77.4 | G45: 0 | H45: 92.8 | I45: 0 | J45: 96.4 | K45: 0 | L45: 97.4 | M45: 0 | N45: 0 | O45: 0 | P45: 0 | Q45: 0 | R45: 0 | S45: 0 | T45: 2.6 | U45: 3
A46: 14 | B46: 2011 | C46: 0 | D46: 25.9 | E46: 0 | F46: 75.5 | G46: 0 | H46: 90.6 | I46: 0 | J46: 94.1 | K46: 0 | L46: 0 | M46: 0 | N46: 0 | O46: 0 | P46: 0 | Q46: 0 | R46: 0 | S46: 0 | T46: 5.9 | U46: 3
A47: 14 | B47: 2012 | C47: 0 | D47: 24.5 | E47: 0 | F47: 73.6 | G47: 0 | H47: 88.4 | I47: 0 | J47: 0 | K47: 0 | L47: 0 | M47: 0 | N47: 0 | O47: 0 | P47: 0 | Q47: 0 | R47: 0 | S47: 0 | T47: 11.6 | U47: 3
A48: 14 | B48: 2013 | C48: 0 | D48: 22.4 | E48: 0 | F48: 70 | G48: 0 | H48: 0 | I48: 0 | J48: 0 | K48: 0 | L48: 0 | M48: 0 | N48: 0 | O48: 0 | P48: 0 | Q48: 0 | R48: 0 | S48: 0 | T48: 30 | U48: 3
A49: 14 | B49: 2014 | C49: 0 | D49: 26.3 | E49: 0 | F49: 0 | G49: 0 | H49: 0 | I49: 0 | J49: 0 | K49: 0 | L49: 0 | M49: 0 | N49: 0 | O49: 0 | P49: 0 | Q49: 0 | R49: 0 | S49: 0 | T49: 73.7 | U49: 3
A50: 

Sheet fd-9 (hidden)
A1: prospetto 9 | D1: prospetto 15 | M1: prospetto 16
D2: esercizio | G2: esercizi precedenti | J2: totale | M2: esercizio | P2: esercizi precedenti | S2: totale
A3: ANNO | B3: n. denunciati | C3: n. den. con seguito | D3: n. pag. | E3: imp. pag. | F3: pag. medio | G3: n. pag. | H3: imp. pag. | I3: pag. medio | J3: n. pag. | K3: imp. pag. | L3: pag. medio | M3: n. ris. | N3: imp. ris. | O3: ris. medio | P3: n. ris. | Q3: imp. ris. | R3: ris. medio | S3: n. ris. | T3: imp. ris. | U3: ris. medio
A4: 2007 | B4: 745419 | C4: 619753 | D4: 239503 | E4: 399 | F4: 1665 | G4: 264484 | H4: 1139 | I4: 4307 | J4: 503987 | K4: 1538 | L4: 3051 | M4: 299262 | N4: 962 | O4: 3213 | P4: 132552 | Q4: 714 | R4: 5385 | S4: 431814 | T4: 1675 | U4: 3880 | V4: 3
A5: 2008 | B5: 718447 | C5: 607424 | D5: 229663 | E5: 416 | F5: 1813 | G5: 261381 | H5: 1166 | I5: 4461 | J5: 491044 | K5: 1582 | L5: 3223 | M5: 290189 | N5: 953 | O5: 3284 | P5: 136570 | Q5: 703 | R5: 5151 | S5: 426759 | T5: 1656 | U5: 3881 | V5: 3
A6: 2009 | B6: 705641 | C6: 603222 | D6: 225136 | E6: 431 | F6: 1915 | G6: 254844 | H6: 1198 | I6: 4702 | J6: 479980 | K6: 1629 | L6: 3395 | M6: 296933 | N6: 1011 | O6: 3404 | P6: 141627 | Q6: 757 | R6: 5342 | S6: 438560 | T6: 1768 | U6: 4030 | V6: 3
A7: 2010 | B7: 668074 | C7: 567302 | D7: 204896 | E7: 401 | F7: 1955 | G7: 243566 | H7: 1156 | I7: 4746 | J7: 448462 | K7: 1557 | L7: 3471 | M7: 280223 | N7: 972 | O7: 3468 | P7: 141595 | Q7: 761 | R7: 5378 | S7: 421818 | T7: 1733 | U7: 4109 | V7: 3
A8: 2011 | B8: 625610 | C8: 527580 | D8: 191960 | E8: 386 | F8: 2011 | G8: 232436 | H8: 1123 | I8: 4832 | J8: 424396 | K8: 1509 | L8: 3556 | M8: 256283 | N8: 914 | O8: 3567 | P8: 134550 | Q8: 802 | R8: 5957 | S8: 390833 | T8: 1716 | U8: 4390 | V8: 3
A9: 2012 | B9: 566217 | C9: 475150 | D9: 163467 | E9: 338 | F9: 2068 | G9: 210395 | H9: 1084 | I9: 5154 | J9: 373862 | K9: 1423 | L9: 3805 | M9: 233730 | N9: 872 | O9: 3730 | P9: 129348 | Q9: 812 | R9: 6275 | S9: 363078 | T9: 1683 | U9: 4637 | V9: 3
A10: 2013 | B10: 526922 | C10: 445877 | D10: 146521 | E10: 308 | F10: 2099 | G10: 191476 | H10: 1007 | I10: 5260 | J10: 337997 | K10: 1315 | L10: 3890 | M10: 222614 | N10: 837 | O10: 3760 | P10: 126103 | Q10: 800 | R10: 6345 | S10: 348717 | T10: 1637 | U10: 4695 | V10: 3
A11: 2014 | B11: 489747 | C11: 414619 | D11: 133195 | E11: 303 | F11: 2272 | G11: 179133 | H11: 959 | I11: 5353 | J11: 312328 | K11: 1262 | L11: 4039 | M11: 210987 | N11: 850 | O11: 4028 | P11: 123606 | Q11: 830 | R11: 6713 | S11: 334593 | T11: 1680 | U11: 5020 | V11: 3
A12: 
A19: SENZA COMPAGNIE
A21: ANNO | B21: DENU | C21: SEGU | D21: NPES | E21: IPES | F21: PMES | G21: NPEP | H21: IPEP | I21: PMEP | J21: NPAG | K21: IPAG | L21: PAGM | M21: NRES | N21: IRES | O21: RMES | P21: NREP | Q21: IREP | R21: RMEP | S21: NRIS | T21: IRIS | U21: RISM
A22: 2007 | B22: 726618 | C22: 603613 | D22: 233453 | E22: 388 | F22: 1662 | G22: 256943 | H22: 1102 | I22: 4290 | J22: 490396 | K22: 1490 | L22: 3039 | M22: 292284 | N22: 936 | O22: 3203 | P22: 127218 | Q22: 689 | R22: 5416 | S22: 419502 | T22: 1625 | U22: 3874
A23: 2008 | B23: 701695 | C23: 593418 | D23: 223349 | E23: 404 | F23: 1807 | G23: 255111 | H23: 1133 | I23: 4442 | J23: 478460 | K23: 1537 | L23: 3212 | M23: 284376 | N23: 926 | O23: 3257 | P23: 132456 | Q23: 683 | R23: 5157 | S23: 416832 | T23: 1609 | U23: 3861
A24: 2009 | B24: 687075 | C24: 588085 | D24: 218952 | E24: 418 | F24: 1911 | G24: 248619 | H24: 1165 | I24: 4687 | J24: 467571 | K24: 1584 | L24: 3387 | M24: 290503 | N24: 984 | O24: 3388 | P24: 138050 | Q24: 736 | R24: 5328 | S24: 428553 | T24: 1720 | U24: 4013
A25: 2010 | B25: 666225 | C25: 566121 | D25: 204676 | E25: 400 | F25: 1955 | G25: 242959 | H25: 1155 | I25: 4753 | J25: 447635 | K25: 1555 | L25: 3474 | M25: 279822 | N25: 971 | O25: 3470 | P25: 141257 | Q25: 760 | R25: 5380 | S25: 421079 | T25: 1731 | U25: 4111
A26: 2011 | B26: 624691 | C26: 527027 | D26: 191877 | E26: 384 | F26: 2002 | G26: 232004 | H26: 1121 | I26: 4833 | J26: 423881 | K26: 1506 | L26: 3552 | M26: 256046 | N26: 912 | O26: 3563 | P26: 134241 | Q26: 800 | R26: 5960 | S26: 390287 | T26: 1712 | U26: 4388
A27: 2012 | B27: 566102 | C27: 475084 | D27: 163467 | E27: 338 | F27: 2068 | G27: 210384 | H27: 1084 | I27: 5154 | J27: 373851 | K27: 1422 | L27: 3805 | M27: 233677 | N27: 871 | O27: 3729 | P27: 129329 | Q27: 811 | R27: 6274 | S27: 363006 | T27: 1683 | U27: 4636
A28: 2013 | B28: 526922 | C28: 445877 | D28: 146521 | E28: 308 | F28: 2099 | G28: 191476 | H28: 1007 | I28: 5260 | J28: 337997 | K28: 1315 | L28: 3890 | M28: 222614 | N28: 837 | O28: 3760 | P28: 126103 | Q28: 800 | R28: 6345 | S28: 348717 | T28: 1637 | U28: 4695
A29: 2014 | B29: 489747 | C29: 414619 | D29: 133195 | E29: 303 | F29: 2272 | G29: 179133 | H29: 959 | I29: 5353 | J29: 312328 | K29: 1262 | L29: 4039 | M29: 210987 | N29: 850 | O29: 4028 | P29: 123606 | Q29: 830 | R29: 6713 | S29: 334593 | T29: 1680 | U29: 5020
A30: 
A32: 06/11 | B32: =(B28/B23-1)*100 -> -24.9 | C32: =(C28/C23-1)*100 -> -24.9
A33: 07/12 | B33: =(B29/B24-1)*100 -> -28.7 | C33: =(C29/C24-1)*100 -> -29.5
A34: 11/12 | B34: =(B29/B28-1)*100 -> -7.1 | C34: =(C29/C28-1)*100 -> -7.0

Sheet fd-10-11-12-13-14 (hidden)
A1: PROS | B1: GENE | C1: N | D1: P | E1: N1 | F1: P1 | G1: N2 | H1: P2 | I1: N3 | J1: P3 | K1: N4 | L1: P4 | M1: N5 | N1: P5 | O1: N6 | P1: P6 | Q1: N7 | R1: P7 | S1: N8 | T1: P8
A2: 8 | B2: 2007 | C2: 0 | D2: 44.3 | E2: 0 | F2: 52.1 | G2: 0 | H2: 52.2 | I2: 0 | J2: 51.8 | K2: 0 | L2: 51.7 | M2: 0 | N2: 51.7 | O2: 0 | P2: 51.6 | Q2: 0 | R2: 51.4 | S2: 0 | T2: 51.5 | U2: 3
A3: 8 | B3: 2008 | C3: 0 | D3: 43.5 | E3: 0 | F3: 52.8 | G3: 0 | H3: 52.1 | I3: 0 | J3: 51.6 | K3: 0 | L3: 51.3 | M3: 0 | N3: 51.2 | O3: 0 | P3: 51.1 | Q3: 0 | R3: 0 | S3: 0 | T3: 51.1 | U3: 3
A4: 8 | B4: 2009 | C4: 0 | D4: 46.3 | E4: 0 | F4: 54.2 | G4: 0 | H4: 53.8 | I4: 0 | J4: 53.3 | K4: 0 | L4: 52.9 | M4: 0 | N4: 52.7 | O4: 0 | P4: 0 | Q4: 0 | R4: 0 | S4: 0 | T4: 52.7 | U4: 3
A5: 8 | B5: 2010 | C5: 0 | D5: 45.7 | E5: 0 | F5: 53.1 | G5: 0 | H5: 52.4 | I5: 0 | J5: 51.5 | K5: 0 | L5: 51.1 | M5: 0 | N5: 0 | O5: 0 | P5: 0 | Q5: 0 | R5: 0 | S5: 0 | T5: 51.1 | U5: 3
A6: 8 | B6: 2011 | C6: 0 | D6: 43.8 | E6: 0 | F6: 51.7 | G6: 0 | H6: 50.8 | I6: 0 | J6: 50.1 | K6: 0 | L6: 0 | M6: 0 | N6: 0 | O6: 0 | P6: 0 | Q6: 0 | R6: 0 | S6: 0 | T6: 50.1 | U6: 3
A7: 8 | B7: 2012 | C7: 0 | D7: 41.1 | E7: 0 | F7: 47.7 | G7: 0 | H7: 46.9 | I7: 0 | J7: 0 | K7: 0 | L7: 0 | M7: 0 | N7: 0 | O7: 0 | P7: 0 | Q7: 0 | R7: 0 | S7: 0 | T7: 47 | U7: 3
A8: 8 | B8: 2013 | C8: 0 | D8: 38.7 | E8: 0 | F8: 46.3 | G8: 0 | H8: 0 | I8: 0 | J8: 0 | K8: 0 | L8: 0 | M8: 0 | N8: 0 | O8: 0 | P8: 0 | Q8: 0 | R8: 0 | S8: 0 | T8: 47.1 | U8: 3
A9: 8 | B9: 2014 | C9: 0 | D9: 39 | E9: 0 | F9: 0 | G9: 0 | H9: 0 | I9: 0 | J9: 0 | K9: 0 | L9: 0 | M9: 0 | N9: 0 | O9: 0 | P9: 0 | Q9: 0 | R9: 0 | S9: 0 | T9: 46.9 | U9: 3
A10: 10 | B10: 2007 | C10: 101247 | D10: 16.15 | E10: 111296 | F10: 15.32 | G10: 35513 | H10: 4.86 | I10: 12721 | J10: 1.74 | K10: 3297 | L10: 0.45 | M10: 1071 | N10: 0.15 | O10: 772 | P10: 0.11 | Q10: 838 | R10: 0.11 | S10: 266755 | T10: 36.48 | U10: 3
A11: 10 | B11: 2008 | C11: 86229 | D11: 14.52 | E11: 100934 | F11: 14.67 | G11: 38680 | H11: 5.59 | I11: 13357 | J11: 1.93 | K11: 3627 | L11: 0.52 | M11: 1392 | N11: 0.2 | O11: 858 | P11: 0.12 | Q11: 0 | R11: 0 | S11: 245077 | T11: 35.34 | U11: 3
A12: 10 | B12: 2009 | C12: 78968 | D12: 13.42 | E12: 102151 | F12: 14.92 | G12: 45923 | H12: 6.67 | I12: 11266 | J12: 1.64 | K12: 3192 | L12: 0.46 | M12: 1606 | N12: 0.23 | O12: 0 | P12: 0 | Q12: 0 | R12: 0 | S12: 243106 | T12: 35.26 | U12: 3
A13: 10 | B13: 2010 | C13: 79970 | D13: 14.17 | E13: 113197 | F13: 17.1 | G13: 43648 | H13: 6.55 | I13: 10155 | J13: 1.52 | K13: 3310 | L13: 0.5 | M13: 0 | N13: 0 | O13: 0 | P13: 0 | Q13: 0 | R13: 0 | S13: 250280 | T13: 37.49 | U13: 3
A14: 10 | B14: 2011 | C14: 74167 | D14: 14.21 | E14: 106960 | F14: 17.33 | G14: 40679 | H14: 6.55 | I14: 10431 | J14: 1.68 | K14: 0 | L14: 0 | M14: 0 | N14: 0 | O14: 0 | P14: 0 | Q14: 0 | R14: 0 | S14: 232237 | T14: 37.33 | U14: 3
A15: 10 | B15: 2012 | C15: 68151 | D15: 14.65 | E15: 98465 | F15: 17.72 | G15: 37759 | H15: 6.74 | I15: 0 | J15: 0 | K15: 0 | L15: 0 | M15: 0 | N15: 0 | O15: 0 | P15: 0 | Q15: 0 | R15: 0 | S15: 204375 | T15: 36.47 | U15: 3
A16: 10 | B16: 2013 | C16: 61863 | D16: 14.35 | E16: 91445 | F16: 17.81 | G16: 0 | H16: 0 | I16: 0 | J16: 0 | K16: 0 | L16: 0 | M16: 0 | N16: 0 | O16: 0 | P16: 0 | Q16: 0 | R16: 0 | S16: 153308 | T16: 29.85 | U16: 3
A17: 10 | B17: 2014 | C17: 56929 | D17: 14.19 | E17: 0 | F17: 0 | G17: 0 | H17: 0 | I17: 0 | J17: 0 | K17: 0 | L17: 0 | M17: 0 | N17: 0 | O17: 0 | P17: 0 | Q17: 0 | R17: 0 | S17: 56929 | T17: 14.19 | U17: 3
A18: 11 | B18: 2007 | C18: 0 | D18: 0 | E18: 10440 | F18: 1.44 | G18: 5585 | H18: 0.77 | I18: 2027 | J18: 0.28 | K18: 824 | L18: 0.11 | M18: 387 | N18: 0.05 | O18: 383 | P18: 0.05 | Q18: 134 | R18: 0.02 | S18: 19780 | T18: 2.71 | U18: 3
A19: 11 | B19: 2008 | C19: 0 | D19: 0 | E19: 9525 | F19: 1.38 | G19: 5257 | H19: 0.76 | I19: 2167 | J19: 0.31 | K19: 737 | L19: 0.11 | M19: 476 | N19: 0.07 | O19: 207 | P19: 0.03 | Q19: 0 | R19: 0 | S19: 18369 | T19: 2.65 | U19: 3
A20: 11 | B20: 2009 | C20: 0 | D20: 0 | E20: 7679 | F20: 1.12 | G20: 5641 | H20: 0.82 | I20: 1840 | J20: 0.27 | K20: 820 | L20: 0.12 | M20: 335 | N20: 0.05 | O20: 0 | P20: 0 | Q20: 0 | R20: 0 | S20: 16315 | T20: 2.37 | U20: 3
A21: 11 | B21: 2010 | C21: 0 | D21: 0 | E21: 8185 | F21: 1.24 | G21: 5369 | H21: 0.81 | I21: 2074 | J21: 0.31 | K21: 700 | L21: 0.1 | M21: 0 | N21: 0 | O21: 0 | P21: 0 | Q21: 0 | R21: 0 | S21: 16328 | T21: 2.45 | U21: 3
A22: 11 | B22: 2011 | C22: 0 | D22: 0 | E22: 7235 | F22: 1.17 | G22: 4895 | H22: 0.79 | I22: 1821 | J22: 0.29 | K22: 0 | L22: 0 | M22: 0 | N22: 0 | O22: 0 | P22: 0 | Q22: 0 | R22: 0 | S22: 13951 | T22: 2.24 | U22: 3
A23: 11 | B23: 2012 | C23: 0 | D23: 0 | E23: 5647 | F23: 1.02 | G23: 4304 | H23: 0.77 | I23: 0 | J23: 0 | K23: 0 | L23: 0 | M23: 0 | N23: 0 | O23: 0 | P23: 0 | Q23: 0 | R23: 0 | S23: 9951 | T23: 1.78 | U23: 3
A24: 11 | B24: 2013 | C24: 0 | D24: 0 | E24: 5028 | F24: 0.98 | G24: 0 | H24: 0 | I24: 0 | J24: 0 | K24: 0 | L24: 0 | M24: 0 | N24: 0 | O24: 0 | P24: 0 | Q24: 0 | R24: 0 | S24: 5028 | T24: 0.98 | U24: 3
A25: 11 | B25: 2014 | C25: 0 | D25: 0 | E25: 0 | F25: 0 | G25: 0 | H25: 0 | I25: 0 | J25: 0 | K25: 0 | L25: 0 | M25: 0 | N25: 0 | O25: 0 | P25: 0 | Q25: 0 | R25: 0 | S25: 0 | T25: 0 | U25: 3
A26: 12 | B26: 2007 | C26: 101247 | D26: 16.15 | E26: 100856 | F26: 13.88 | G26: 29928 | H26: 4.1 | I26: 10694 | J26: 1.46 | K26: 2473 | L26: 0.34 | M26: 684 | N26: 0.09 | O26: 389 | P26: 0.05 | Q26: 704 | R26: 0.1 | S26: 246975 | T26: 33.78 | U26: 3
A27: 12 | B27: 2008 | C27: 86229 | D27: 14.52 | E27: 91409 | F27: 13.29 | G27: 33423 | H27: 4.83 | I27: 11190 | J27: 1.61 | K27: 2890 | L27: 0.42 | M27: 916 | N27: 0.13 | O27: 651 | P27: 0.09 | Q27: 0 | R27: 0 | S27: 226708 | T27: 32.69 | U27: 3
A28: 12 | B28: 2009 | C28: 78968 | D28: 13.42 | E28: 94472 | F28: 13.8 | G28: 40282 | H28: 5.85 | I28: 9426 | J28: 1.37 | K28: 2372 | L28: 0.34 | M28: 1271 | N28: 0.18 | O28: 0 | P28: 0 | Q28: 0 | R28: 0 | S28: 226791 | T28: 32.89 | U28: 3
A29: 12 | B29: 2010 | C29: 79970 | D29: 14.17 | E29: 105012 | F29: 15.86 | G29: 38279 | H29: 5.74 | I29: 8081 | J29: 1.21 | K29: 2610 | L29: 0.39 | M29: 0 | N29: 0 | O29: 0 | P29: 0 | Q29: 0 | R29: 0 | S29: 233952 | T29: 35.05 | U29: 3
A30: 12 | B30: 2011 | C30: 74167 | D30: 14.21 | E30: 99725 | F30: 16.15 | G30: 35784 | H30: 5.76 | I30: 8610 | J30: 1.38 | K30: 0 | L30: 0 | M30: 0 | N30: 0 | O30: 0 | P30: 0 | Q30: 0 | R30: 0 | S30: 218286 | T30: 35.08 | U30: 3
A31: 12 | B31: 2012 | C31: 68151 | D31: 14.65 | E31: 92818 | F31: 16.71 | G31: 33455 | H31: 5.97 | I31: 0 | J31: 0 | K31: 0 | L31: 0 | M31: 0 | N31: 0 | O31: 0 | P31: 0 | Q31: 0 | R31: 0 | S31: 194424 | T31: 34.7 | U31: 3
A32: 12 | B32: 2013 | C32: 61863 | D32: 14.35 | E32: 86417 | F32: 16.83 | G32: 0 | H32: 0 | I32: 0 | J32: 0 | K32: 0 | L32: 0 | M32: 0 | N32: 0 | O32: 0 | P32: 0 | Q32: 0 | R32: 0 | S32: 148280 | T32: 28.87 | U32: 3
A33: 12 | B33: 2014 | C33: 56929 | D33: 14.19 | E33: 0 | F33: 0 | G33: 0 | H33: 0 | I33: 0 | J33: 0 | K33: 0 | L33: 0 | M33: 0 | N33: 0 | O33: 0 | P33: 0 | Q33: 0 | R33: 0 | S33: 56929 | T33: 14.19 | U33: 3
A34: 13 | B34: 2007 | C34: 0 | D34: 47.9 | E34: 0 | F34: 91.1 | G34: 0 | H34: 97.6 | I34: 0 | J34: 98.9 | K34: 0 | L34: 99.4 | M34: 0 | N34: 99.6 | O34: 0 | P34: 99.7 | Q34: 0 | R34: 99.7 | S34: 0 | T34: 0.3 | U34: 3
A35: 13 | B35: 2008 | C35: 0 | D35: 47.3 | E35: 0 | F35: 91 | G35: 0 | H35: 97.5 | I35: 0 | J35: 98.9 | K35: 0 | L35: 99.4 | M35: 0 | N35: 99.6 | O35: 0 | P35: 99.7 | Q35: 0 | R35: 0 | S35: 0 | T35: 0.3 | U35: 3
A36: 13 | B36: 2009 | C36: 0 | D36: 47.3 | E36: 0 | F36: 90.7 | G36: 0 | H36: 97.4 | I36: 0 | J36: 98.8 | K36: 0 | L36: 99.3 | M36: 0 | N36: 99.5 | O36: 0 | P36: 0 | Q36: 0 | R36: 0 | S36: 0 | T36: 0.5 | U36: 3
A37: 13 | B37: 2010 | C37: 0 | D37: 47 | E37: 0 | F37: 90.3 | G37: 0 | H37: 97.1 | I37: 0 | J37: 98.5 | K37: 0 | L37: 98.9 | M37: 0 | N37: 0 | O37: 0 | P37: 0 | Q37: 0 | R37: 0 | S37: 0 | T37: 1.1 | U37: 3
A38: 13 | B38: 2011 | C38: 0 | D38: 47.5 | E38: 0 | F38: 89.5 | G38: 0 | H38: 96.4 | I38: 0 | J38: 97.8 | K38: 0 | L38: 0 | M38: 0 | N38: 0 | O38: 0 | P38: 0 | Q38: 0 | R38: 0 | S38: 0 | T38: 2.2 | U38: 3
A39: 13 | B39: 2012 | C39: 0 | D39: 44.7 | E39: 0 | F39: 86.2 | G39: 0 | H39: 93.2 | I39: 0 | J39: 0 | K39: 0 | L39: 0 | M39: 0 | N39: 0 | O39: 0 | P39: 0 | Q39: 0 | R39: 0 | S39: 0 | T39: 6.8 | U39: 3
A40: 13 | B40: 2013 | C40: 0 | D40: 40.1 | E40: 0 | F40: 79.3 | G40: 0 | H40: 0 | I40: 0 | J40: 0 | K40: 0 | L40: 0 | M40: 0 | N40: 0 | O40: 0 | P40: 0 | Q40: 0 | R40: 0 | S40: 0 | T40: 20.7 | U40: 3
A41: 13 | B41: 2014 | C41: 0 | D41: 38.7 | E41: 0 | F41: 0 | G41: 0 | H41: 0 | I41: 0 | J41: 0 | K41: 0 | L41: 0 | M41: 0 | N41: 0 | O41: 0 | P41: 0 | Q41: 0 | R41: 0 | S41: 0 | T41: 61.3 | U41: 3
A42: 14 | B42: 2007 | C42: 0 | D42: 25.2 | E42: 0 | F42: 77.7 | G42: 0 | H42: 92.9 | I42: 0 | J42: 96.4 | K42: 0 | L42: 97.9 | M42: 0 | N42: 98.6 | O42: 0 | P42: 98.9 | Q42: 0 | R42: 99.1 | S42: 0 | T42: 0.9 | U42: 3
A43: 14 | B43: 2008 | C43: 0 | D43: 25.8 | E43: 0 | F43: 78.6 | G43: 0 | H43: 93.2 | I43: 0 | J43: 96.5 | K43: 0 | L43: 97.8 | M43: 0 | N43: 98.3 | O43: 0 | P43: 98.7 | Q43: 0 | R43: 0 | S43: 0 | T43: 1.3 | U43: 3
A44: 14 | B44: 2009 | C44: 0 | D44: 26.2 | E44: 0 | F44: 77.7 | G44: 0 | H44: 92.1 | I44: 0 | J44: 96 | K44: 0 | L44: 97.2 | M44: 0 | N44: 97.9 | O44: 0 | P44: 0 | Q44: 0 | R44: 0 | S44: 0 | T44: 2.1 | U44: 3
A45: 14 | B45: 2010 | C45: 0 | D45: 26.1 | E45: 0 | F45: 77.4 | G45: 0 | H45: 92.8 | I45: 0 | J45: 96.4 | K45: 0 | L45: 97.4 | M45: 0 | N45: 0 | O45: 0 | P45: 0 | Q45: 0 | R45: 0 | S45: 0 | T45: 2.6 | U45: 3
A46: 14 | B46: 2011 | C46: 0 | D46: 25.9 | E46: 0 | F46: 75.5 | G46: 0 | H46: 90.6 | I46: 0 | J46: 94.1 | K46: 0 | L46: 0 | M46: 0 | N46: 0 | O46: 0 | P46: 0 | Q46: 0 | R46: 0 | S46: 0 | T46: 5.9 | U46: 3
A47: 14 | B47: 2012 | C47: 0 | D47: 24.5 | E47: 0 | F47: 73.6 | G47: 0 | H47: 88.4 | I47: 0 | J47: 0 | K47: 0 | L47: 0 | M47: 0 | N47: 0 | O47: 0 | P47: 0 | Q47: 0 | R47: 0 | S47: 0 | T47: 11.6 | U47: 3
A48: 14 | B48: 2013 | C48: 0 | D48: 22.4 | E48: 0 | F48: 70 | G48: 0 | H48: 0 | I48: 0 | J48: 0 | K48: 0 | L48: 0 | M48: 0 | N48: 0 | O48: 0 | P48: 0 | Q48: 0 | R48: 0 | S48: 0 | T48: 30 | U48: 3
A49: 14 | B49: 2014 | C49: 0 | D49: 26.3 | E49: 0 | F49: 0 | G49: 0 | H49: 0 | I49: 0 | J49: 0 | K49: 0 | L49: 0 | M49: 0 | N49: 0 | O49: 0 | P49: 0 | Q49: 0 | R49: 0 | S49: 0 | T49: 73.7 | U49: 3
A50: 
A55: SENZA COMPAGNIE

Sheet 7
A3: TAVOLA N. 7
A5: Ramo I - Serie storica delle riserve matematiche
A7: (importi in milioni di euro)
A8: Classe dimensionale (a) | C8: 2014 | D8: =+C8+1 -> 2015 | E8: =+D8+1 -> 2016 | F8: =+E8+1 -> 2017 | G8: =+F8+1 -> 2018 | H8: =+G8+1 -> 2019
B9: N. Imprese | C9: 59 | D9: 56 | E9: 53 | F9: 50 | G9: 45 | H9: 46
A10: I quartile | B10: Numero di imprese | C10: 15 | D10: 14 | E10: 14 | F10: 13 | G10: 12 | H10: 12
B11: Riserve Matematiche - Valore mediano | C11: 204 | D11: 199 | E11: 271 | F11: 658 | G11: 776 | H11: 701
A12: II quartile | B12: Numero di imprese | C12: 15 | D12: 14 | E12: 13 | F12: 13 | G12: 11 | H12: 11
B13: Riserve Matematiche - Valore mediano | C13: 1,301 | D13: 1,517 | E13: 1,864 | F13: 2,355 | G13: 3,599 | H13: 3,016
A14: III quartile | B14: Numero di imprese | C14: 14 | D14: 14 | E14: 13 | F14: 12 | G14: 11 | H14: 11
B15: Riserve Matematiche - Valore mediano | C15: 3,592 | D15: 4,080 | E15: 4,792 | F15: 5,461 | G15: 5,872 | H15: 5,969
A16: IV quartile | B16: Numero di imprese | C16: 15 | D16: 14 | E16: 13 | F16: 12 | G16: 11 | H16: 12
B17: Riserve Matematiche - Valore mediano | C17: 13,520 | D17: 15,150 | E17: 15,995 | F17: 17,657 | G17: 19,237 | H17: 19,450
A18: Fonte: Regolamento ISVAP n. 22/2008, Modulo 20, ramo I
A19: (a) Quartili per riserva tecnica nel ramo

Sheet fd-15-16 (hidden)
A1: prospetto 9 | D1: prospetto 15 | M1: prospetto 16
D2: esercizio | G2: esercizi precedenti | J2: totale | M2: esercizio | P2: esercizi precedenti | S2: totale
A3: ANNO | B3: n. denunciati | C3: n. den. con seguito | D3: n. pag. | E3: imp. pag. | F3: pag. medio | G3: n. pag. | H3: imp. pag. | I3: pag. medio | J3: n. pag. | K3: imp. pag. | L3: pag. medio | M3: n. ris. | N3: imp. ris. | O3: ris. medio | P3: n. ris. | Q3: imp. ris. | R3: ris. medio | S3: n. ris. | T3: imp. ris. | U3: ris. medio
A4: 2007 | B4: 745419 | C4: 619753 | D4: 239503 | E4: 399 | F4: 1665 | G4: 264484 | H4: 1139 | I4: 4307 | J4: 503987 | K4: 1538 | L4: 3051 | M4: 299262 | N4: 962 | O4: 3213 | P4: 132552 | Q4: 714 | R4: 5385 | S4: 431814 | T4: 1675 | U4: 3880 | V4: 3
A5: 2008 | B5: 718447 | C5: 607424 | D5: 229663 | E5: 416 | F5: 1813 | G5: 261381 | H5: 1166 | I5: 4461 | J5: 491044 | K5: 1582 | L5: 3223 | M5: 290189 | N5: 953 | O5: 3284 | P5: 136570 | Q5: 703 | R5: 5151 | S5: 426759 | T5: 1656 | U5: 3881 | V5: 3
A6: 2009 | B6: 705641 | C6: 603222 | D6: 225136 | E6: 431 | F6: 1915 | G6: 254844 | H6: 1198 | I6: 4702 | J6: 479980 | K6: 1629 | L6: 3395 | M6: 296933 | N6: 1011 | O6: 3404 | P6: 141627 | Q6: 757 | R6: 5342 | S6: 438560 | T6: 1768 | U6: 4030 | V6: 3
A7: 2010 | B7: 668074 | C7: 567302 | D7: 204896 | E7: 401 | F7: 1955 | G7: 243566 | H7: 1156 | I7: 4746 | J7: 448462 | K7: 1557 | L7: 3471 | M7: 280223 | N7: 972 | O7: 3468 | P7: 141595 | Q7: 761 | R7: 5378 | S7: 421818 | T7: 1733 | U7: 4109 | V7: 3
A8: 2011 | B8: 625610 | C8: 527580 | D8: 191960 | E8: 386 | F8: 2011 | G8: 232436 | H8: 1123 | I8: 4832 | J8: 424396 | K8: 1509 | L8: 3556 | M8: 256283 | N8: 914 | O8: 3567 | P8: 134550 | Q8: 802 | R8: 5957 | S8: 390833 | T8: 1716 | U8: 4390 | V8: 3
A9: 2012 | B9: 566217 | C9: 475150 | D9: 163467 | E9: 338 | F9: 2068 | G9: 210395 | H9: 1084 | I9: 5154 | J9: 373862 | K9: 1423 | L9: 3805 | M9: 233730 | N9: 872 | O9: 3730 | P9: 129348 | Q9: 812 | R9: 6275 | S9: 363078 | T9: 1683 | U9: 4637 | V9: 3
A10: 2013 | B10: 526922 | C10: 445877 | D10: 146521 | E10: 308 | F10: 2099 | G10: 191476 | H10: 1007 | I10: 5260 | J10: 337997 | K10: 1315 | L10: 3890 | M10: 222614 | N10: 837 | O10: 3760 | P10: 126103 | Q10: 800 | R10: 6345 | S10: 348717 | T10: 1637 | U10: 4695 | V10: 3
A11: 2014 | B11: 489747 | C11: 414619 | D11: 133195 | E11: 303 | F11: 2272 | G11: 179133 | H11: 959 | I11: 5353 | J11: 312328 | K11: 1262 | L11: 4039 | M11: 210987 | N11: 850 | O11: 4028 | P11: 123606 | Q11: 830 | R11: 6713 | S11: 334593 | T11: 1680 | U11: 5020 | V11: 3
A12: 
A15: SENZA COMPAGNIE
A16: prospetto 9 | D16: prospetto 15 | M16: prospetto 16
D17: esercizio | G17: esercizi precedenti | J17: totale | M17: esercizio | P17: esercizi precedenti | S17: totale
A18: ANNO | B18: n. denunciati | C18: n. den. con seguito | D18: n. pag. | E18: imp. pag. | F18: pag. medio | G18: n. pag. | H18: imp. pag. | I18: pag. medio | J18: n. pag. | K18: imp. pag. | L18: pag. medio | M18: n. ris. | N18: imp. ris. | O18: ris. medio | P18: n. ris. | Q18: imp. ris. | R18: ris. medio | S18: n. ris. | T18: imp. ris. | U18: ris. medio
A19: 2007 | B19: 726618 | C19: 603613 | D19: 233453 | E19: 388 | F19: 1662 | G19: 256943 | H19: 1102 | I19: 4290 | J19: 490396 | K19: 1490 | L19: 3039 | M19: 292284 | N19: 936 | O19: 3203 | P19: 127218 | Q19: 689 | R19: 5416 | S19: 419502 | T19: 1625 | U19: 3874
A20: 2008 | B20: 701695 | C20: 593418 | D20: 223349 | E20: 404 | F20: 1807 | G20: 255111 | H20: 1133 | I20: 4442 | J20: 478460 | K20: 1537 | L20: 3212 | M20: 284376 | N20: 926 | O20: 3257 | P20: 132456 | Q20: 683 | R20: 5157 | S20: 416832 | T20: 1609 | U20: 3861
A21: 2009 | B21: 687075 | C21: 588085 | D21: 218952 | E21: 418 | F21: 1911 | G21: 248619 | H21: 1165 | I21: 4687 | J21: 467571 | K21: 1584 | L21: 3387 | M21: 290503 | N21: 984 | O21: 3388 | P21: 138050 | Q21: 736 | R21: 5328 | S21: 428553 | T21: 1720 | U21: 4013
A22: 2010 | B22: 666225 | C22: 566121 | D22: 204676 | E22: 400 | F22: 1955 | G22: 242959 | H22: 1155 | I22: 4753 | J22: 447635 | K22: 1555 | L22: 3474 | M22: 279822 | N22: 971 | O22: 3470 | P22: 141257 | Q22: 760 | R22: 5380 | S22: 421079 | T22: 1731 | U22: 4111
A23: 2011 | B23: 624691 | C23: 527027 | D23: 191877 | E23: 384 | F23: 2002 | G23: 232004 | H23: 1121 | I23: 4833 | J23: 423881 | K23: 1506 | L23: 3552 | M23: 256046 | N23: 912 | O23: 3563 | P23: 134241 | Q23: 800 | R23: 5960 | S23: 390287 | T23: 1712 | U23: 4388
A24: 2012 | B24: 566102 | C24: 475084 | D24: 163467 | E24: 338 | F24: 2068 | G24: 210384 | H24: 1084 | I24: 5154 | J24: 373851 | K24: 1422 | L24: 3805 | M24: 233677 | N24: 871 | O24: 3729 | P24: 129329 | Q24: 811 | R24: 6274 | S24: 363006 | T24: 1683 | U24: 4636
A25: 2013 | B25: 526922 | C25: 445877 | D25: 146521 | E25: 308 | F25: 2099 | G25: 191476 | H25: 1007 | I25: 5260 | J25: 337997 | K25: 1315 | L25: 3890 | M25: 222614 | N25: 837 | O25: 3760 | P25: 126103 | Q25: 800 | R25: 6345 | S25: 348717 | T25: 1637 | U25: 4695
A26: 2014 | B26: 489747 | C26: 414619 | D26: 133195 | E26: 303 | F26: 2272 | G26: 179133 | H26: 959 | I26: 5353 | J26: 312328 | K26: 1262 | L26: 4039 | M26: 210987 | N26: 850 | O26: 4028 | P26: 123606 | Q26: 830 | R26: 6713 | S26: 334593 | T26: 1680 | U26: 5020
A27: 
A28: variaz. Omogenee 2012/2011 | D28: =(D26/D25-1)*100 -> -9.1 | E28: =(E26/E25-1)*100 -> -1.6 | F28: 8.2 | G28: -6.4 | H28: -4.8 | I28: 1.8 | J28: -7.6 | K28: -4.0 | L28: 3.8 | M28: =(M26/M25-1)*100 -> -5.2 | N28: 1.6 | O28: 7.1 | P28: -2.0 | Q28: 3.8 | R28: 5.8 | S28: -4.1 | T28: 2.6 | U28: 6.9

Sheet fd_17 (hidden)
A1: prospetto 17 | H1: PER UTILIZZARE IL FD BISOGNA COPIARE E TRASPORRE I DATI DEL MODELLO CONSALVI
A2: ANNO | B2: ANTI | C2: PAGM | D2: RISM | E2: TOTM | F2: RAP | H2: TUTTE COMPAGNIE
A3: 2007 | B3: 8+ | C3: 13621 | D3: 10738 | E3: 11131 | F3: 0.8 | H3: 2007 | I3: 2007 | J3: 2007 | K3: 2007 | L3: 2007 | M3: 2007 | N3: 2007 | O3: 2007 | P3: 2007 | Q3: 2007 | R3: 2007 | S3: 2008 | T3: 2008 | U3: 2008 | V3: 2008 | W3: 2008 | X3: 2008 | Y3: 2008 | Z3: 2008 | AA3: 2008 | AB3: 2008 | AC3: 2008 | AD3: 2009 | AE3: 2009 | AF3: 2009 | AG3: 2009 | AH3: 2009 | AI3: 2009 | AJ3: 2009 | AK3: 2009 | AL3: 2009 | AM3: 2009 | AN3: 2009 | AO3: 2010 | AP3: 2010 | AQ3: 2010 | AR3: 2010 | AS3: 2010 | AT3: 2010 | AU3: 2010 | AV3: 2010 | AW3: 2010 | AX3: 2010 | AY3: 2010 | AZ3: 2011 | BA3: 2011 | BB3: 2011 | BC3: 2011 | BD3: 2011 | BE3: 2011 | BF3: 2011 | BG3: 2011 | BH3: 2011 | BI3: 2011 | BJ3: 2011 | BK3: 2012 | BL3: 2012 | BM3: 2012 | BN3: 2012 | BO3: 2012 | BP3: 2012 | BQ3: 2012 | BR3: 2012 | BS3: 2012 | BT3: 2012 | BU3: 2012 | BV3: 2013 | BW3: 2013 | BX3: 2013 | BY3: 2013 | BZ3: 2013 | CA3: 2013 | CB3: 2013 | CC3: 2013 | CD3: 2013 | CE3: 2013 | CF3: 2013 | CG3: 2014 | CH3: 2014 | CI3: 2014 | CJ3: 2014 | CK3: 2014 | CL3: 2014 | CM3: 2014 | CN3: 2014 | CO3: 2014 | CP3: 2014 | CQ3: 2014 | CR3: 
A4: 2007 | B4: 7 | C4: 10743 | D4: 8952 | E4: 9249 | F4: 0.8 | H4: 8+ | I4: 7 | J4: 6 | K4: 5 | L4: 4 | M4: 3 | N4: 2 | O4: 1 | P4: TOT. PREC. | Q4: 0 | R4: TOT. GEN. | S4: 8+ | T4: 7 | U4: 6 | V4: 5 | W4: 4 | X4: 3 | Y4: 2 | Z4: 1 | AA4: TOT. PREC. | AB4: 0 | AC4: TOT. GEN. | AD4: 8+ | AE4: 7 | AF4: 6 | AG4: 5 | AH4: 4 | AI4: 3 | AJ4: 2 | AK4: 1 | AL4: TOT. PREC. | AM4: 0 | AN4: TOT. GEN. | AO4: 8+ | AP4: 7 | AQ4: 6 | AR4: 5 | AS4: 4 | AT4: 3 | AU4: 2 | AV4: 1 | AW4: TOT. PREC. | AX4: 0 | AY4: TOT. GEN. | AZ4: 8+ | BA4: 7 | BB4: 6 | BC4: 5 | BD4: 4 | BE4: 3 | BF4: 2 | BG4: 1 | BH4: TOT. PREC. | BI4: 0 | BJ4: TOT. GEN. | BK4: 8+ | BL4: 7 | BM4: 6 | BN4: 5 | BO4: 4 | BP4: 3 | BQ4: 2 | BR4: 1 | BS4: TOT. PREC. | BT4: 0 | BU4: TOT. GEN. | BV4: 8+ | BW4: 7 | BX4: 6 | BY4: 5 | BZ4: 4 | CA4: 3 | CB4: 2 | CC4: 1 | CD4: TOT. PREC. | CE4: 0 | CF4: TOT. GEN. | CG4: 8+ | CH4: 7 | CI4: 6 | CJ4: 5 | CK4: 4 | CL4: 3 | CM4: 2 | CN4: 1 | CO4: TOT. PREC. | CP4: 0 | CQ4: TOT. GEN.
A5: 2007 | B5: 6 | C5: 11685 | D5: 8769 | E5: 9202 | F5: 0.8 | H5: 13621 | I5: 10743 | J5: 11685 | K5: 7435 | L5: 7422 | M5: 7317 | N5: 7052 | O5: 3700 | P5: 4307 | Q5: 1665 | R5: 3051 | S5: 16232 | T5: 9130 | U5: 10167 | V5: 6903 | W5: 4096 | X5: 8618 | Y5: 7290 | Z5: 3847 | AA5: 4461 | AB5: 1813 | AC5: 3223 | AD5: 19494 | AE5: 9848 | AF5: 12190 | AG5: 8898 | AH5: 9109 | AI5: 9050 | AJ5: 7420 | AK5: 4010 | AL5: 4702 | AM5: 1915 | AN5: 3395 | AO5: 12498 | AP5: 12591 | AQ5: 7800 | AR5: 8890 | AS5: 8577 | AT5: 8632 | AU5: 7450 | AV5: 4088 | AW5: 4746 | AX5: 1955 | AY5: 3471 | AZ5: 9563 | BA5: 10570 | BB5: 8932 | BC5: 8634 | BD5: 10445 | BE5: 7939 | BF5: 7437 | BG5: 4157 | BH5: 4832 | BI5: 2011 | BJ5: 3556 | BK5: 12610 | BL5: 9775 | BM5: 11345 | BN5: 11206 | BO5: 9163 | BP5: 9609 | BQ5: 7999 | BR5: 4333 | BS5: 5154 | BT5: 2068 | BU5: 3805 | BV5: 11384 | BW5: 10352 | BX5: 7549 | BY5: 9044 | BZ5: 8662 | CA5: 8769 | CB5: 8053 | CC5: 4459 | CD5: 5260 | CE5: 2099 | CF5: 3890 | CG5: 12955 | CH5: 11571 | CI5: 11678 | CJ5: 12504 | CK5: 9004 | CL5: 9414 | CM5: 7970 | CN5: 4542 | CO5: 5353 | CP5: 2272 | CQ5: 4039
A6: 2007 | B6: 5 | C6: 7435 | D6: 5465 | E6: 5773 | F6: 0.7 | H6: 10738 | I6: 8952 | J6: 8769 | K6: 5465 | L6: 6229 | M6: 4529 | N6: 6050 | O6: 4760 | P6: 5385 | Q6: 3213 | R6: 3880 | S6: 9628 | T6: 7962 | U6: 4342 | V6: 5907 | W6: 3669 | X6: 6555 | Y6: 6257 | Z6: 4541 | AA6: 5151 | AB6: 3284 | AC6: 3881 | AD6: 11648 | AE6: 9012 | AF6: 8807 | AG6: 6222 | AH6: 6973 | AI6: 7489 | AJ6: 5213 | AK6: 4494 | AL6: 5342 | AM6: 3404 | AN6: 4030 | AO6: 11923 | AP6: 11592 | AQ6: 8519 | AR6: 9484 | AS6: 9231 | AT6: 7324 | AU6: 5305 | AV6: 4393 | AW6: 5378 | AX6: 3468 | AY6: 4109 | AZ6: 13183 | BA6: 8689 | BB6: 11693 | BC6: 10668 | BD6: 8712 | BE6: 7485 | BF6: 6643 | BG6: 4739 | BH6: 5957 | BI6: 3567 | BJ6: 4390 | BK6: 11271 | BL6: 12119 | BM6: 10965 | BN6: 9376 | BO6: 9730 | BP6: 9203 | BQ6: 6711 | BR6: 5004 | BS6: 6275 | BT6: 3730 | BU6: 4637 | BV6: 13305 | BW6: 12454 | BX6: 9952 | BY6: 11469 | BZ6: 10748 | CA6: 7893 | CB6: 7072 | CC6: 4907 | CD6: 6345 | CE6: 3760 | CF6: 4695 | CG6: 15065 | CH6: 11001 | CI6: 13101 | CJ6: 13175 | CK6: 8540 | CL6: 9572 | CM6: 6428 | CN6: 5453 | CO6: 6713 | CP6: 4028 | CQ6: 5020
A7: 2007 | B7: 4 | C7: 7422 | D7: 6229 | E7: 6545 | F7: 0.8 | H7: 11131 | I7: 9249 | J7: 9202 | K7: 5773 | L7: 6545 | M7: 5531 | N7: 6667 | O7: 3981 | P7: 4667 | Q7: 2525 | R7: 3434 | S7: 10492 | T7: 8189 | U7: 5084 | V7: 6100 | W7: 3806 | X7: 7404 | Y7: 6890 | Z7: 4038 | AA7: 4698 | AB7: 2634 | AC7: 3529 | AD7: 12725 | AE7: 9166 | AF7: 9402 | AG7: 6662 | AH7: 7557 | AI7: 8164 | AJ7: 6438 | AK7: 4153 | AL7: 4931 | AM7: 2762 | AN7: 3698 | AO7: 12031 | AP7: 11760 | AQ7: 8374 | AR7: 9325 | AS7: 9010 | AT7: 7867 | AU7: 6463 | AV7: 4183 | AW7: 4978 | AX7: 2829 | AY7: 3780 | AZ7: 12488 | BA7: 9011 | BB7: 10997 | BC7: 10055 | BD7: 9274 | BE7: 7677 | BF7: 7090 | BG7: 4339 | BH7: 5245 | BI7: 2901 | BJ7: 3956 | BK7: 11488 | BL7: 11609 | BM7: 11055 | BN7: 9780 | BO7: 9546 | BP7: 9375 | BQ7: 7442 | BR7: 4552 | BS7: 5581 | BT7: 3046 | BU7: 4215 | BV7: 12923 | BW7: 11980 | BX7: 9455 | BY7: 10813 | BZ7: 10078 | CA7: 8259 | CB7: 7615 | CC7: 4612 | CD7: 5691 | CE7: 3101 | CF7: 4298 | CG7: 14662 | CH7: 11130 | CI7: 12720 | CJ7: 12991 | CK7: 8670 | CL7: 9512 | CM7: 7211 | CN7: 4856 | CO7: 5909 | CP7: 3348 | CQ7: 4546
A8: 2007 | B8: 3 | C8: 7317 | D8: 4529 | E8: 5531 | F8: 0.6 | H8: 0.8 | I8: 0.8 | J8: 0.8 | K8: 0.7 | L8: 0.8 | M8: 0.6 | N8: 0.9 | O8: 1.3 | P8: 1.3 | Q8: 1.9 | R8: 1.3 | S8: 0.6 | T8: 0.9 | U8: 0.4 | V8: 0.9 | W8: 0.9 | X8: 0.8 | Y8: 0.9 | Z8: 1.2 | AA8: 1.2 | AB8: 1.8 | AC8: 1.2 | AD8: 0.6 | AE8: 0.9 | AF8: 0.7 | AG8: 0.7 | AH8: 0.8 | AI8: 0.8 | AJ8: 0.7 | AK8: 1.1 | AL8: 1.1 | AM8: 1.8 | AN8: 1.2 | AO8: 1 | AP8: 0.9 | AQ8: 1.1 | AR8: 1.1 | AS8: 1.1 | AT8: 0.8 | AU8: 0.7 | AV8: 1.1 | AW8: 1.1 | AX8: 1.8 | AY8: 1.2 | AZ8: 1.4 | BA8: 0.8 | BB8: 1.3 | BC8: 1.2 | BD8: 0.8 | BE8: 0.9 | BF8: 0.9 | BG8: 1.1 | BH8: 1.2 | BI8: 1.8 | BJ8: 1.2 | BK8: 0.9 | BL8: 1.2 | BM8: 1 | BN8: 0.8 | BO8: 1.1 | BP8: 1 | BQ8: 0.8 | BR8: 1.2 | BS8: 1.2 | BT8: 1.8 | BU8: 1.2 | BV8: 1.2 | BW8: 1.2 | BX8: 1.3 | BY8: 1.3 | BZ8: 1.2 | CA8: 0.9 | CB8: 0.9 | CC8: 1.1 | CD8: 1.2 | CE8: 1.8 | CF8: 1.2 | CG8: 1.2 | CH8: 1 | CI8: 1.1 | CJ8: 1.1 | CK8: 0.9 | CL8: 1 | CM8: 0.8 | CN8: 1.2 | CO8: 1.3 | CP8: 1.8 | CQ8: 1.2
A9: 2007 | B9: 2 | C9: 7052 | D9: 6050 | E9: 6667 | F9: 0.9
A10: 2007 | B10: 1 | C10: 3700 | D10: 4760 | E10: 3981 | F10: 1.3 | H10: SENZA COMPAGNIE
A11: 2007 | B11: TOT. PREC. | C11: 4307 | D11: 5385 | E11: 4667 | F11: 1.3 | G11: ANNO | H11: 2007 | I11: 2007 | J11: 2007 | K11: 2007 | L11: 2007 | M11: 2007 | N11: 2007 | O11: 2007 | P11: 2007 | Q11: 2007 | R11: 2007 | S11: 2008 | T11: 2008 | U11: 2008 | V11: 2008 | W11: 2008 | X11: 2008 | Y11: 2008 | Z11: 2008 | AA11: 2008 | AB11: 2008 | AC11: 2008 | AD11: 2009 | AE11: 2009 | AF11: 2009 | AG11: 2009 | AH11: 2009 | AI11: 2009 | AJ11: 2009 | AK11: 2009 | AL11: 2009 | AM11: 2009 | AN11: 2009 | AO11: 2010 | AP11: 2010 | AQ11: 2010 | AR11: 2010 | AS11: 2010 | AT11: 2010 | AU11: 2010 | AV11: 2010 | AW11: 2010 | AX11: 2010 | AY11: 2010 | AZ11: 2011 | BA11: 2011 | BB11: 2011 | BC11: 2011 | BD11: 2011 | BE11: 2011 | BF11: 2011 | BG11: 2011 | BH11: 2011 | BI11: 2011 | BJ11: 2011 | BK11: 2012 | BL11: 2012 | BM11: 2012 | BN11: 2012 | BO11: 2012 | BP11: 2012 | BQ11: 2012 | BR11: 2012 | BS11: 2012 | BT11: 2012 | BU11: 2012 | BV11: 2013 | BW11: 2013 | BX11: 2013 | BY11: 2013 | BZ11: 2013 | CA11: 2013 | CB11: 2013 | CC11: 2013 | CD11: 2013 | CE11: 2013 | CF11: 2013 | CG11: 2014 | CH11: 2014 | CI11: 2014 | CJ11: 2014 | CK11: 2014 | CL11: 2014 | CM11: 2014 | CN11: 2014 | CO11: 2014 | CP11: 2014 | CQ11: 2014 | CR11: 
A12: 2007 | B12: 0 | C12: 1665 | D12: 3213 | E12: 2525 | F12: 1.9 | G12: ANTI | H12: 8+ | I12: 7 | J12: 6 | K12: 5 | L12: 4 | M12: 3 | N12: 2 | O12: 1 | P12: TOT. PREC. | Q12: 0 | R12: TOT. GEN. | S12: 8+ | T12: 7 | U12: 6 | V12: 5 | W12: 4 | X12: 3 | Y12: 2 | Z12: 1 | AA12: TOT. PREC. | AB12: 0 | AC12: TOT. GEN. | AD12: 8+ | AE12: 7 | AF12: 6 | AG12: 5 | AH12: 4 | AI12: 3 | AJ12: 2 | AK12: 1 | AL12: TOT. PREC. | AM12: 0 | AN12: TOT. GEN. | AO12: 8+ | AP12: 7 | AQ12: 6 | AR12: 5 | AS12: 4 | AT12: 3 | AU12: 2 | AV12: 1 | AW12: TOT. PREC. | AX12: 0 | AY12: TOT. GEN. | AZ12: 8+ | BA12: 7 | BB12: 6 | BC12: 5 | BD12: 4 | BE12: 3 | BF12: 2 | BG12: 1 | BH12: TOT. PREC. | BI12: 0 | BJ12: TOT. GEN. | BK12: 8+ | BL12: 7 | BM12: 6 | BN12: 5 | BO12: 4 | BP12: 3 | BQ12: 2 | BR12: 1 | BS12: TOT. PREC. | BT12: 0 | BU12: TOT. GEN. | BV12: 8+ | BW12: 7 | BX12: 6 | BY12: 5 | BZ12: 4 | CA12: 3 | CB12: 2 | CC12: 1 | CD12: TOT. PREC. | CE12: 0 | CF12: TOT. GEN. | CG12: 8+ | CH12: 7 | CI12: 6 | CJ12: 5 | CK12: 4 | CL12: 3 | CM12: 2 | CN12: 1 | CO12: TOT. PREC. | CP12: 0 | CQ12: TOT. GEN.
A13: 2007 | B13: TOT. GEN. | C13: 3051 | D13: 3880 | E13: 3434 | F13: 1.3 | G13: PAGM | H13: 13776 | I13: 10752 | J13: 11786 | K13: 7420 | L13: 7409 | M13: 7301 | N13: 7030 | O13: 3689 | P13: 4290 | Q13: 1662 | R13: 3039 | S13: 16336 | T13: 8690 | U13: 10175 | V13: 6841 | W13: 4058 | X13: 8672 | Y13: 7276 | Z13: 3831 | AA13: 4442 | AB13: 1807 | AC13: 3212 | AD13: 19769 | AE13: 9115 | AF13: 12051 | AG13: 8931 | AH13: 9172 | AI13: 9050 | AJ13: 7397 | AK13: 3996 | AL13: 4687 | AM13: 1911 | AN13: 3387 | AO13: 12498 | AP13: 12514 | AQ13: 7791 | AR13: 8821 | AS13: 8547 | AT13: 8642 | AU13: 7463 | AV13: 4095 | AW13: 4753 | AX13: 1955 | AY13: 3474 | AZ13: 9563 | BA13: 10705 | BB13: 8960 | BC13: 8636 | BD13: 10424 | BE13: 7876 | BF13: 7442 | BG13: 4160 | BH13: 4833 | BI13: 2002 | BJ13: 3552 | BK13: 12610 | BL13: 9775 | BM13: 11345 | BN13: 11205 | BO13: 9163 | BP13: 9610 | BQ13: 7998 | BR13: 4333 | BS13: 5154 | BT13: 2068 | BU13: 3805 | BV13: 11384 | BW13: 10352 | BX13: 7549 | BY13: 9044 | BZ13: 8662 | CA13: 8769 | CB13: 8053 | CC13: 4459 | CD13: 5260 | CE13: 2099 | CF13: 3890 | CG13: 12955 | CH13: 11571 | CI13: 11678 | CJ13: 12504 | CK13: 9004 | CL13: 9414 | CM13: 7970 | CN13: 4542 | CO13: 5353 | CP13: 2272 | CQ13: 4039
A14: 2008 | B14: 8+ | C14: 16232 | D14: 9628 | E14: 10492 | F14: 0.6 | G14: RISM | H14: 10655 | I14: 8954 | J14: 8727 | K14: 5296 | L14: 6289 | M14: 4562 | N14: 6214 | O14: 4771 | P14: 5416 | Q14: 3203 | R14: 3874 | S14: 9531 | T14: 7864 | U14: 4114 | V14: 5884 | W14: 3671 | X14: 6910 | Y14: 6326 | Z14: 4530 | AA14: 5157 | AB14: 3257 | AC14: 3861 | AD14: 11575 | AE14: 8876 | AF14: 8889 | AG14: 6406 | AH14: 7535 | AI14: 7621 | AJ14: 5176 | AK14: 4451 | AL14: 5328 | AM14: 3388 | AN14: 4013 | AO14: 11925 | AP14: 11592 | AQ14: 8534 | AR14: 9467 | AS14: 9264 | AT14: 7324 | AU14: 5303 | AV14: 4395 | AW14: 5380 | AX14: 3470 | AY14: 4111 | AZ14: 13185 | BA14: 8676 | BB14: 11627 | BC14: 10693 | BD14: 8687 | BE14: 7511 | BF14: 6646 | BG14: 4742 | BH14: 5960 | BI14: 3563 | BJ14: 4388 | BK14: 11271 | BL14: 12119 | BM14: 10965 | BN14: 9376 | BO14: 9730 | BP14: 9204 | BQ14: 6710 | BR14: 5004 | BS14: 6274 | BT14: 3729 | BU14: 4636 | BV14: 13305 | BW14: 12454 | BX14: 9952 | BY14: 11469 | BZ14: 10748 | CA14: 7893 | CB14: 7072 | CC14: 4907 | CD14: 6345 | CE14: 3760 | CF14: 4695 | CG14: 15065 | CH14: 11001 | CI14: 13101 | CJ14: 13175 | CK14: 8540 | CL14: 9572 | CM14: 6428 | CN14: 5453 | CO14: 6713 | CP14: 4028 | CQ14: 5020
A15: 2008 | B15: 7 | C15: 9130 | D15: 7962 | E15: 8189 | F15: 0.9 | G15: TOTM | H15: 11071 | I15: 9255 | J15: 9180 | K15: 5625 | L15: 6592 | M15: 5554 | N15: 6721 | O15: 3974 | P15: 4663 | Q15: 2519 | R15: 3424 | S15: 10417 | T15: 8022 | U15: 4880 | V15: 6070 | W15: 3797 | X15: 7657 | Y15: 6910 | Z15: 4023 | AA15: 4686 | AB15: 2620 | AC15: 3514 | AD15: 12684 | AE15: 8920 | AF15: 9455 | AG15: 6828 | AH15: 8007 | AI15: 8242 | AJ15: 6406 | AK15: 4131 | AL15: 4916 | AM15: 2753 | AN15: 3686 | AO15: 12032 | AP15: 11747 | AQ15: 8384 | AR15: 9294 | AS15: 9021 | AT15: 7871 | AU15: 6469 | AV15: 4189 | AW15: 4983 | AX15: 2830 | AY15: 3782 | AZ15: 12489 | BA15: 9019 | BB15: 10956 | BC15: 10073 | BD15: 9251 | BE15: 7665 | BF15: 7094 | BG15: 4341 | BH15: 5246 | BI15: 2894 | BJ15: 3952 | BK15: 11488 | BL15: 11609 | BM15: 11055 | BN15: 9780 | BO15: 9546 | BP15: 9376 | BQ15: 7441 | BR15: 4551 | BS15: 5581 | BT15: 3045 | BU15: 4214 | BV15: 12923 | BW15: 11980 | BX15: 9455 | BY15: 10813 | BZ15: 10078 | CA15: 8259 | CB15: 7615 | CC15: 4612 | CD15: 5691 | CE15: 3101 | CF15: 4298 | CG15: 14662 | CH15: 11130 | CI15: 12720 | CJ15: 12991 | CK15: 8670 | CL15: 9512 | CM15: 7211 | CN15: 4856 | CO15: 5909 | CP15: 3348 | CQ15: 4546
A16: 2008 | B16: 6 | C16: 10167 | D16: 4342 | E16: 5084 | F16: 0.4 | G16: RAP | H16: 0.8 | I16: 0.8 | J16: 0.7 | K16: 0.7 | L16: 0.8 | M16: 0.6 | N16: 0.9 | O16: 1.3 | P16: 1.3 | Q16: 1.9 | R16: 1.3 | S16: 0.6 | T16: 0.9 | U16: 0.4 | V16: 0.9 | W16: 0.9 | X16: 0.8 | Y16: 0.9 | Z16: 1.2 | AA16: 1.2 | AB16: 1.8 | AC16: 1.2 | AD16: 0.6 | AE16: 1 | AF16: 0.7 | AG16: 0.7 | AH16: 0.8 | AI16: 0.8 | AJ16: 0.7 | AK16: 1.1 | AL16: 1.1 | AM16: 1.8 | AN16: 1.2 | AO16: 1 | AP16: 0.9 | AQ16: 1.1 | AR16: 1.1 | AS16: 1.1 | AT16: 0.8 | AU16: 0.7 | AV16: 1.1 | AW16: 1.1 | AX16: 1.8 | AY16: 1.2 | AZ16: 1.4 | BA16: 0.8 | BB16: 1.3 | BC16: 1.2 | BD16: 0.8 | BE16: 1 | BF16: 0.9 | BG16: 1.1 | BH16: 1.2 | BI16: 1.8 | BJ16: 1.2 | BK16: 0.9 | BL16: 1.2 | BM16: 1 | BN16: 0.8 | BO16: 1.1 | BP16: 1 | BQ16: 0.8 | BR16: 1.2 | BS16: 1.2 | BT16: 1.8 | BU16: 1.2 | BV16: 1.2 | BW16: 1.2 | BX16: 1.3 | BY16: 1.3 | BZ16: 1.2 | CA16: 0.9 | CB16: 0.9 | CC16: 1.1 | CD16: 1.2 | CE16: 1.8 | CF16: 1.2 | CG16: 1.2 | CH16: 1 | CI16: 1.1 | CJ16: 1.1 | CK16: 0.9 | CL16: 1 | CM16: 0.8 | CN16: 1.2 | CO16: 1.3 | CP16: 1.8 | CQ16: 1.2
A17: 2008 | B17: 5 | C17: 6903 | D17: 5907 | E17: 6100 | F17: 0.9
A18: 2008 | B18: 4 | C18: 4096 | D18: 3669 | E18: 3806 | F18: 0.9
A19: 2008 | B19: 3 | C19: 8618 | D19: 6555 | E19: 7404 | F19: 0.8
A20: 2008 | B20: 2 | C20: 7290 | D20: 6257 | E20: 6890 | F20: 0.9
A21: 2008 | B21: 1 | C21: 3847 | D21: 4541 | E21: 4038 | F21: 1.2
A22: 2008 | B22: TOT. PREC. | C22: 4461 | D22: 5151 | E22: 4698 | F22: 1.2
A23: 2008 | B23: 0 | C23: 1813 | D23: 3284 | E23: 2634 | F23: 1.8
A24: 2008 | B24: TOT. GEN. | C24: 3223 | D24: 3881 | E24: 3529 | F24: 1.2
A25: 2009 | B25: 8+ | C25: 19494 | D25: 11648 | E25: 12725 | F25: 0.6
A26: 2009 | B26: 7 | C26: 9848 | D26: 9012 | E26: 9166 | F26: 0.9
A27: 2009 | B27: 6 | C27: 12190 | D27: 8807 | E27: 9402 | F27: 0.7
A28: 2009 | B28: 5 | C28: 8898 | D28: 6222 | E28: 6662 | F28: 0.7
A29: 2009 | B29: 4 | C29: 9109 | D29: 6973 | E29: 7557 | F29: 0.8
A30: 2009 | B30: 3 | C30: 9050 | D30: 7489 | E30: 8164 | F30: 0.8
A31: 2009 | B31: 2 | C31: 7420 | D31: 5213 | E31: 6438 | F31: 0.7
A32: 2009 | B32: 1 | C32: 4010 | D32: 4494 | E32: 4153 | F32: 1.1
A33: 2009 | B33: TOT. PREC. | C33: 4702 | D33: 5342 | E33: 4931 | F33: 1.1
A34: 2009 | B34: 0 | C34: 1915 | D34: 3404 | E34: 2762 | F34: 1.8
A35: 2009 | B35: TOT. GEN. | C35: 3395 | D35: 4030 | E35: 3698 | F35: 1.2
A36: 2010 | B36: 8+ | C36: 12498 | D36: 11923 | E36: 12031 | F36: 1
A37: 2010 | B37: 7 | C37: 12591 | D37: 11592 | E37: 11760 | F37: 0.9
A38: 2010 | B38: 6 | C38: 7800 | D38: 8519 | E38: 8374 | F38: 1.1
A39: 2010 | B39: 5 | C39: 8890 | D39: 9484 | E39: 9325 | F39: 1.1
A40: 2010 | B40: 4 | C40: 8577 | D40: 9231 | E40: 9010 | F40: 1.1
A41: 2010 | B41: 3 | C41: 8632 | D41: 7324 | E41: 7867 | F41: 0.8
A42: 2010 | B42: 2 | C42: 7450 | D42: 5305 | E42: 6463 | F42: 0.7
A43: 2010 | B43: 1 | C43: 4088 | D43: 4393 | E43: 4183 | F43: 1.1
A44: 2010 | B44: TOT. PREC. | C44: 4746 | D44: 5378 | E44: 4978 | F44: 1.1
A45: 2010 | B45: 0 | C45: 1955 | D45: 3468 | E45: 2829 | F45: 1.8
A46: 2010 | B46: TOT. GEN. | C46: 3471 | D46: 4109 | E46: 3780 | F46: 1.2
A47: 2011 | B47: 8+ | C47: 9563 | D47: 13183 | E47: 12488 | F47: 1.4
A48: 2011 | B48: 7 | C48: 10570 | D48: 8689 | E48: 9011 | F48: 0.8
A49: 2011 | B49: 6 | C49: 8932 | D49: 11693 | E49: 10997 | F49: 1.3
A50: 2011 | B50: 5 | C50: 8634 | D50: 10668 | E50: 10055 | F50: 1.2
A51: 2011 | B51: 4 | C51: 10445 | D51: 8712 | E51: 9274 | F51: 0.8
A52: 2011 | B52: 3 | C52: 7939 | D52: 7485 | E52: 7677 | F52: 0.9
A53: 2011 | B53: 2 | C53: 7437 | D53: 6643 | E53: 7090 | F53: 0.9
A54: 2011 | B54: 1 | C54: 4157 | D54: 4739 | E54: 4339 | F54: 1.1
A55: 2011 | B55: TOT. PREC. | C55: 4832 | D55: 5957 | E55: 5245 | F55: 1.2
A56: 2011 | B56: 0 | C56: 2011 | D56: 3567 | E56: 2901 | F56: 1.8
A57: 2011 | B57: TOT. GEN. | C57: 3556 | D57: 4390 | E57: 3956 | F57: 1.2
A58: 2012 | B58: 8+ | C58: 12610 | D58: 11271 | E58: 11488 | F58: 0.9
A59: 2012 | B59: 7 | C59: 9775 | D59: 12119 | E59: 11609 | F59: 1.2
A60: 2012 | B60: 6 | C60: 11345 | D60: 10965 | E60: 11055 | F60: 1
A61: 2012 | B61: 5 | C61: 11206 | D61: 9376 | E61: 9780 | F61: 0.8
A62: 2012 | B62: 4 | C62: 9163 | D62: 9730 | E62: 9546 | F62: 1.1
A63: 2012 | B63: 3 | C63: 9609 | D63: 9203 | E63: 9375 | F63: 1
A64: 2012 | B64: 2 | C64: 7999 | D64: 6711 | E64: 7442 | F64: 0.8
A65: 2012 | B65: 1 | C65: 4333 | D65: 5004 | E65: 4552 | F65: 1.2
A66: 2012 | B66: TOT. PREC. | C66: 5154 | D66: 6275 | E66: 5581 | F66: 1.2
A67: 2012 | B67: 0 | C67: 2068 | D67: 3730 | E67: 3046 | F67: 1.8
A68: 2012 | B68: TOT. GEN. | C68: 3805 | D68: 4637 | E68: 4215 | F68: 1.2
A69: 2013 | B69: 8+ | C69: 11384 | D69: 13305 | E69: 12923 | F69: 1.2
A70: 2013 | B70: 7 | C70: 10352 | D70: 12454 | E70: 11980 | F70: 1.2
A71: 2013 | B71: 6 | C71: 7549 | D71: 9952 | E71: 9455 | F71: 1.3
A72: 2013 | B72: 5 | C72: 9044 | D72: 11469 | E72: 10813 | F72: 1.3
A73: 2013 | B73: 4 | C73: 8662 | D73: 10748 | E73: 10078 | F73: 1.2
A74: 2013 | B74: 3 | C74: 8769 | D74: 7893 | E74: 8259 | F74: 0.9
A75: 2013 | B75: 2 | C75: 8053 | D75: 7072 | E75: 7615 | F75: 0.9
A76: 2013 | B76: 1 | C76: 4459 | D76: 4907 | E76: 4612 | F76: 1.1
A77: 2013 | B77: TOT. PREC. | C77: 5260 | D77: 6345 | E77: 5691 | F77: 1.2
A78: 2013 | B78: 0 | C78: 2099 | D78: 3760 | E78: 3101 | F78: 1.8
A79: 2013 | B79: TOT. GEN. | C79: 3890 | D79: 4695 | E79: 4298 | F79: 1.2
A80: 2014 | B80: 8+ | C80: 12955 | D80: 15065 | E80: 14662 | F80: 1.2
A81: 2014 | B81: 7 | C81: 11571 | D81: 11001 | E81: 11130 | F81: 1
A82: 2014 | B82: 6 | C82: 11678 | D82: 13101 | E82: 12720 | F82: 1.1
A83: 2014 | B83: 5 | C83: 12504 | D83: 13175 | E83: 12991 | F83: 1.1
A84: 2014 | B84: 4 | C84: 9004 | D84: 8540 | E84: 8670 | F84: 0.9
A85: 2014 | B85: 3 | C85: 9414 | D85: 9572 | E85: 9512 | F85: 1
A86: 2014 | B86: 2 | C86: 7970 | D86: 6428 | E86: 7211 | F86: 0.8
A87: 2014 | B87: 1 | C87: 4542 | D87: 5453 | E87: 4856 | F87: 1.2
A88: 2014 | B88: TOT. PREC. | C88: 5353 | D88: 6713 | E88: 5909 | F88: 1.3
A89: 2014 | B89: 0 | C89: 2272 | D89: 4028 | E89: 3348 | F89: 1.8
A90: 2014 | B90: TOT. GEN. | C90: 4039 | D90: 5020 | E90: 4546 | F90: 1.2
A91: 

Sheet fd_18 (hidden)
A1: PROS | B1: GENE | C1: IMPSIN | D1: NUMSIN | E1: CMEDIO | F1: INC | H1: SENZA COMPAGNIE E
A2: 18 | B2: 2007 | C2: 1539 | D2: 487414 | E2: 3157 | F2: 0 | H2: SENZA INFLAZIONE
A3: 18 | B3: 2008 | C3: 1563 | D3: 472110 | E3: 3311 | F3: 4.9 | H3: TABSAR01
A4: 18 | B4: 2009 | C4: 1598 | D4: 463003 | E4: 3451 | F4: 4.3
A5: 18 | B5: 2010 | C5: 1534 | D5: 436039 | E5: 3518 | F5: 1.9 | G5: =(E5/E4-1)*100 -> 1.9
A6: 18 | B6: 2011 | C6: 1484 | D6: 404198 | E6: 3671 | F6: 4.4 | G6: =(E6/E5-1)*100 -> 4.3 | I6: PROSPETTO 18
A7: 18 | B7: 2012 | C7: 1384 | D7: 366630 | E7: 3775 | F7: 2.8 | G7: =(E7/E6-1)*100 -> 2.8
A8: 18 | B8: 2013 | C8: 1393 | D8: 369664 | E8: 3768 | F8: -0.2 | G8: =(E8/E7-1)*100 -> -0.2
A9: 18 | B9: 2014 | C9: 1386 | D9: 408300 | E9: 3395 | F9: -9.9 | G9: =(E9/E8-1)*100 -> -9.9
A13: PROS | B13: GENE | C13: IMPSIN | D13: NUMSIN | E13: CMEDIO | F13: INC | H13: SENZA COMPAGNIE E
A14: 18 | B14: 2007 | C14: 1694 | D14: 487414 | E14: 3475 | F14: 0 | H14: CON INFLAZIONE
A15: 18 | B15: 2008 | C15: 1695 | D15: 472110 | E15: 3590 | F15: 3.3 | H15: TABS0R01
A16: 18 | B16: 2009 | C16: 1705 | D16: 463003 | E16: 3682 | F16: 2.6
A17: 18 | B17: 2010 | C17: 1601 | D17: 436039 | E17: 3672 | F17: -0.3 | G17: =(E17/E16-1)*100 -> -0.3
A18: 18 | B18: 2011 | C18: 1511 | D18: 404198 | E18: 3738 | F18: 1.8 | G18: =(E18/E17-1)*100 -> 1.8
A19: 18 | B19: 2012 | C19: 1389 | D19: 366630 | E19: 3789 | F19: 1.3 | G19: =(E19/E18-1)*100 -> 1.4 | I19: PROSPETTO 18 BIS
A20: 18 | B20: 2013 | C20: 1394 | D20: 369664 | E20: 3771 | F20: -0.5 | G20: =(E20/E19-1)*100 -> -0.5
A21: 18 | B21: 2014 | C21: 1386 | D21: 408300 | E21: 3395 | F21: -10 | G21: =(E21/E20-1)*100 -> -10.0

Sheet fd-19-20 (hidden)
B1: prospetto 19
B2: 2007 | C2: 2008 | D2: 2009 | E2: 2010 | F2: 2011 | G2: 2012 | H2: 2013 | I2: 2014
A3: TOTALE MERCATO | B3: 1696 | C3: 1675 | D3: 1698 | E3: 1722 | F3: 1747 | G3: 1713 | H3: 1683 | I3: 1637 | K3: copiare trasponendo la tabella sottostante
B4: -79 | C4: -123 | D4: -187 | E4: -121 | F4: -88 | G4: -69 | H4: -19 | I4: -14
B5: 330 | C5: 325 | D5: 315 | E5: 323 | F5: 316 | G5: 301 | H5: 294 | I5: 286
B6: -69 | C6: -64 | D6: -59 | E6: -55 | F6: -53 | G6: -49 | H6: -44 | I6: -42
B7: 181 | C7: 138 | D7: 68 | E7: 147 | F7: 175 | G7: 182 | H7: 231 | I7: 230
B8: 15 | C8: 11.8 | D8: 6 | E8: 12.6 | F8: 14.9 | G8: 15.9 | H8: 20.5 | I8: 21.4
B9: 10.7 | C9: 8.3 | D9: 4 | E9: 8.5 | F9: 10 | G9: 10.6 | H9: 13.7 | I9: 14
B10: -74 | C10: -61 | D10: -56 | E10: -70 | F10: -92 | G10: -89 | H10: -93 | I10: -121
B11: -15.2 | C11: -12.2 | D11: -10 | E11: -12.6 | F11: -16.1 | G11: -15.6 | H11: -16.7 | I11: -21.6
B12: -4.4 | C12: -3.7 | D12: -3.3 | E12: -4 | F12: -5.3 | G12: -5.2 | H12: -5.5 | I12: -7.4
B13: 107 | C13: 77 | D13: 12 | E13: 77 | F13: 83 | G13: 93 | H13: 138 | I13: 109
B14: 6.3 | C14: 4.6 | D14: 0.7 | E14: 4.5 | F14: 4.8 | G14: 5.5 | H14: 8.2 | I14: 6.6
B17: prospetto 20
A18: P>=100 MLN | B18: 2007 | C18: 2008 | D18: 2009 | E18: 2010 | F18: 2011 | G18: 2012 | H18: 2013 | I18: 2014
B19: 1049 | C19: 1047 | D19: 1109 | E19: 1178 | F19: 1315 | G19: 1288 | H19: 1139 | I19: 1148
B20: -65 | C20: -102 | D20: -170 | E20: -96 | F20: -78 | G20: -62 | H20: -20 | I20: -13
B21: 199 | C21: 197 | D21: 197 | E21: 213 | F21: 223 | G21: 216 | H21: 195 | I21: 201
B22: -47 | C22: -43 | D22: -40 | E22: -37 | F22: -40 | G22: -38 | H22: -31 | I22: -28
B23: 88 | C23: 53 | D23: -13 | E23: 79 | F23: 106 | G23: 115 | H23: 144 | I23: 160
B24: 11.5 | C24: 7.1 | D24: -1.8 | E24: 9.7 | F24: 12 | G24: 13.3 | H24: 18.3 | I24: 20.2
B25: 8.4 | C25: 5 | D25: -1.2 | E25: 6.7 | F25: 8.1 | G25: 9 | H25: 12.6 | I25: 13.9
B26: -52 | C26: -34 | D26: -35 | E26: -52 | F26: -72 | G26: -73 | H26: -72 | I26: -103
B27: -18 | C27: -11.2 | D27: -9.4 | E27: -14.1 | F27: -16.8 | G27: -17.4 | H27: -20.4 | I27: -29
B28: -4.9 | C28: -3.3 | D28: -3.2 | E28: -4.4 | F28: -5.5 | G28: -5.7 | H28: -6.3 | I28: -9
B29: 36 | C29: 18 | D29: -48 | E29: 26 | F29: 34 | G29: 42 | H29: 73 | I29: 56
B30: 3.4 | C30: 1.7 | D30: -4.4 | E30: 2.2 | F30: 2.6 | G30: 3.3 | H30: 6.4 | I30: 4.9
B31: 2007 | C31: 2008 | D31: 2009 | E31: 2010 | F31: 2011 | G31: 2012 | H31: 2013 | I31: 2014
A32: 50 MLN=<P<100 MLN | B32: 286 | C32: 250 | D32: 264 | E32: 222 | F32: 97 | G32: 110 | H32: 139 | I32: 73
B33: -15 | C33: -24 | D33: -21 | E33: -20 | F33: -11 | G33: -10 | H33: -3 | I33: -2
B34: 65 | C34: 59 | D34: 55 | E34: 48 | F34: 24 | G34: 25 | H34: 27 | I34: 12
B35: -15 | C35: -13 | D35: -12 | E35: -11 | F35: -8 | G35: -6 | H35: -4 | I35: -4
B36: 36 | C36: 22 | D36: 21 | E36: 17 | F36: 5 | G36: 10 | H36: 21 | I36: 6
B37: 17.2 | C37: 11.9 | D37: 11.2 | E37: 10.4 | F37: 7.3 | G37: 12.7 | H37: 22.5 | I37: 12.1
B38: 12.5 | C38: 8.8 | D38: 8.1 | E38: 7.5 | F38: 5.2 | G38: 8.9 | H38: 15.2 | I38: 8.5
B39: -10 | C39: -14 | D39: -13 | E39: -14 | F39: -8 | G39: -5 | H39: -5 | I39: -2
B40: -13.2 | C40: -21.5 | D40: -18.1 | E40: -22.9 | F40: -26.4 | G40: -16.5 | H40: -11.5 | I40: -9.7
B41: -3.6 | C41: -5.6 | D41: -5 | E41: -6.4 | F41: -7.9 | G41: -4.9 | H41: -3.7 | I41: -2.9
B42: 25 | C42: 8 | D42: 8 | E42: 3 | F42: -3 | G42: 4 | H42: 16 | I42: 4
B43: 8.9 | C43: 3.2 | D43: 3.1 | E43: 1.1 | F43: -2.7 | G43: 4 | H43: 11.5 | I43: 5.6
B44: 2007 | C44: 2008 | D44: 2009 | E44: 2010 | F44: 2011 | G44: 2012 | H44: 2013 | I44: 2014
A45: 10 MLN=<P<50 MLN | B45: 294 | C45: 317 | D45: 276 | E45: 277 | F45: 295 | G45: 276 | H45: 361 | I45: 372
B46: 0 | C46: 1 | D46: 4 | E46: -2 | F46: 1 | G46: 3 | H46: 2 | I46: 2
B47: 49 | C47: 54 | D47: 53 | E47: 52 | F47: 59 | G47: 50 | H47: 62 | I47: 62
B48: -6 | C48: -7 | D48: -6 | E48: -6 | F48: -5 | G48: -5 | H48: -8 | I48: -9
B49: 44 | C49: 49 | D49: 51 | E49: 45 | F49: 55 | G49: 48 | H49: 56 | I49: 55
B50: 22 | C50: 22.9 | D50: 27.7 | E50: 25.3 | F50: 27.9 | G50: 27.4 | H50: 26 | I50: 26.5
B51: 14.8 | C51: 15.3 | D51: 18.5 | E51: 16.1 | F51: 18.5 | G51: 17.5 | H51: 15.6 | I51: 14.9
B52: -10 | C52: -11 | D52: -7 | E52: -5 | F52: -11 | G52: -9 | H52: -16 | I52: -17
B53: -10.3 | C53: -10.6 | D53: -7.8 | E53: -5.2 | F53: -11.3 | G53: -9.2 | H53: -11.2 | I53: -10.6
B54: -3.4 | C54: -3.5 | D54: -2.6 | E54: -1.9 | F54: -3.8 | G54: -3.3 | H54: -4.5 | I54: -4.6
B55: 34 | C55: 38 | D55: 44 | E55: 39 | F55: 44 | G55: 39 | H55: 40 | I55: 38
B56: 11.4 | C56: 11.9 | D56: 15.9 | E56: 14.2 | F56: 14.7 | G56: 14.2 | H56: 11.1 | I56: 10.2
B57: 2007 | C57: 2008 | D57: 2009 | E57: 2010 | F57: 2011 | G57: 2012 | H57: 2013 | I57: 2014
A58: P<10 MLN | B58: 66 | C58: 61 | D58: 49 | E58: 45 | F58: 40 | G58: 39 | H58: 43 | I58: 44
B59: 0 | C59: 2 | D59: 0 | E59: -2 | F59: 0 | G59: 0 | H59: 1 | I59: -2
B60: 16 | C60: 14 | D60: 9 | E60: 10 | F60: 10 | G60: 10 | H60: 10 | I60: 11
B61: -1 | C61: -1 | D61: -1 | E61: -1 | F61: -1 | G61: -1 | H61: -1 | I61: -1
B62: 14 | C62: 15 | D62: 8 | E62: 7 | F62: 9 | G62: 9 | H62: 10 | I62: 9
B63: 36.9 | C63: 42 | D63: 30.6 | E63: 28.9 | F63: 39.4 | G63: 35.4 | H63: 36.2 | I63: 32.6
B64: 21.4 | C64: 24.5 | D64: 17.3 | E64: 16 | F64: 23.2 | G64: 22.8 | H64: 22.6 | I64: 19.2
B65: -3 | C65: -2 | D65: -1 | E65: 2 | F65: -1 | G65: -1 | H65: 0 | I65: 2
B66: -9.5 | C66: -7.4 | D66: -2.6 | E66: 9.6 | F66: -6.7 | G66: -7.5 | H66: -1.2 | I66: 9.2
B67: -4 | C67: -3.1 | D67: -1.1 | E67: 4.3 | F67: -2.7 | G67: -2.7 | H67: -0.4 | I67: 3.8
B68: 11 | C68: 13 | D68: 8 | E68: 9 | F68: 8 | G68: 8 | H68: 10 | I68: 10
B69: 17.4 | C69: 21.5 | D69: 16.2 | E69: 20.3 | F69: 20.4 | G69: 20.2 | H69: 22.2 | I69: 23
A72: FASCIA | B72: ANNO | C72: R01 | D72: R02 | E72: R04 | F72: R05 | G72: R06 | H72: R07 | I72: R08 | J72: R11 | K72: R12 | L72: R13 | M72: R14 | N72: R15
A73: P>=100 MLN | B73: 2007 | C73: 1049 | D73: -65 | E73: 199 | F73: -47 | G73: 88 | H73: 11.5 | I73: 8.4 | J73: -52 | K73: -18 | L73: -4.9 | M73: 36 | N73: 3.4
A74: P>=100 MLN | B74: 2008 | C74: 1047 | D74: -102 | E74: 197 | F74: -43 | G74: 53 | H74: 7.1 | I74: 5 | J74: -34 | K74: -11.2 | L74: -3.3 | M74: 18 | N74: 1.7
A75: P>=100 MLN | B75: 2009 | C75: 1109 | D75: -170 | E75: 197 | F75: -40 | G75: -13 | H75: -1.8 | I75: -1.2 | J75: -35 | K75: -9.4 | L75: -3.2 | M75: -48 | N75: -4.4
A76: P>=100 MLN | B76: 2010 | C76: 1178 | D76: -96 | E76: 213 | F76: -37 | G76: 79 | H76: 9.7 | I76: 6.7 | J76: -52 | K76: -14.1 | L76: -4.4 | M76: 26 | N76: 2.2
A77: P>=100 MLN | B77: 2011 | C77: 1315 | D77: -78 | E77: 223 | F77: -40 | G77: 106 | H77: 12 | I77: 8.1 | J77: -72 | K77: -16.8 | L77: -5.5 | M77: 34 | N77: 2.6
A78: P>=100 MLN | B78: 2012 | C78: 1288 | D78: -62 | E78: 216 | F78: -38 | G78: 115 | H78: 13.3 | I78: 9 | J78: -73 | K78: -17.4 | L78: -5.7 | M78: 42 | N78: 3.3
A79: P>=100 MLN | B79: 2013 | C79: 1139 | D79: -20 | E79: 195 | F79: -31 | G79: 144 | H79: 18.3 | I79: 12.6 | J79: -72 | K79: -20.4 | L79: -6.3 | M79: 73 | N79: 6.4
A80: P>=100 MLN | B80: 2014 | C80: 1148 | D80: -13 | E80: 201 | F80: -28 | G80: 160 | H80: 20.2 | I80: 13.9 | J80: -103 | K80: -29 | L80: -9 | M80: 56 | N80: 4.9
A81: 50 MLN=<P<100 MLN | B81: 2007 | C81: 286 | D81: -15 | E81: 65 | F81: -15 | G81: 36 | H81: 17.2 | I81: 12.5 | J81: -10 | K81: -13.2 | L81: -3.6 | M81: 25 | N81: 8.9
A82: 50 MLN=<P<100 MLN | B82: 2008 | C82: 250 | D82: -24 | E82: 59 | F82: -13 | G82: 22 | H82: 11.9 | I82: 8.8 | J82: -14 | K82: -21.5 | L82: -5.6 | M82: 8 | N82: 3.2
A83: 50 MLN=<P<100 MLN | B83: 2009 | C83: 264 | D83: -21 | E83: 55 | F83: -12 | G83: 21 | H83: 11.2 | I83: 8.1 | J83: -13 | K83: -18.1 | L83: -5 | M83: 8 | N83: 3.1
A84: 50 MLN=<P<100 MLN | B84: 2010 | C84: 222 | D84: -20 | E84: 48 | F84: -11 | G84: 17 | H84: 10.4 | I84: 7.5 | J84: -14 | K84: -22.9 | L84: -6.4 | M84: 3 | N84: 1.1
A85: 50 MLN=<P<100 MLN | B85: 2011 | C85: 97 | D85: -11 | E85: 24 | F85: -8 | G85: 5 | H85: 7.3 | I85: 5.2 | J85: -8 | K85: -26.4 | L85: -7.9 | M85: -3 | N85: -2.7
A86: 50 MLN=<P<100 MLN | B86: 2012 | C86: 110 | D86: -10 | E86: 25 | F86: -6 | G86: 10 | H86: 12.7 | I86: 8.9 | J86: -5 | K86: -16.5 | L86: -4.9 | M86: 4 | N86: 4
A87: 50 MLN=<P<100 MLN | B87: 2013 | C87: 139 | D87: -3 | E87: 27 | F87: -4 | G87: 21 | H87: 22.5 | I87: 15.2 | J87: -5 | K87: -11.5 | L87: -3.7 | M87: 16 | N87: 11.5
A88: 50 MLN=<P<100 MLN | B88: 2014 | C88: 73 | D88: -2 | E88: 12 | F88: -4 | G88: 6 | H88: 12.1 | I88: 8.5 | J88: -2 | K88: -9.7 | L88: -2.9 | M88: 4 | N88: 5.6
A89: 10 MLN=<P<50 MLN | B89: 2007 | C89: 294 | D89: 0 | E89: 49 | F89: -6 | G89: 44 | H89: 22 | I89: 14.8 | J89: -10 | K89: -10.3 | L89: -3.4 | M89: 34 | N89: 11.4
A90: 10 MLN=<P<50 MLN | B90: 2008 | C90: 317 | D90: 1 | E90: 54 | F90: -7 | G90: 49 | H90: 22.9 | I90: 15.3 | J90: -11 | K90: -10.6 | L90: -3.5 | M90: 38 | N90: 11.9
A91: 10 MLN=<P<50 MLN | B91: 2009 | C91: 276 | D91: 4 | E91: 53 | F91: -6 | G91: 51 | H91: 27.7 | I91: 18.5 | J91: -7 | K91: -7.8 | L91: -2.6 | M91: 44 | N91: 15.9
A92: 10 MLN=<P<50 MLN | B92: 2010 | C92: 277 | D92: -2 | E92: 52 | F92: -6 | G92: 45 | H92: 25.3 | I92: 16.1 | J92: -5 | K92: -5.2 | L92: -1.9 | M92: 39 | N92: 14.2
A93: 10 MLN=<P<50 MLN | B93: 2011 | C93: 295 | D93: 1 | E93: 59 | F93: -5 | G93: 55 | H93: 27.9 | I93: 18.5 | J93: -11 | K93: -11.3 | L93: -3.8 | M93: 44 | N93: 14.7
A94: 10 MLN=<P<50 MLN | B94: 2012 | C94: 276 | D94: 3 | E94: 50 | F94: -5 | G94: 48 | H94: 27.4 | I94: 17.5 | J94: -9 | K94: -9.2 | L94: -3.3 | M94: 39 | N94: 14.2
A95: 10 MLN=<P<50 MLN | B95: 2013 | C95: 361 | D95: 2 | E95: 62 | F95: -8 | G95: 56 | H95: 26 | I95: 15.6 | J95: -16 | K95: -11.2 | L95: -4.5 | M95: 40 | N95: 11.1
A96: 10 MLN=<P<50 MLN | B96: 2014 | C96: 372 | D96: 2 | E96: 62 | F96: -9 | G96: 55 | H96: 26.5 | I96: 14.9 | J96: -17 | K96: -10.6 | L96: -4.6 | M96: 38 | N96: 10.2
A97: P<10 MLN | B97: 2007 | C97: 66 | D97: 0 | E97: 16 | F97: -1 | G97: 14 | H97: 36.9 | I97: 21.4 | J97: -3 | K97: -9.5 | L97: -4 | M97: 11 | N97: 17.4
A98: P<10 MLN | B98: 2008 | C98: 61 | D98: 2 | E98: 14 | F98: -1 | G98: 15 | H98: 42 | I98: 24.5 | J98: -2 | K98: -7.4 | L98: -3.1 | M98: 13 | N98: 21.5
A99: P<10 MLN | B99: 2009 | C99: 49 | D99: 0 | E99: 9 | F99: -1 | G99: 8 | H99: 30.6 | I99: 17.3 | J99: -1 | K99: -2.6 | L99: -1.1 | M99: 8 | N99: 16.2
A100: P<10 MLN | B100: 2010 | C100: 45 | D100: -2 | E100: 10 | F100: -1 | G100: 7 | H100: 28.9 | I100: 16 | J100: 2 | K100: 9.6 | L100: 4.3 | M100: 9 | N100: 20.3
A101: P<10 MLN | B101: 2011 | C101: 40 | D101: 0 | E101: 10 | F101: -1 | G101: 9 | H101: 39.4 | I101: 23.2 | J101: -1 | K101: -6.7 | L101: -2.7 | M101: 8 | N101: 20.4
A102: P<10 MLN | B102: 2012 | C102: 39 | D102: 0 | E102: 10 | F102: -1 | G102: 9 | H102: 35.4 | I102: 22.8 | J102: -1 | K102: -7.5 | L102: -2.7 | M102: 8 | N102: 20.2
A103: P<10 MLN | B103: 2013 | C103: 43 | D103: 1 | E103: 10 | F103: -1 | G103: 10 | H103: 36.2 | I103: 22.6 | J103: 0 | K103: -1.2 | L103: -0.4 | M103: 10 | N103: 22.2
A104: P<10 MLN | B104: 2014 | C104: 44 | D104: -2 | E104: 11 | F104: -1 | G104: 9 | H104: 32.6 | I104: 19.2 | J104: 2 | K104: 9.2 | L104: 3.8 | M104: 10 | N104: 23
A105: TOTALE MERCATO | B105: 2007 | C105: 1696 | D105: -79 | E105: 330 | F105: -69 | G105: 181 | H105: 15 | I105: 10.7 | J105: -74 | K105: -15.2 | L105: -4.4 | M105: 107 | N105: 6.3
A106: TOTALE MERCATO | B106: 2008 | C106: 1675 | D106: -123 | E106: 325 | F106: -64 | G106: 138 | H106: 11.8 | I106: 8.3 | J106: -61 | K106: -12.2 | L106: -3.7 | M106: 77 | N106: 4.6
A107: TOTALE MERCATO | B107: 2009 | C107: 1698 | D107: -187 | E107: 315 | F107: -59 | G107: 68 | H107: 6 | I107: 4 | J107: -56 | K107: -10 | L107: -3.3 | M107: 12 | N107: 0.7
A108: TOTALE MERCATO | B108: 2010 | C108: 1722 | D108: -121 | E108: 323 | F108: -55 | G108: 147 | H108: 12.6 | I108: 8.5 | J108: -70 | K108: -12.6 | L108: -4 | M108: 77 | N108: 4.5
A109: TOTALE MERCATO | B109: 2011 | C109: 1747 | D109: -88 | E109: 316 | F109: -53 | G109: 175 | H109: 14.9 | I109: 10 | J109: -92 | K109: -16.1 | L109: -5.3 | M109: 83 | N109: 4.8
A110: TOTALE MERCATO | B110: 2012 | C110: 1713 | D110: -69 | E110: 301 | F110: -49 | G110: 182 | H110: 15.9 | I110: 10.6 | J110: -89 | K110: -15.6 | L110: -5.2 | M110: 93 | N110: 5.5
A111: TOTALE MERCATO | B111: 2013 | C111: 1683 | D111: -19 | E111: 294 | F111: -44 | G111: 231 | H111: 20.5 | I111: 13.7 | J111: -93 | K111: -16.7 | L111: -5.5 | M111: 138 | N111: 8.2
A112: TOTALE MERCATO | B112: 2014 | C112: 1637 | D112: -14 | E112: 286 | F112: -42 | G112: 230 | H112: 21.4 | I112: 14 | J112: -121 | K112: -21.6 | L112: -7.4 | M112: 109 | N112: 6.6
A113: 

Sheet 8
A3: TAVOLA N. 8
A5: Ramo I - Sintesi del conto tecnico del ramo
A7: (importi in milioni di euro)
A8: Voci | B8: 2014 | C8: =+B8+1 -> 2015 | D8: Var. % 15/14 | E8: =+C8+1 -> 2016 | F8: Var. % 16/15 | G8: =+E8+1 -> 2017 | H8: Var. % 17/16 | I8: =+G8+1 -> 2018 | J8: Var. % 18/17 | K8: =+I8+1 -> 2019 | L8: Var. % 19/18
A9: Premi contabilizzati | B9: 82,578 | C9: 77,875 | D9: =+(C9-B9)/C9*100 -> -6.04 | E9: 73,635 | F9: =+(E9-C9)/E9*100 -> -5.76 | G9: 62,778 | H9: =+(G9-E9)/G9*100 -> -17.29 | I9: 66,181 | J9: =+(I9-G9)/I9*100 -> 5.14 | K9: 72,637 | L9: =+(K9-I9)/K9*100 -> 8.89
A10: Oneri relativi ai sinistri | B10: -42,374 | C10: -49,192 | D10: 13.86 | E10: -44,697 | F10: -10.06 | G10: -46,105 | H10: 3.05 | I10: -50,196 | J10: 8.15 | K10: -50,762 | L10: 1.11
A11: Variazione riserve tecniche | B11: -47,549 | C11: -36,071 | D11: -31.82 | E11: -36,623 | F11: 1.51 | G11: -23,744 | H11: -54.24 | I11: -22,968 | J11: -3.38 | K11: -28,601 | L11: 19.69
A12: Altre partite tecniche | B12: -867 | C12: -1,006 | D12: 13.82 | E12: -1,075 | F12: 6.42 | G12: -1,197 | H12: 10.17 | I12: -1,263 | J12: 5.27 | K12: -1,424 | L12: 11.31
A13: Spese di gestione | B13: -3,107 | C13: -3,044 | D13: -2.07 | E13: -3,021 | F13: -0.76 | G13: -2,892 | H13: -4.47 | I13: -2,835 | J13: -2.01 | K13: -2,909 | L13: 2.54
A14: Redditi investimenti al netto quota utile trasferito | B14: 12,851 | C14: 13,004 | D14: 1.18 | E14: 13,629 | F14: 4.59 | G14: 13,516 | H14: -0.84 | I14: 11,120 | J14: -21.55 | K14: 15,922 | L14: 30.16
A15: Risultato del conto tecnico al lordo della riassicurazione | B15: 1,533 | C15: 1,565 | D15: 2.04 | E15: 2,876 | F15: 45.58 | G15: 2,356 | H15: -22.06 | I15: 38 | J15: -6,087.76 | K15: 4,863 | L15: 99.22
A16: Risultato del conto tecnico al netto della riassicurazione | B16: 1,682 | C16: 1,656 | D16: -1.57 | E16: 2,950 | F16: 43.86 | G16: 2,411 | H16: -22.35 | I16: 108 | J16: -2,139.68 | K16: 4,974 | L16: 97.84
A17: Fonte: Regolamento ISVAP n. 22/2008, Modulo 20, ramo I

Sheet fd_21 (hidden)
A1: prospetto 21
A2: ANNO | B2: ANTI | C2: NPAG | D2: INC1 | E2: IPAG | F2: INC2 | G2: PAGM | H2: RAP1 | I2: NRIS | J2: INC3 | K2: IRIS | L2: INC4 | M2: RISM | N2: RAP2
A3: 2007 | B3: 8+ | C3: 165 | D3: 21.6 | E3: 4 | F3: 42.1 | G3: 26499 | H3: 1.9 | I3: 1060 | J3: 22 | K3: 25 | L3: 48.3 | M3: 23571 | N3: 2.2
A4: 2007 | B4: 7 | C4: 62 | D4: 18.2 | E4: 1 | F4: 35.8 | G4: 21155 | H4: 2 | I4: 368 | J4: 21.5 | K4: 7 | L4: 43.2 | M4: 18031 | N4: 2
A5: 2007 | B5: 6 | C5: 76 | D5: 16.3 | E5: 1 | F5: 25.8 | G5: 18518 | H5: 1.6 | I5: 461 | J5: 17.3 | K5: 10 | L5: 40.8 | M5: 20762 | N5: 2.4
A6: 2007 | B6: 5 | C6: 111 | D6: 11.5 | E6: 1 | F6: 20 | G6: 12871 | H6: 1.7 | I6: 520 | J6: 10 | K6: 9 | L6: 30.5 | M6: 16617 | N6: 3
A7: 2007 | B7: 4 | C7: 123 | D7: 5.7 | E7: 1 | F7: 8.2 | G7: 10799 | H7: 1.5 | I7: 635 | J7: 10.5 | K7: 11 | L7: 29.5 | M7: 17486 | N7: 2.8
A8: 2007 | B8: 3 | C8: 113 | D8: 1.6 | E8: 2 | F8: 3.1 | G8: 13738 | H8: 1.9 | I8: 607 | J8: 4.9 | K8: 9 | L8: 15.2 | M8: 14044 | N8: 3.1
A9: 2007 | B9: 2 | C9: 80 | D9: 0.2 | E9: 1 | F9: 0.5 | G9: 15132 | H9: 2.1 | I9: 517 | J9: 2.5 | K9: 8 | L9: 6.6 | M9: 15899 | N9: 2.6
A10: 2007 | B10: 1 | C10: 43 | D10: 0 | E10: 1 | F10: 0.1 | G10: 14142 | H10: 3.8 | I10: 279 | J10: 0.4 | K10: 4 | L10: 1 | M10: 13107 | N10: 2.8
A11: 2007 | B11: TOT. PREC. | C11: 773 | D11: 0.3 | E11: 13 | F11: 1.2 | G11: 17101 | H11: 4 | I11: 4447 | J11: 3.4 | K11: 81 | L11: 11.4 | M11: 18290 | N11: 3.4
A12: 2007 | B12: 0 | C12: 20 | D12: 0 | E12: 0 | F12: 0 | G12: 9598 | H12: 5.8 | I12: 40 | J12: 0 | K12: 0 | L12: 0 | M12: 8979 | N12: 2.8
A13: 2007 | B13: TOT. GEN. | C13: 793 | D13: 0.2 | E13: 13 | F13: 0.9 | G13: 16912 | H13: 5.5 | I13: 4487 | J13: 1 | K13: 82 | L13: 4.9 | M13: 18207 | N13: 4.7
A14: 2008 | B14: 8+ | C14: 146 | D14: 18.3 | E14: 5 | F14: 37 | G14: 32780 | H14: 2 | I14: 1104 | J14: 20.9 | K14: 25 | L14: 48.4 | M14: 22288 | N14: 2.3
A15: 2008 | B15: 7 | C15: 65 | D15: 13.5 | E15: 2 | F15: 43.2 | G15: 29130 | H15: 3.2 | I15: 383 | J15: 19.2 | K15: 7 | L15: 42.5 | M15: 17607 | N15: 2.2
A16: 2008 | B16: 6 | C16: 66 | D16: 10.4 | E16: 1 | F16: 18.8 | G16: 18375 | H16: 1.8 | I16: 450 | J16: 10.3 | K16: 7 | L16: 38.4 | M16: 16099 | N16: 3.7
A17: 2008 | B17: 5 | C17: 98 | D17: 8.9 | E17: 2 | F17: 20.4 | G17: 15915 | H17: 2.3 | I17: 549 | J17: 11.9 | K17: 9 | L17: 33.2 | M17: 16543 | N17: 2.8
A18: 2008 | B18: 4 | C18: 95 | D18: 2.1 | E18: 1 | F18: 6 | G18: 11463 | H18: 2.8 | I18: 547 | J18: 5.8 | K18: 8 | L18: 24 | M18: 15070 | N18: 4.1
A19: 2008 | B19: 3 | C19: 103 | D19: 1.7 | E19: 1 | F19: 2.8 | G19: 14303 | H19: 1.7 | I19: 557 | J19: 6.5 | K19: 9 | L19: 15.3 | M19: 15494 | N19: 2.4
A20: 2008 | B20: 2 | C20: 86 | D20: 0.3 | E20: 1 | F20: 0.5 | G20: 12851 | H20: 1.8 | I20: 518 | J20: 2.5 | K20: 8 | L20: 6 | M20: 14825 | N20: 2.4
A21: 2008 | B21: 1 | C21: 36 | D21: 0 | E21: 1 | F21: 0.1 | G21: 31248 | H21: 8.1 | I21: 268 | J21: 0.3 | K21: 3 | L21: 0.8 | M21: 11238 | N21: 2.5
A22: 2008 | B22: TOT. PREC. | C22: 694 | D22: 0.3 | E22: 14 | F22: 1.2 | G22: 20525 | H22: 4.6 | I22: 4376 | J22: 3.2 | K22: 75 | L22: 10.7 | M22: 17194 | N22: 3.3
A23: 2008 | B23: 0 | C23: 4 | D23: 0 | E23: 0 | F23: 0 | G23: 4729 | H23: 2.6 | I23: 28 | J23: 0 | K23: 0 | L23: 0 | M23: 10870 | N23: 3.3
A24: 2008 | B24: TOT. GEN. | C24: 698 | D24: 0.1 | E24: 14 | F24: 0.9 | G24: 20434 | H24: 6.3 | I24: 4404 | J24: 1 | K24: 76 | L24: 4.6 | M24: 17154 | N24: 4.4
A25: 2009 | B25: 8+ | C25: 166 | D25: 20.1 | E25: 7 | F25: 46.3 | G25: 44951 | H25: 2.3 | I25: 1123 | J25: 21.6 | K25: 25 | L25: 41 | M25: 22094 | N25: 1.9
A26: 2009 | B26: 7 | C26: 51 | D26: 13.7 | E26: 1 | F26: 26.1 | G26: 18767 | H26: 1.9 | I26: 308 | J26: 18.7 | K26: 5 | L26: 36.1 | M26: 17453 | N26: 1.9
A27: 2009 | B27: 6 | C27: 81 | D27: 14.9 | E27: 2 | F27: 28.9 | G27: 23690 | H27: 1.9 | I27: 388 | J27: 15.2 | K27: 7 | L27: 32.7 | M27: 18938 | N27: 2.2
A28: 2009 | B28: 5 | C28: 76 | D28: 8.8 | E28: 1 | F28: 17.4 | G28: 17673 | H28: 2 | I28: 442 | J28: 10 | K28: 8 | L28: 28.3 | M28: 17540 | N28: 2.8
A29: 2009 | B29: 4 | C29: 87 | D29: 4.4 | E29: 1 | F29: 8.1 | G29: 16538 | H29: 1.8 | I29: 509 | J29: 9.8 | K29: 7 | L29: 20.7 | M29: 14727 | N29: 2.1
A30: 2009 | B30: 3 | C30: 105 | D30: 1.6 | E30: 1 | F30: 2.1 | G30: 11789 | H30: 1.3 | I30: 526 | J30: 6.2 | K30: 9 | L30: 14.2 | M30: 17166 | N30: 2.3
A31: 2009 | B31: 2 | C31: 91 | D31: 0.3 | E31: 1 | F31: 0.4 | G31: 11802 | H31: 1.6 | I31: 514 | J31: 2 | K31: 7 | L31: 4.9 | M31: 12811 | N31: 2.5
A32: 2009 | B32: 1 | C32: 44 | D32: 0 | E32: 1 | F32: 0.1 | G32: 14553 | H32: 3.6 | I32: 343 | J32: 0.4 | K32: 5 | L32: 1.2 | M32: 13542 | N32: 3
A33: 2009 | B33: TOT. PREC. | C33: 701 | D33: 0.3 | E33: 16 | F33: 1.3 | G33: 22927 | H33: 4.9 | I33: 4154 | J33: 2.9 | K33: 73 | L33: 9.7 | M33: 17584 | N33: 3.3
A34: 2009 | B34: 0 | C34: 3 | D34: 0 | E34: 0 | F34: 0 | G34: 21980 | H34: 11.5 | I34: 50 | J34: 0 | K34: 0 | L34: 0 | M34: 9682 | N34: 2.8
A35: 2009 | B35: TOT. GEN. | C35: 704 | D35: 0.1 | E35: 16 | F35: 1 | G35: 22923 | H35: 6.8 | I35: 4204 | J35: 1 | K35: 74 | L35: 4.2 | M35: 17490 | N35: 4.3
A36: 2010 | B36: 8+ | C36: 212 | D36: 19.4 | E36: 5 | F36: 37.2 | G36: 23898 | H36: 1.9 | I36: 1127 | J36: 23.8 | K36: 23 | L36: 40.3 | M36: 20210 | N36: 1.7
A37: 2010 | B37: 7 | C37: 57 | D37: 19.4 | E37: 1 | F37: 32.6 | G37: 21151 | H37: 1.7 | I37: 320 | J37: 22 | K37: 6 | L37: 37.3 | M37: 19642 | N37: 1.7
A38: 2010 | B38: 6 | C38: 79 | D38: 13.2 | E38: 1 | F38: 25.9 | G38: 15265 | H38: 2 | I38: 374 | J38: 15.8 | K38: 8 | L38: 39.1 | M38: 21149 | N38: 2.5
A39: 2010 | B39: 5 | C39: 86 | D39: 9.1 | E39: 2 | F39: 21.4 | G39: 20982 | H39: 2.4 | I39: 485 | J39: 18.8 | K39: 7 | L39: 30.1 | M39: 15185 | N39: 1.6
A40: 2010 | B40: 4 | C40: 120 | D40: 5.6 | E40: 2 | F40: 8.5 | G40: 12971 | H40: 1.5 | I40: 510 | J40: 12.2 | K40: 10 | L40: 26.6 | M40: 20063 | N40: 2.2
A41: 2010 | B41: 3 | C41: 143 | D41: 2.2 | E41: 2 | F41: 3.2 | G41: 12239 | H41: 1.4 | I41: 650 | J41: 7.2 | K41: 9 | L41: 14 | M41: 14258 | N41: 1.9
A42: 2010 | B42: 2 | C42: 134 | D42: 0.4 | E42: 2 | F42: 0.7 | G42: 12647 | H42: 1.7 | I42: 602 | J42: 2.3 | K42: 9 | L42: 6.6 | M42: 15161 | N42: 2.9
A43: 2010 | B43: 1 | C43: 74 | D43: 0 | E43: 1 | F43: 0.1 | G43: 14700 | H43: 3.6 | I43: 382 | J43: 0.4 | K43: 4 | L43: 1 | M43: 10086 | N43: 2.3
A44: 2010 | B44: TOT. PREC. | C44: 905 | D44: 0.4 | E44: 15 | F44: 1.3 | G44: 16985 | H44: 3.6 | I44: 4450 | J44: 3.1 | K44: 77 | L44: 10.1 | M44: 17262 | N44: 3.2
A45: 2010 | B45: 0 | C45: 4 | D45: 0 | E45: 0 | F45: 0 | G45: 16519 | H45: 8.4 | I45: 45 | J45: 0 | K45: 1 | L45: 0.1 | M45: 14919 | N45: 4.3
A46: 2010 | B46: TOT. GEN. | C46: 909 | D46: 0.2 | E46: 15 | F46: 1 | G46: 16983 | H46: 4.9 | I46: 4495 | J46: 1.1 | K46: 77 | L46: 4.5 | M46: 17238 | N46: 4.2
A47: 2011 | B47: 8+ | C47: 274 | D47: 24 | E47: 6 | F47: 57.1 | G47: 22793 | H47: 2.4 | I47: 1289 | J47: 26.8 | K47: 29 | L47: 45.5 | M47: 22366 | N47: 1.7
A48: 2011 | B48: 7 | C48: 89 | D48: 23.4 | E48: 2 | F48: 53.8 | G48: 24266 | H48: 2.3 | I48: 308 | J48: 16.7 | K48: 9 | L48: 56.8 | M48: 29494 | N48: 3.4
A49: 2011 | B49: 6 | C49: 108 | D49: 18.4 | E49: 2 | F49: 38.1 | G49: 18517 | H49: 2.1 | I49: 442 | J49: 25.4 | K49: 8 | L49: 38.3 | M49: 17644 | N49: 1.5
A50: 2011 | B50: 5 | C50: 137 | D50: 12.6 | E50: 2 | F50: 23.4 | G50: 15954 | H50: 1.8 | I50: 500 | J50: 19.9 | K50: 10 | L50: 37.3 | M50: 20001 | N50: 1.9
A51: 2011 | B51: 4 | C51: 201 | D51: 9.1 | E51: 3 | F51: 12.7 | G51: 14494 | H51: 1.4 | I51: 670 | J51: 14.6 | K51: 11 | L51: 28.6 | M51: 17058 | N51: 2
A52: 2011 | B52: 3 | C52: 269 | D52: 4.1 | E52: 3 | F52: 6.6 | G52: 12821 | H52: 1.6 | I52: 714 | J52: 7.9 | K52: 12 | L52: 17.8 | M52: 16972 | N52: 2.3
A53: 2011 | B53: 2 | C53: 212 | D53: 0.7 | E53: 2 | F53: 0.8 | G53: 8986 | H53: 1.2 | I53: 689 | J53: 2.9 | K53: 11 | L53: 7.1 | M53: 16532 | N53: 2.5
A54: 2011 | B54: 1 | C54: 89 | D54: 0 | E54: 1 | F54: 0.1 | G54: 8189 | H54: 2 | I54: 326 | J54: 0.4 | K54: 4 | L54: 1 | M54: 12393 | N54: 2.6
A55: 2011 | B55: TOT. PREC. | C55: 1379 | D55: 0.6 | E55: 22 | F55: 1.9 | G55: 15654 | H55: 3.2 | I55: 4938 | J55: 3.7 | K55: 95 | L55: 11.8 | M55: 19176 | N55: 3.2
A56: 2011 | B56: 0 | C56: 16 | D56: 0 | E56: 0 | F56: 0 | G56: 1567 | H56: 0.8 | I56: 44 | J56: 0 | K56: 0 | L56: 0 | M56: 4694 | N56: 1.3
A57: 2011 | B57: TOT. GEN. | C57: 1395 | D57: 0.3 | E57: 22 | F57: 1.4 | G57: 15492 | H57: 4.4 | I57: 4982 | J57: 1.3 | K57: 95 | L57: 5.5 | M57: 19048 | N57: 4.3
A58: 2012 | B58: 8+ | C58: 271 | D58: 24.8 | E58: 5 | F58: 38 | G58: 19299 | H58: 1.5 | I58: 1183 | J58: 21 | K58: 31 | L58: 48.2 | M58: 25913 | N58: 2.3
A59: 2012 | B59: 7 | C59: 83 | D59: 23.2 | E59: 1 | F59: 38.9 | G59: 16406 | H59: 1.7 | I59: 337 | J59: 26.1 | K59: 6 | L59: 40.6 | M59: 18804 | N59: 1.6
A60: 2012 | B60: 6 | C60: 110 | D60: 20.3 | E60: 2 | F60: 35 | G60: 19580 | H60: 1.7 | I60: 334 | J60: 19.2 | K60: 7 | L60: 36.6 | M60: 20957 | N60: 1.9
A61: 2012 | B61: 5 | C61: 156 | D61: 17.6 | E61: 2 | F61: 18.2 | G61: 11608 | H61: 1 | I61: 481 | J61: 15.4 | K61: 10 | L61: 33.1 | M61: 20141 | N61: 2.1
A62: 2012 | B62: 4 | C62: 178 | D62: 8.5 | E62: 3 | F62: 14.4 | G62: 15487 | H62: 1.7 | I62: 522 | J62: 12 | K62: 11 | L62: 25.9 | M62: 20914 | N62: 2.1
A63: 2012 | B63: 3 | C63: 239 | D63: 3.7 | E63: 3 | F63: 5.4 | G63: 14084 | H63: 1.5 | I63: 631 | J63: 7.2 | K63: 11 | L63: 13 | M63: 16682 | N63: 1.8
A64: 2012 | B64: 2 | C64: 171 | D64: 0.6 | E64: 2 | F64: 0.8 | G64: 10922 | H64: 1.4 | I64: 523 | J64: 2.3 | K64: 7 | L64: 4.9 | M64: 14182 | N64: 2.1
A65: 2012 | B65: 1 | C65: 96 | D65: 0.1 | E65: 1 | F65: 0.1 | G65: 6605 | H65: 1.5 | I65: 320 | J65: 0.4 | K65: 5 | L65: 1.3 | M65: 16689 | N65: 3.3
A66: 2012 | B66: TOT. PREC. | C66: 1304 | D66: 0.6 | E66: 19 | F66: 1.8 | G66: 14709 | H66: 2.9 | I66: 4331 | J66: 3.3 | K66: 88 | L66: 10.8 | M66: 20291 | N66: 3.2
A67: 2012 | B67: 0 | C67: 3 | D67: 0 | E67: 0 | F67: 0 | G67: 2283 | H67: 1.1 | I67: 29 | J67: 0 | K67: 0 | L67: 0 | M67: 6751 | N67: 1.8
A68: 2012 | B68: TOT. GEN. | C68: 1307 | D68: 0.3 | E68: 19 | F68: 1.3 | G68: 14681 | H68: 3.9 | I68: 4360 | J68: 1.2 | K68: 88 | L68: 5.2 | M68: 20201 | N68: 4.4
A69: 2013 | B69: 8+ | C69: 248 | D69: 20.1 | E69: 6 | F69: 43.4 | G69: 24561 | H69: 2.2 | I69: 1205 | J69: 24.2 | K69: 32 | L69: 48.2 | M69: 26500 | N69: 2
A70: 2013 | B70: 7 | C70: 68 | D70: 18.9 | E70: 2 | F70: 44.1 | G70: 24192 | H70: 2.3 | I70: 282 | J70: 22.8 | K70: 7 | L70: 46 | M70: 25151 | N70: 2
A71: 2013 | B71: 6 | C71: 112 | D71: 19.2 | E71: 2 | F71: 42.9 | G71: 16830 | H71: 2.2 | I71: 395 | J71: 17.7 | K71: 9 | L71: 42 | M71: 23621 | N71: 2.4
A72: 2013 | B72: 5 | C72: 129 | D72: 13.3 | E72: 3 | F72: 31.1 | G72: 21218 | H72: 2.3 | I72: 486 | J72: 18.5 | K72: 11 | L72: 37.7 | M72: 23338 | N72: 2
A73: 2013 | B73: 4 | C73: 177 | D73: 8.2 | E73: 2 | F73: 11.3 | G73: 11962 | H73: 1.4 | I73: 608 | J73: 13.3 | K73: 13 | L73: 27.3 | M73: 22099 | N73: 2.1
A74: 2013 | B74: 3 | C74: 208 | D74: 3.3 | E74: 2 | F74: 4.2 | G74: 11085 | H74: 1.3 | I74: 674 | J74: 7.7 | K74: 13 | L74: 18.2 | M74: 18781 | N74: 2.4
A75: 2013 | B75: 2 | C75: 254 | D75: 0.9 | E75: 3 | F75: 1.2 | G75: 10915 | H75: 1.4 | I75: 696 | J75: 3.1 | K75: 15 | L75: 9.4 | M75: 21505 | N75: 3
A76: 2013 | B76: 1 | C76: 103 | D76: 0.1 | E76: 1 | F76: 0.1 | G76: 6947 | H76: 1.6 | I76: 429 | J76: 0.5 | K76: 6 | L76: 1.5 | M76: 13882 | N76: 2.8
A77: 2013 | B77: TOT. PREC. | C77: 1299 | D77: 0.7 | E77: 20 | F77: 2 | G77: 15604 | H77: 3 | I77: 4776 | J77: 3.8 | K77: 107 | L77: 13.3 | M77: 22344 | N77: 3.5
A78: 2013 | B78: 0 | C78: 14 | D78: 0 | E78: 0 | F78: 0 | G78: 2684 | H78: 1.3 | I78: 38 | J78: 0 | K78: 0 | L78: 0 | M78: 7409 | N78: 2
A79: 2013 | B79: TOT. GEN. | C79: 1313 | D79: 0.4 | E79: 20 | F79: 1.5 | G79: 15466 | H79: 4 | I79: 4814 | J79: 1.4 | K79: 107 | L79: 6.5 | M79: 22226 | N79: 4.7
A80: 2014 | B80: 8+ | C80: 226 | D80: 21.7 | E80: 5 | F80: 39.2 | G80: 23396 | H80: 1.8 | I80: 1110 | J80: 25.2 | K80: 29 | L80: 44.4 | M80: 26492 | N80: 1.8
A81: 2014 | B81: 7 | C81: 80 | D81: 22.5 | E81: 2 | F81: 44 | G81: 22597 | H81: 2 | I81: 295 | J81: 24.2 | K81: 6 | L81: 48 | M81: 21809 | N81: 2
A82: 2014 | B82: 6 | C82: 113 | D82: 20.5 | E82: 2 | F82: 31.3 | G82: 17765 | H82: 1.5 | I82: 371 | J82: 24.7 | K82: 9 | L82: 47.2 | M82: 25057 | N82: 1.9
A83: 2014 | B83: 5 | C83: 134 | D83: 14.2 | E83: 3 | F83: 21.9 | G83: 19289 | H83: 1.5 | I83: 501 | J83: 20 | K83: 13 | L83: 38.8 | M83: 25541 | N83: 1.9
A84: 2014 | B84: 4 | C84: 166 | D84: 9.2 | E84: 2 | F84: 14.4 | G84: 14022 | H84: 1.6 | I84: 555 | J84: 12 | K84: 11 | L84: 28.4 | M84: 20303 | N84: 2.4
A85: 2014 | B85: 3 | C85: 262 | D85: 4.8 | E85: 3 | F85: 5 | G85: 9979 | H85: 1.1 | I85: 706 | J85: 7.8 | K85: 17 | L85: 19.1 | M85: 23441 | N85: 2.4
A86: 2014 | B86: 2 | C86: 217 | D86: 0.8 | E86: 2 | F86: 1 | G86: 9322 | H86: 1.2 | I86: 709 | J86: 2.9 | K86: 15 | L86: 9.3 | M86: 20869 | N86: 3.2
A87: 2014 | B87: 1 | C87: 114 | D87: 0.1 | E87: 1 | F87: 0.1 | G87: 6260 | H87: 1.4 | I87: 369 | J87: 0.5 | K87: 5 | L87: 1.3 | M87: 14481 | N87: 2.7
A88: 2014 | B88: TOT. PREC. | C88: 1312 | D88: 0.7 | E88: 19 | F88: 2 | G88: 14761 | H88: 2.8 | I88: 4616 | J88: 3.7 | K88: 106 | L88: 12.8 | M88: 22939 | N88: 3.4
A89: 2014 | B89: 0 | C89: 15 | D89: 0 | E89: 0 | F89: 0 | G89: 2336 | H89: 1 | I89: 44 | J89: 0 | K89: 0 | L89: 0 | M89: 4635 | N89: 1.2
A90: 2014 | B90: TOT. GEN. | C90: 1327 | D90: 0.4 | E90: 19 | F90: 1.5 | G90: 14620 | H90: 3.6 | I90: 4660 | J90: 1.4 | K90: 106 | L90: 6.3 | M90: 22767 | N90: 4.5
A91: 
D92: N.B. LA TABELLA E' STATA TRASPOSTA PER CONSENTIRE I COLLEGAMENTI
A93: TUTTE LE COMPAGNIE
A94: ANNO | B94: 2007 | C94: 2007 | D94: 2007 | E94: 2007 | F94: 2007 | G94: 2007 | H94: 2007 | I94: 2007 | J94: 2007 | K94: 2007 | L94: 2007 | M94: 2008 | N94: 2008 | O94: 2008 | P94: 2008 | Q94: 2008 | R94: 2008 | S94: 2008 | T94: 2008 | U94: 2008 | V94: 2008 | W94: 2008 | X94: 2009 | Y94: 2009 | Z94: 2009 | AA94: 2009 | AB94: 2009 | AC94: 2009 | AD94: 2009 | AE94: 2009 | AF94: 2009 | AG94: 2009 | AH94: 2009 | AI94: 2010 | AJ94: 2010 | AK94: 2010 | AL94: 2010 | AM94: 2010 | AN94: 2010 | AO94: 2010 | AP94: 2010 | AQ94: 2010 | AR94: 2010 | AS94: 2010 | AT94: 2011 | AU94: 2011 | AV94: 2011 | AW94: 2011 | AX94: 2011 | AY94: 2011 | AZ94: 2011 | BA94: 2011 | BB94: 2011 | BC94: 2011 | BD94: 2011 | BE94: 2012 | BF94: 2012 | BG94: 2012 | BH94: 2012 | BI94: 2012 | BJ94: 2012 | BK94: 2012 | BL94: 2012 | BM94: 2012 | BN94: 2012 | BO94: 2012 | BP94: 2013 | BQ94: 2013 | BR94: 2013 | BS94: 2013 | BT94: 2013 | BU94: 2013 | BV94: 2013 | BW94: 2013 | BX94: 2013 | BY94: 2013 | BZ94: 2013 | CA94: 2014 | CB94: 2014 | CC94: 2014 | CD94: 2014 | CE94: 2014 | CF94: 2014 | CG94: 2014 | CH94: 2014 | CI94: 2014 | CJ94: 2014 | CK94: 2014 | CL94: 
A95: ANTI | B95: 8+ | C95: 7 | D95: 6 | E95: 5 | F95: 4 | G95: 3 | H95: 2 | I95: 1 | J95: TOT. PREC. | K95: 0 | L95: TOT. GEN. | M95: 8+ | N95: 7 | O95: 6 | P95: 5 | Q95: 4 | R95: 3 | S95: 2 | T95: 1 | U95: TOT. PREC. | V95: 0 | W95: TOT. GEN. | X95: 8+ | Y95: 7 | Z95: 6 | AA95: 5 | AB95: 4 | AC95: 3 | AD95: 2 | AE95: 1 | AF95: TOT. PREC. | AG95: 0 | AH95: TOT. GEN. | AI95: 8+ | AJ95: 7 | AK95: 6 | AL95: 5 | AM95: 4 | AN95: 3 | AO95: 2 | AP95: 1 | AQ95: TOT. PREC. | AR95: 0 | AS95: TOT. GEN. | AT95: 8+ | AU95: 7 | AV95: 6 | AW95: 5 | AX95: 4 | AY95: 3 | AZ95: 2 | BA95: 1 | BB95: TOT. PREC. | BC95: 0 | BD95: TOT. GEN. | BE95: 8+ | BF95: 7 | BG95: 6 | BH95: 5 | BI95: 4 | BJ95: 3 | BK95: 2 | BL95: 1 | BM95: TOT. PREC. | BN95: 0 | BO95: TOT. GEN. | BP95: 8+ | BQ95: 7 | BR95: 6 | BS95: 5 | BT95: 4 | BU95: 3 | BV95: 2 | BW95: 1 | BX95: TOT. PREC. | BY95: 0 | BZ95: TOT. GEN. | CA95: 8+ | CB95: 7 | CC95: 6 | CD95: 5 | CE95: 4 | CF95: 3 | CG95: 2 | CH95: 1 | CI95: TOT. PREC. | CJ95: 0 | CK95: TOT. GEN.
A96: NPAG | B96: 165 | C96: 62 | D96: 76 | E96: 111 | F96: 123 | G96: 113 | H96: 80 | I96: 43 | J96: 773 | K96: 20 | L96: 793 | M96: 146 | N96: 65 | O96: 66 | P96: 98 | Q96: 95 | R96: 103 | S96: 86 | T96: 36 | U96: 694 | V96: 4 | W96: 698 | X96: 166 | Y96: 51 | Z96: 81 | AA96: 76 | AB96: 87 | AC96: 105 | AD96: 91 | AE96: 44 | AF96: 701 | AG96: 3 | AH96: 704 | AI96: 212 | AJ96: 57 | AK96: 79 | AL96: 86 | AM96: 120 | AN96: 143 | AO96: 134 | AP96: 74 | AQ96: 905 | AR96: 4 | AS96: 909 | AT96: 274 | AU96: 89 | AV96: 108 | AW96: 137 | AX96: 201 | AY96: 269 | AZ96: 212 | BA96: 89 | BB96: 1379 | BC96: 16 | BD96: 1395 | BE96: 271 | BF96: 83 | BG96: 110 | BH96: 156 | BI96: 178 | BJ96: 239 | BK96: 171 | BL96: 96 | BM96: 1304 | BN96: 3 | BO96: 1307 | BP96: 248 | BQ96: 68 | BR96: 112 | BS96: 129 | BT96: 177 | BU96: 208 | BV96: 254 | BW96: 103 | BX96: 1299 | BY96: 14 | BZ96: 1313 | CA96: 226 | CB96: 80 | CC96: 113 | CD96: 134 | CE96: 166 | CF96: 262 | CG96: 217 | CH96: 114 | CI96: 1312 | CJ96: 15 | CK96: 1327
A97: INC1 | B97: 21.6 | C97: 18.2 | D97: 16.3 | E97: 11.5 | F97: 5.7 | G97: 1.6 | H97: 0.2 | I97: 0 | J97: 0.3 | K97: 0 | L97: 0.2 | M97: 18.3 | N97: 13.5 | O97: 10.4 | P97: 8.9 | Q97: 2.1 | R97: 1.7 | S97: 0.3 | T97: 0 | U97: 0.3 | V97: 0 | W97: 0.1 | X97: 20.1 | Y97: 13.7 | Z97: 14.9 | AA97: 8.8 | AB97: 4.4 | AC97: 1.6 | AD97: 0.3 | AE97: 0 | AF97: 0.3 | AG97: 0 | AH97: 0.1 | AI97: 19.4 | AJ97: 19.4 | AK97: 13.2 | AL97: 9.1 | AM97: 5.6 | AN97: 2.2 | AO97: 0.4 | AP97: 0 | AQ97: 0.4 | AR97: 0 | AS97: 0.2 | AT97: 24 | AU97: 23.4 | AV97: 18.4 | AW97: 12.6 | AX97: 9.1 | AY97: 4.1 | AZ97: 0.7 | BA97: 0 | BB97: 0.6 | BC97: 0 | BD97: 0.3 | BE97: 24.8 | BF97: 23.2 | BG97: 20.3 | BH97: 17.6 | BI97: 8.5 | BJ97: 3.7 | BK97: 0.6 | BL97: 0.1 | BM97: 0.6 | BN97: 0 | BO97: 0.3 | BP97: 20.1 | BQ97: 18.9 | BR97: 19.2 | BS97: 13.3 | BT97: 8.2 | BU97: 3.3 | BV97: 0.9 | BW97: 0.1 | BX97: 0.7 | BY97: 0 | BZ97: 0.4 | CA97: 21.7 | CB97: 22.5 | CC97: 20.5 | CD97: 14.2 | CE97: 9.2 | CF97: 4.8 | CG97: 0.8 | CH97: 0.1 | CI97: 0.7 | CJ97: 0 | CK97: 0.4
A98: IPAG | B98: 4 | C98: 1 | D98: 1 | E98: 1 | F98: 1 | G98: 2 | H98: 1 | I98: 1 | J98: 13 | K98: 0 | L98: 13 | M98: 5 | N98: 2 | O98: 1 | P98: 2 | Q98: 1 | R98: 1 | S98: 1 | T98: 1 | U98: 14 | V98: 0 | W98: 14 | X98: 7 | Y98: 1 | Z98: 2 | AA98: 1 | AB98: 1 | AC98: 1 | AD98: 1 | AE98: 1 | AF98: 16 | AG98: 0 | AH98: 16 | AI98: 5 | AJ98: 1 | AK98: 1 | AL98: 2 | AM98: 2 | AN98: 2 | AO98: 2 | AP98: 1 | AQ98: 15 | AR98: 0 | AS98: 15 | AT98: 6 | AU98: 2 | AV98: 2 | AW98: 2 | AX98: 3 | AY98: 3 | AZ98: 2 | BA98: 1 | BB98: 22 | BC98: 0 | BD98: 22 | BE98: 5 | BF98: 1 | BG98: 2 | BH98: 2 | BI98: 3 | BJ98: 3 | BK98: 2 | BL98: 1 | BM98: 19 | BN98: 0 | BO98: 19 | BP98: 6 | BQ98: 2 | BR98: 2 | BS98: 3 | BT98: 2 | BU98: 2 | BV98: 3 | BW98: 1 | BX98: 20 | BY98: 0 | BZ98: 20 | CA98: 5 | CB98: 2 | CC98: 2 | CD98: 3 | CE98: 2 | CF98: 3 | CG98: 2 | CH98: 1 | CI98: 19 | CJ98: 0 | CK98: 19
A99: INC2 | B99: 42.1 | C99: 35.8 | D99: 25.8 | E99: 20 | F99: 8.2 | G99: 3.1 | H99: 0.5 | I99: 0.1 | J99: 1.2 | K99: 0 | L99: 0.9 | M99: 37 | N99: 43.2 | O99: 18.8 | P99: 20.4 | Q99: 6 | R99: 2.8 | S99: 0.5 | T99: 0.1 | U99: 1.2 | V99: 0 | W99: 0.9 | X99: 46.3 | Y99: 26.1 | Z99: 28.9 | AA99: 17.4 | AB99: 8.1 | AC99: 2.1 | AD99: 0.4 | AE99: 0.1 | AF99: 1.3 | AG99: 0 | AH99: 1 | AI99: 37.2 | AJ99: 32.6 | AK99: 25.9 | AL99: 21.4 | AM99: 8.5 | AN99: 3.2 | AO99: 0.7 | AP99: 0.1 | AQ99: 1.3 | AR99: 0 | AS99: 1 | AT99: 57.1 | AU99: 53.8 | AV99: 38.1 | AW99: 23.4 | AX99: 12.7 | AY99: 6.6 | AZ99: 0.8 | BA99: 0.1 | BB99: 1.9 | BC99: 0 | BD99: 1.4 | BE99: 38 | BF99: 38.9 | BG99: 35 | BH99: 18.2 | BI99: 14.4 | BJ99: 5.4 | BK99: 0.8 | BL99: 0.1 | BM99: 1.8 | BN99: 0 | BO99: 1.3 | BP99: 43.4 | BQ99: 44.1 | BR99: 42.9 | BS99: 31.1 | BT99: 11.3 | BU99: 4.2 | BV99: 1.2 | BW99: 0.1 | BX99: 2 | BY99: 0 | BZ99: 1.5 | CA99: 39.2 | CB99: 44 | CC99: 31.3 | CD99: 21.9 | CE99: 14.4 | CF99: 5 | CG99: 1 | CH99: 0.1 | CI99: 2 | CJ99: 0 | CK99: 1.5
A100: PAGM | B100: 26499 | C100: 21155 | D100: 18518 | E100: 12871 | F100: 10799 | G100: 13738 | H100: 15132 | I100: 14142 | J100: 17101 | K100: 9598 | L100: 16912 | M100: 32780 | N100: 29130 | O100: 18375 | P100: 15915 | Q100: 11463 | R100: 14303 | S100: 12851 | T100: 31248 | U100: 20525 | V100: 4729 | W100: 20434 | X100: 44951 | Y100: 18767 | Z100: 23690 | AA100: 17673 | AB100: 16538 | AC100: 11789 | AD100: 11802 | AE100: 14553 | AF100: 22927 | AG100: 21980 | AH100: 22923 | AI100: 23898 | AJ100: 21151 | AK100: 15265 | AL100: 20982 | AM100: 12971 | AN100: 12239 | AO100: 12647 | AP100: 14700 | AQ100: 16985 | AR100: 16519 | AS100: 16983 | AT100: 22793 | AU100: 24266 | AV100: 18517 | AW100: 15954 | AX100: 14494 | AY100: 12821 | AZ100: 8986 | BA100: 8189 | BB100: 15654 | BC100: 1567 | BD100: 15492 | BE100: 19299 | BF100: 16406 | BG100: 19580 | BH100: 11608 | BI100: 15487 | BJ100: 14084 | BK100: 10922 | BL100: 6605 | BM100: 14709 | BN100: 2283 | BO100: 14681 | BP100: 24561 | BQ100: 24192 | BR100: 16830 | BS100: 21218 | BT100: 11962 | BU100: 11085 | BV100: 10915 | BW100: 6947 | BX100: 15604 | BY100: 2684 | BZ100: 15466 | CA100: 23396 | CB100: 22597 | CC100: 17765 | CD100: 19289 | CE100: 14022 | CF100: 9979 | CG100: 9322 | CH100: 6260 | CI100: 14761 | CJ100: 2336 | CK100: 14620
A101: RAP1 | B101: 1.9 | C101: 2 | D101: 1.6 | E101: 1.7 | F101: 1.5 | G101: 1.9 | H101: 2.1 | I101: 3.8 | J101: 4 | K101: 5.8 | L101: 5.5 | M101: 2 | N101: 3.2 | O101: 1.8 | P101: 2.3 | Q101: 2.8 | R101: 1.7 | S101: 1.8 | T101: 8.1 | U101: 4.6 | V101: 2.6 | W101: 6.3 | X101: 2.3 | Y101: 1.9 | Z101: 1.9 | AA101: 2 | AB101: 1.8 | AC101: 1.3 | AD101: 1.6 | AE101: 3.6 | AF101: 4.9 | AG101: 11.5 | AH101: 6.8 | AI101: 1.9 | AJ101: 1.7 | AK101: 2 | AL101: 2.4 | AM101: 1.5 | AN101: 1.4 | AO101: 1.7 | AP101: 3.6 | AQ101: 3.6 | AR101: 8.4 | AS101: 4.9 | AT101: 2.4 | AU101: 2.3 | AV101: 2.1 | AW101: 1.8 | AX101: 1.4 | AY101: 1.6 | AZ101: 1.2 | BA101: 2 | BB101: 3.2 | BC101: 0.8 | BD101: 4.4 | BE101: 1.5 | BF101: 1.7 | BG101: 1.7 | BH101: 1 | BI101: 1.7 | BJ101: 1.5 | BK101: 1.4 | BL101: 1.5 | BM101: 2.9 | BN101: 1.1 | BO101: 3.9 | BP101: 2.2 | BQ101: 2.3 | BR101: 2.2 | BS101: 2.3 | BT101: 1.4 | BU101: 1.3 | BV101: 1.4 | BW101: 1.6 | BX101: 3 | BY101: 1.3 | BZ101: 4 | CA101: 1.8 | CB101: 2 | CC101: 1.5 | CD101: 1.5 | CE101: 1.6 | CF101: 1.1 | CG101: 1.2 | CH101: 1.4 | CI101: 2.8 | CJ101: 1 | CK101: 3.6
A102: NRIS | B102: 1060 | C102: 368 | D102: 461 | E102: 520 | F102: 635 | G102: 607 | H102: 517 | I102: 279 | J102: 4447 | K102: 40 | L102: 4487 | M102: 1104 | N102: 383 | O102: 450 | P102: 549 | Q102: 547 | R102: 557 | S102: 518 | T102: 268 | U102: 4376 | V102: 28 | W102: 4404 | X102: 1123 | Y102: 308 | Z102: 388 | AA102: 442 | AB102: 509 | AC102: 526 | AD102: 514 | AE102: 343 | AF102: 4154 | AG102: 50 | AH102: 4204 | AI102: 1127 | AJ102: 320 | AK102: 374 | AL102: 485 | AM102: 510 | AN102: 650 | AO102: 602 | AP102: 382 | AQ102: 4450 | AR102: 45 | AS102: 4495 | AT102: 1289 | AU102: 308 | AV102: 442 | AW102: 500 | AX102: 670 | AY102: 714 | AZ102: 689 | BA102: 326 | BB102: 4938 | BC102: 44 | BD102: 4982 | BE102: 1183 | BF102: 337 | BG102: 334 | BH102: 481 | BI102: 522 | BJ102: 631 | BK102: 523 | BL102: 320 | BM102: 4331 | BN102: 29 | BO102: 4360 | BP102: 1205 | BQ102: 282 | BR102: 395 | BS102: 486 | BT102: 608 | BU102: 674 | BV102: 696 | BW102: 429 | BX102: 4776 | BY102: 38 | BZ102: 4814 | CA102: 1110 | CB102: 295 | CC102: 371 | CD102: 501 | CE102: 555 | CF102: 706 | CG102: 709 | CH102: 369 | CI102: 4616 | CJ102: 44 | CK102: 4660
A103: INC3 | B103: 22 | C103: 21.5 | D103: 17.3 | E103: 10 | F103: 10.5 | G103: 4.9 | H103: 2.5 | I103: 0.4 | J103: 3.4 | K103: 0 | L103: 1 | M103: 20.9 | N103: 19.2 | O103: 10.3 | P103: 11.9 | Q103: 5.8 | R103: 6.5 | S103: 2.5 | T103: 0.3 | U103: 3.2 | V103: 0 | W103: 1 | X103: 21.6 | Y103: 18.7 | Z103: 15.2 | AA103: 10 | AB103: 9.8 | AC103: 6.2 | AD103: 2 | AE103: 0.4 | AF103: 2.9 | AG103: 0 | AH103: 1 | AI103: 23.8 | AJ103: 22 | AK103: 15.8 | AL103: 18.8 | AM103: 12.2 | AN103: 7.2 | AO103: 2.3 | AP103: 0.4 | AQ103: 3.1 | AR103: 0 | AS103: 1.1 | AT103: 26.8 | AU103: 16.7 | AV103: 25.4 | AW103: 19.9 | AX103: 14.6 | AY103: 7.9 | AZ103: 2.9 | BA103: 0.4 | BB103: 3.7 | BC103: 0 | BD103: 1.3 | BE103: 21 | BF103: 26.1 | BG103: 19.2 | BH103: 15.4 | BI103: 12 | BJ103: 7.2 | BK103: 2.3 | BL103: 0.4 | BM103: 3.3 | BN103: 0 | BO103: 1.2 | BP103: 24.2 | BQ103: 22.8 | BR103: 17.7 | BS103: 18.5 | BT103: 13.3 | BU103: 7.7 | BV103: 3.1 | BW103: 0.5 | BX103: 3.8 | BY103: 0 | BZ103: 1.4 | CA103: 25.2 | CB103: 24.2 | CC103: 24.7 | CD103: 20 | CE103: 12 | CF103: 7.8 | CG103: 2.9 | CH103: 0.5 | CI103: 3.7 | CJ103: 0 | CK103: 1.4
A104: IRIS | B104: 25 | C104: 7 | D104: 10 | E104: 9 | F104: 11 | G104: 9 | H104: 8 | I104: 4 | J104: 81 | K104: 0 | L104: 82 | M104: 25 | N104: 7 | O104: 7 | P104: 9 | Q104: 8 | R104: 9 | S104: 8 | T104: 3 | U104: 75 | V104: 0 | W104: 76 | X104: 25 | Y104: 5 | Z104: 7 | AA104: 8 | AB104: 7 | AC104: 9 | AD104: 7 | AE104: 5 | AF104: 73 | AG104: 0 | AH104: 74 | AI104: 23 | AJ104: 6 | AK104: 8 | AL104: 7 | AM104: 10 | AN104: 9 | AO104: 9 | AP104: 4 | AQ104: 77 | AR104: 1 | AS104: 77 | AT104: 29 | AU104: 9 | AV104: 8 | AW104: 10 | AX104: 11 | AY104: 12 | AZ104: 11 | BA104: 4 | BB104: 95 | BC104: 0 | BD104: 95 | BE104: 31 | BF104: 6 | BG104: 7 | BH104: 10 | BI104: 11 | BJ104: 11 | BK104: 7 | BL104: 5 | BM104: 88 | BN104: 0 | BO104: 88 | BP104: 32 | BQ104: 7 | BR104: 9 | BS104: 11 | BT104: 13 | BU104: 13 | BV104: 15 | BW104: 6 | BX104: 107 | BY104: 0 | BZ104: 107 | CA104: 29 | CB104: 6 | CC104: 9 | CD104: 13 | CE104: 11 | CF104: 17 | CG104: 15 | CH104: 5 | CI104: 106 | CJ104: 0 | CK104: 106
A105: INC4 | B105: 48.3 | C105: 43.2 | D105: 40.8 | E105: 30.5 | F105: 29.5 | G105: 15.2 | H105: 6.6 | I105: 1 | J105: 11.4 | K105: 0 | L105: 4.9 | M105: 48.4 | N105: 42.5 | O105: 38.4 | P105: 33.2 | Q105: 24 | R105: 15.3 | S105: 6 | T105: 0.8 | U105: 10.7 | V105: 0 | W105: 4.6 | X105: 41 | Y105: 36.1 | Z105: 32.7 | AA105: 28.3 | AB105: 20.7 | AC105: 14.2 | AD105: 4.9 | AE105: 1.2 | AF105: 9.7 | AG105: 0 | AH105: 4.2 | AI105: 40.3 | AJ105: 37.3 | AK105: 39.1 | AL105: 30.1 | AM105: 26.6 | AN105: 14 | AO105: 6.6 | AP105: 1 | AQ105: 10.1 | AR105: 0.1 | AS105: 4.5 | AT105: 45.5 | AU105: 56.8 | AV105: 38.3 | AW105: 37.3 | AX105: 28.6 | AY105: 17.8 | AZ105: 7.1 | BA105: 1 | BB105: 11.8 | BC105: 0 | BD105: 5.5 | BE105: 48.2 | BF105: 40.6 | BG105: 36.6 | BH105: 33.1 | BI105: 25.9 | BJ105: 13 | BK105: 4.9 | BL105: 1.3 | BM105: 10.8 | BN105: 0 | BO105: 5.2 | BP105: 48.2 | BQ105: 46 | BR105: 42 | BS105: 37.7 | BT105: 27.3 | BU105: 18.2 | BV105: 9.4 | BW105: 1.5 | BX105: 13.3 | BY105: 0 | BZ105: 6.5 | CA105: 44.4 | CB105: 48 | CC105: 47.2 | CD105: 38.8 | CE105: 28.4 | CF105: 19.1 | CG105: 9.3 | CH105: 1.3 | CI105: 12.8 | CJ105: 0 | CK105: 6.3
A106: RISM | B106: 23571 | C106: 18031 | D106: 20762 | E106: 16617 | F106: 17486 | G106: 14044 | H106: 15899 | I106: 13107 | J106: 18290 | K106: 8979 | L106: 18207 | M106: 22288 | N106: 17607 | O106: 16099 | P106: 16543 | Q106: 15070 | R106: 15494 | S106: 14825 | T106: 11238 | U106: 17194 | V106: 10870 | W106: 17154 | X106: 22094 | Y106: 17453 | Z106: 18938 | AA106: 17540 | AB106: 14727 | AC106: 17166 | AD106: 12811 | AE106: 13542 | AF106: 17584 | AG106: 9682 | AH106: 17490 | AI106: 20210 | AJ106: 19642 | AK106: 21149 | AL106: 15185 | AM106: 20063 | AN106: 14258 | AO106: 15161 | AP106: 10086 | AQ106: 17262 | AR106: 14919 | AS106: 17238 | AT106: 22366 | AU106: 29494 | AV106: 17644 | AW106: 20001 | AX106: 17058 | AY106: 16972 | AZ106: 16532 | BA106: 12393 | BB106: 19176 | BC106: 4694 | BD106: 19048 | BE106: 25913 | BF106: 18804 | BG106: 20957 | BH106: 20141 | BI106: 20914 | BJ106: 16682 | BK106: 14182 | BL106: 16689 | BM106: 20291 | BN106: 6751 | BO106: 20201 | BP106: 26500 | BQ106: 25151 | BR106: 23621 | BS106: 23338 | BT106: 22099 | BU106: 18781 | BV106: 21505 | BW106: 13882 | BX106: 22344 | BY106: 7409 | BZ106: 22226 | CA106: 26492 | CB106: 21809 | CC106: 25057 | CD106: 25541 | CE106: 20303 | CF106: 23441 | CG106: 20869 | CH106: 14481 | CI106: 22939 | CJ106: 4635 | CK106: 22767
A107: RAP2 | B107: 2.2 | C107: 2 | D107: 2.4 | E107: 3 | F107: 2.8 | G107: 3.1 | H107: 2.6 | I107: 2.8 | J107: 3.4 | K107: 2.8 | L107: 4.7 | M107: 2.3 | N107: 2.2 | O107: 3.7 | P107: 2.8 | Q107: 4.1 | R107: 2.4 | S107: 2.4 | T107: 2.5 | U107: 3.3 | V107: 3.3 | W107: 4.4 | X107: 1.9 | Y107: 1.9 | Z107: 2.2 | AA107: 2.8 | AB107: 2.1 | AC107: 2.3 | AD107: 2.5 | AE107: 3 | AF107: 3.3 | AG107: 2.8 | AH107: 4.3 | AI107: 1.7 | AJ107: 1.7 | AK107: 2.5 | AL107: 1.6 | AM107: 2.2 | AN107: 1.9 | AO107: 2.9 | AP107: 2.3 | AQ107: 3.2 | AR107: 4.3 | AS107: 4.2 | AT107: 1.7 | AU107: 3.4 | AV107: 1.5 | AW107: 1.9 | AX107: 2 | AY107: 2.3 | AZ107: 2.5 | BA107: 2.6 | BB107: 3.2 | BC107: 1.3 | BD107: 4.3 | BE107: 2.3 | BF107: 1.6 | BG107: 1.9 | BH107: 2.1 | BI107: 2.1 | BJ107: 1.8 | BK107: 2.1 | BL107: 3.3 | BM107: 3.2 | BN107: 1.8 | BO107: 4.4 | BP107: 2 | BQ107: 2 | BR107: 2.4 | BS107: 2 | BT107: 2.1 | BU107: 2.4 | BV107: 3 | BW107: 2.8 | BX107: 3.5 | BY107: 2 | BZ107: 4.7 | CA107: 1.8 | CB107: 2 | CC107: 1.9 | CD107: 1.9 | CE107: 2.4 | CF107: 2.4 | CG107: 3.2 | CH107: 2.7 | CI107: 3.4 | CJ107: 1.2 | CK107: 4.5
A113: SENZA COMPAGNIE
A114: ANNO | B114: 2007 | C114: 2007 | D114: 2007 | E114: 2007 | F114: 2007 | G114: 2007 | H114: 2007 | I114: 2007 | J114: 2007 | K114: 2007 | L114: 2007 | M114: 2008 | N114: 2008 | O114: 2008 | P114: 2008 | Q114: 2008 | R114: 2008 | S114: 2008 | T114: 2008 | U114: 2008 | V114: 2008 | W114: 2008 | X114: 2009 | Y114: 2009 | Z114: 2009 | AA114: 2009 | AB114: 2009 | AC114: 2009 | AD114: 2009 | AE114: 2009 | AF114: 2009 | AG114: 2009 | AH114: 2009 | AI114: 2010 | AJ114: 2010 | AK114: 2010 | AL114: 2010 | AM114: 2010 | AN114: 2010 | AO114: 2010 | AP114: 2010 | AQ114: 2010 | AR114: 2010 | AS114: 2010 | AT114: 2011 | AU114: 2011 | AV114: 2011 | AW114: 2011 | AX114: 2011 | AY114: 2011 | AZ114: 2011 | BA114: 2011 | BB114: 2011 | BC114: 2011 | BD114: 2011 | BE114: 2012 | BF114: 2012 | BG114: 2012 | BH114: 2012 | BI114: 2012 | BJ114: 2012 | BK114: 2012 | BL114: 2012 | BM114: 2012 | BN114: 2012 | BO114: 2012 | BP114: 2013 | BQ114: 2013 | BR114: 2013 | BS114: 2013 | BT114: 2013 | BU114: 2013 | BV114: 2013 | BW114: 2013 | BX114: 2013 | BY114: 2013 | BZ114: 2013 | CA114: 2014 | CB114: 2014 | CC114: 2014 | CD114: 2014 | CE114: 2014 | CF114: 2014 | CG114: 2014 | CH114: 2014 | CI114: 2014 | CJ114: 2014 | CK114: 2014 | CL114: 
A115: ANTI | B115: 8+ | C115: 7 | D115: 6 | E115: 5 | F115: 4 | G115: 3 | H115: 2 | I115: 1 | J115: TOT. PREC. | K115: 0 | L115: TOT. GEN. | M115: 8+ | N115: 7 | O115: 6 | P115: 5 | Q115: 4 | R115: 3 | S115: 2 | T115: 1 | U115: TOT. PREC. | V115: 0 | W115: TOT. GEN. | X115: 8+ | Y115: 7 | Z115: 6 | AA115: 5 | AB115: 4 | AC115: 3 | AD115: 2 | AE115: 1 | AF115: TOT. PREC. | AG115: 0 | AH115: TOT. GEN. | AI115: 8+ | AJ115: 7 | AK115: 6 | AL115: 5 | AM115: 4 | AN115: 3 | AO115: 2 | AP115: 1 | AQ115: TOT. PREC. | AR115: 0 | AS115: TOT. GEN. | AT115: 8+ | AU115: 7 | AV115: 6 | AW115: 5 | AX115: 4 | AY115: 3 | AZ115: 2 | BA115: 1 | BB115: TOT. PREC. | BC115: 0 | BD115: TOT. GEN. | BE115: 8+ | BF115: 7 | BG115: 6 | BH115: 5 | BI115: 4 | BJ115: 3 | BK115: 2 | BL115: 1 | BM115: TOT. PREC. | BN115: 0 | BO115: TOT. GEN. | BP115: 8+ | BQ115: 7 | BR115: 6 | BS115: 5 | BT115: 4 | BU115: 3 | BV115: 2 | BW115: 1 | BX115: TOT. PREC. | BY115: 0 | BZ115: TOT. GEN. | CA115: 8+ | CB115: 7 | CC115: 6 | CD115: 5 | CE115: 4 | CF115: 3 | CG115: 2 | CH115: 1 | CI115: TOT. PREC. | CJ115: 0 | CK115: TOT. GEN.
A116: NPAG | B116: 159 | C116: 61 | D116: 71 | E116: 100 | F116: 116 | G116: 110 | H116: 80 | I116: 42 | J116: 739 | K116: 19 | L116: 758 | M116: 140 | N116: 57 | O116: 62 | P116: 92 | Q116: 94 | R116: 101 | S116: 86 | T116: 35 | U116: 666 | V116: 4 | W116: 670 | X116: 164 | Y116: 48 | Z116: 81 | AA116: 72 | AB116: 84 | AC116: 103 | AD116: 90 | AE116: 41 | AF116: 683 | AG116: 3 | AH116: 686 | AI116: 212 | AJ116: 57 | AK116: 79 | AL116: 86 | AM116: 119 | AN116: 142 | AO116: 134 | AP116: 74 | AQ116: 903 | AR116: 4 | AS116: 907 | AT116: 274 | AU116: 89 | AV116: 108 | AW116: 137 | AX116: 201 | AY116: 269 | AZ116: 211 | BA116: 89 | BB116: 1378 | BC116: 16 | BD116: 1394 | BE116: 271 | BF116: 83 | BG116: 110 | BH116: 156 | BI116: 178 | BJ116: 239 | BK116: 171 | BL116: 96 | BM116: 1304 | BN116: 3 | BO116: 1307 | BP116: 248 | BQ116: 68 | BR116: 112 | BS116: 129 | BT116: 177 | BU116: 208 | BV116: 254 | BW116: 103 | BX116: 1299 | BY116: 14 | BZ116: 1313 | CA116: 226 | CB116: 80 | CC116: 113 | CD116: 134 | CE116: 166 | CF116: 262 | CG116: 217 | CH116: 114 | CI116: 1312 | CJ116: 15 | CK116: 1327
A117: INC1 | B117: 21.7 | C117: 18 | D117: 15.6 | E117: 10.8 | F117: 5.5 | G117: 1.6 | H117: 0.3 | I117: 0 | J117: 0.3 | K117: 0 | L117: 0.2 | M117: 17.9 | N117: 12.4 | O117: 10.1 | P117: 8.6 | Q117: 2.2 | R117: 1.7 | S117: 0.3 | T117: 0 | U117: 0.3 | V117: 0 | W117: 0.1 | X117: 20.4 | Y117: 13.4 | Z117: 15.3 | AA117: 8.7 | AB117: 4.5 | AC117: 1.6 | AD117: 0.3 | AE117: 0 | AF117: 0.3 | AG117: 0 | AH117: 0.1 | AI117: 19.4 | AJ117: 19.5 | AK117: 13.3 | AL117: 9.1 | AM117: 5.6 | AN117: 2.2 | AO117: 0.4 | AP117: 0 | AQ117: 0.4 | AR117: 0 | AS117: 0.2 | AT117: 24 | AU117: 23.8 | AV117: 18.5 | AW117: 12.7 | AX117: 9.1 | AY117: 4.1 | AZ117: 0.7 | BA117: 0 | BB117: 0.6 | BC117: 0 | BD117: 0.3 | BE117: 24.8 | BF117: 23.2 | BG117: 20.3 | BH117: 17.6 | BI117: 8.5 | BJ117: 3.7 | BK117: 0.6 | BL117: 0.1 | BM117: 0.6 | BN117: 0 | BO117: 0.3 | BP117: 20.1 | BQ117: 18.9 | BR117: 19.2 | BS117: 13.3 | BT117: 8.2 | BU117: 3.3 | BV117: 0.9 | BW117: 0.1 | BX117: 0.7 | BY117: 0 | BZ117: 0.4 | CA117: 21.7 | CB117: 22.5 | CC117: 20.5 | CD117: 14.2 | CE117: 9.2 | CF117: 4.8 | CG117: 0.8 | CH117: 0.1 | CI117: 0.7 | CJ117: 0 | CK117: 0.4
A118: IPAG | B118: 4 | C118: 1 | D118: 1 | E118: 1 | F118: 1 | G118: 2 | H118: 1 | I118: 1 | J118: 13 | K118: 0 | L118: 13 | M118: 5 | N118: 2 | O118: 1 | P118: 1 | Q118: 1 | R118: 1 | S118: 1 | T118: 1 | U118: 14 | V118: 0 | W118: 14 | X118: 7 | Y118: 1 | Z118: 2 | AA118: 1 | AB118: 1 | AC118: 1 | AD118: 1 | AE118: 0 | AF118: 16 | AG118: 0 | AH118: 16 | AI118: 5 | AJ118: 1 | AK118: 1 | AL118: 2 | AM118: 2 | AN118: 2 | AO118: 2 | AP118: 1 | AQ118: 15 | AR118: 0 | AS118: 15 | AT118: 6 | AU118: 2 | AV118: 2 | AW118: 2 | AX118: 3 | AY118: 3 | AZ118: 2 | BA118: 1 | BB118: 22 | BC118: 0 | BD118: 22 | BE118: 5 | BF118: 1 | BG118: 2 | BH118: 2 | BI118: 3 | BJ118: 3 | BK118: 2 | BL118: 1 | BM118: 19 | BN118: 0 | BO118: 19 | BP118: 6 | BQ118: 2 | BR118: 2 | BS118: 3 | BT118: 2 | BU118: 2 | BV118: 3 | BW118: 1 | BX118: 20 | BY118: 0 | BZ118: 20 | CA118: 5 | CB118: 2 | CC118: 2 | CD118: 3 | CE118: 2 | CF118: 3 | CG118: 2 | CH118: 1 | CI118: 19 | CJ118: 0 | CK118: 19
A119: INC2 | B119: 41.9 | C119: 36 | D119: 25.2 | E119: 18.5 | F119: 8 | G119: 3.2 | H119: 0.5 | I119: 0.1 | J119: 1.2 | K119: 0 | L119: 0.9 | M119: 36.9 | N119: 41.1 | O119: 18.2 | P119: 20.4 | Q119: 6.1 | R119: 2.9 | S119: 0.5 | T119: 0.1 | U119: 1.2 | V119: 0 | W119: 0.9 | X119: 46.9 | Y119: 25.5 | Z119: 29.8 | AA119: 17.6 | AB119: 8.2 | AC119: 2.1 | AD119: 0.4 | AE119: 0.1 | AF119: 1.3 | AG119: 0 | AH119: 1 | AI119: 37.2 | AJ119: 32.9 | AK119: 26 | AL119: 21.7 | AM119: 8.5 | AN119: 3.2 | AO119: 0.7 | AP119: 0.1 | AQ119: 1.3 | AR119: 0 | AS119: 1 | AT119: 57.1 | AU119: 53.9 | AV119: 38.2 | AW119: 23.4 | AX119: 12.7 | AY119: 6.6 | AZ119: 0.8 | BA119: 0.1 | BB119: 1.9 | BC119: 0 | BD119: 1.4 | BE119: 38 | BF119: 38.9 | BG119: 35 | BH119: 18.2 | BI119: 14.4 | BJ119: 5.4 | BK119: 0.8 | BL119: 0.1 | BM119: 1.8 | BN119: 0 | BO119: 1.3 | BP119: 43.4 | BQ119: 44.1 | BR119: 42.9 | BS119: 31.1 | BT119: 11.3 | BU119: 4.2 | BV119: 1.2 | BW119: 0.1 | BX119: 2 | BY119: 0 | BZ119: 1.5 | CA119: 39.2 | CB119: 44 | CC119: 31.3 | CD119: 21.9 | CE119: 14.4 | CF119: 5 | CG119: 1 | CH119: 0.1 | CI119: 2 | CJ119: 0 | CK119: 1.5
A120: PAGM | B120: 26618 | C120: 21484 | D120: 18973 | E120: 12703 | F120: 10867 | G120: 14045 | H120: 15118 | I120: 14381 | J120: 17292 | K120: 2728 | L120: 16927 | M120: 33653 | N120: 28846 | O120: 18380 | P120: 16264 | Q120: 11441 | R120: 14534 | S120: 12851 | T120: 32068 | U120: 20664 | V120: 4729 | W120: 20569 | X120: 45333 | Y120: 17291 | Z120: 23476 | AA120: 18138 | AB120: 16798 | AC120: 11781 | AD120: 11640 | AE120: 11734 | AF120: 22877 | AG120: 21980 | AH120: 22873 | AI120: 23898 | AJ120: 21151 | AK120: 15265 | AL120: 20982 | AM120: 13022 | AN120: 12288 | AO120: 12647 | AP120: 14700 | AQ120: 17009 | AR120: 16519 | AS120: 17007 | AT120: 22793 | AU120: 24266 | AV120: 18517 | AW120: 15954 | AX120: 14494 | AY120: 12821 | AZ120: 9012 | BA120: 8189 | BB120: 15662 | BC120: 1567 | BD120: 15501 | BE120: 19299 | BF120: 16406 | BG120: 19580 | BH120: 11608 | BI120: 15487 | BJ120: 14084 | BK120: 10922 | BL120: 6605 | BM120: 14709 | BN120: 2283 | BO120: 14681 | BP120: 24561 | BQ120: 24192 | BR120: 16830 | BS120: 21218 | BT120: 11962 | BU120: 11085 | BV120: 10915 | BW120: 6947 | BX120: 15604 | BY120: 2684 | BZ120: 15466 | CA120: 23396 | CB120: 22597 | CC120: 17765 | CD120: 19289 | CE120: 14022 | CF120: 9979 | CG120: 9322 | CH120: 6260 | CI120: 14761 | CJ120: 2336 | CK120: 14620
A121: RAP1 | B121: 1.9 | C121: 2 | D121: 1.6 | E121: 1.7 | F121: 1.5 | G121: 1.9 | H121: 2.2 | I121: 3.9 | J121: 4 | K121: 1.6 | L121: 5.6 | M121: 2.1 | N121: 3.3 | O121: 1.8 | P121: 2.4 | Q121: 2.8 | R121: 1.7 | S121: 1.8 | T121: 8.4 | U121: 4.7 | V121: 2.6 | W121: 6.4 | X121: 2.3 | Y121: 1.9 | Z121: 1.9 | AA121: 2 | AB121: 1.8 | AC121: 1.3 | AD121: 1.6 | AE121: 2.9 | AF121: 4.9 | AG121: 11.5 | AH121: 6.8 | AI121: 1.9 | AJ121: 1.7 | AK121: 2 | AL121: 2.4 | AM121: 1.5 | AN121: 1.4 | AO121: 1.7 | AP121: 3.6 | AQ121: 3.6 | AR121: 8.4 | AS121: 4.9 | AT121: 2.4 | AU121: 2.3 | AV121: 2.1 | AW121: 1.8 | AX121: 1.4 | AY121: 1.6 | AZ121: 1.2 | BA121: 2 | BB121: 3.2 | BC121: 0.8 | BD121: 4.4 | BE121: 1.5 | BF121: 1.7 | BG121: 1.7 | BH121: 1 | BI121: 1.7 | BJ121: 1.5 | BK121: 1.4 | BL121: 1.5 | BM121: 2.9 | BN121: 1.1 | BO121: 3.9 | BP121: 2.2 | BQ121: 2.3 | BR121: 2.2 | BS121: 2.3 | BT121: 1.4 | BU121: 1.3 | BV121: 1.4 | BW121: 1.6 | BX121: 3 | BY121: 1.3 | BZ121: 4 | CA121: 1.8 | CB121: 2 | CC121: 1.5 | CD121: 1.5 | CE121: 1.6 | CF121: 1.1 | CG121: 1.2 | CH121: 1.4 | CI121: 2.8 | CJ121: 1 | CK121: 3.6
A122: NRIS | B122: 1043 | C122: 363 | D122: 458 | E122: 516 | F122: 630 | G122: 599 | H122: 508 | I122: 271 | J122: 4388 | K122: 39 | L122: 4427 | M122: 1083 | N122: 361 | O122: 412 | P122: 522 | Q122: 534 | R122: 545 | S122: 506 | T122: 265 | U122: 4228 | V122: 27 | W122: 4255 | X122: 1102 | Y122: 303 | Z122: 382 | AA122: 434 | AB122: 493 | AC122: 511 | AD122: 499 | AE122: 334 | AF122: 4059 | AG122: 49 | AH122: 4108 | AI122: 1127 | AJ122: 320 | AK122: 374 | AL122: 483 | AM122: 507 | AN122: 646 | AO122: 602 | AP122: 380 | AQ122: 4439 | AR122: 45 | AS122: 4484 | AT122: 1288 | AU122: 308 | AV122: 440 | AW122: 496 | AX122: 666 | AY122: 714 | AZ122: 686 | BA122: 326 | BB122: 4924 | BC122: 44 | BD122: 4968 | BE122: 1183 | BF122: 337 | BG122: 334 | BH122: 481 | BI122: 522 | BJ122: 631 | BK122: 523 | BL122: 318 | BM122: 4329 | BN122: 29 | BO122: 4358 | BP122: 1205 | BQ122: 282 | BR122: 395 | BS122: 486 | BT122: 608 | BU122: 674 | BV122: 696 | BW122: 429 | BX122: 4776 | BY122: 38 | BZ122: 4814 | CA122: 1110 | CB122: 295 | CC122: 371 | CD122: 501 | CE122: 555 | CF122: 706 | CG122: 709 | CH122: 369 | CI122: 4616 | CJ122: 44 | CK122: 4660
A123: INC3 | B123: 21.9 | C123: 21.5 | D123: 17.5 | E123: 10.2 | F123: 11 | G123: 5.1 | H123: 2.6 | I123: 0.4 | J123: 3.4 | K123: 0 | L123: 1.1 | M123: 20.8 | N123: 18.5 | O123: 9.7 | P123: 11.7 | Q123: 6 | R123: 6.9 | S123: 2.6 | T123: 0.3 | U123: 3.2 | V123: 0 | W123: 1 | X123: 21.5 | Y123: 19.1 | Z123: 15.7 | AA123: 10.5 | AB123: 10.6 | AC123: 6.3 | AD123: 2 | AE123: 0.4 | AF123: 2.9 | AG123: 0 | AH123: 1 | AI123: 23.8 | AJ123: 22 | AK123: 15.8 | AL123: 18.8 | AM123: 12.2 | AN123: 7.2 | AO123: 2.3 | AP123: 0.4 | AQ123: 3.1 | AR123: 0 | AS123: 1.1 | AT123: 26.8 | AU123: 16.7 | AV123: 25.3 | AW123: 19.8 | AX123: 14.6 | AY123: 7.9 | AZ123: 2.9 | BA123: 0.4 | BB123: 3.7 | BC123: 0 | BD123: 1.3 | BE123: 21 | BF123: 26.1 | BG123: 19.2 | BH123: 15.4 | BI123: 12 | BJ123: 7.2 | BK123: 2.3 | BL123: 0.4 | BM123: 3.3 | BN123: 0 | BO123: 1.2 | BP123: 24.2 | BQ123: 22.8 | BR123: 17.7 | BS123: 18.5 | BT123: 13.3 | BU123: 7.7 | BV123: 3.1 | BW123: 0.5 | BX123: 3.8 | BY123: 0 | BZ123: 1.4 | CA123: 25.2 | CB123: 24.2 | CC123: 24.7 | CD123: 20 | CE123: 12 | CF123: 7.8 | CG123: 2.9 | CH123: 0.5 | CI123: 3.7 | CJ123: 0 | CK123: 1.4
A124: IRIS | B124: 25 | C124: 7 | D124: 10 | E124: 9 | F124: 11 | G124: 8 | H124: 8 | I124: 4 | J124: 80 | K124: 0 | L124: 81 | M124: 24 | N124: 6 | O124: 7 | P124: 9 | Q124: 8 | R124: 8 | S124: 8 | T124: 3 | U124: 73 | V124: 0 | W124: 73 | X124: 24 | Y124: 5 | Z124: 7 | AA124: 8 | AB124: 7 | AC124: 9 | AD124: 6 | AE124: 5 | AF124: 72 | AG124: 0 | AH124: 72 | AI124: 23 | AJ124: 6 | AK124: 8 | AL124: 7 | AM124: 10 | AN124: 9 | AO124: 9 | AP124: 4 | AQ124: 77 | AR124: 1 | AS124: 77 | AT124: 29 | AU124: 9 | AV124: 8 | AW124: 10 | AX124: 11 | AY124: 12 | AZ124: 11 | BA124: 4 | BB124: 94 | BC124: 0 | BD124: 95 | BE124: 31 | BF124: 6 | BG124: 7 | BH124: 10 | BI124: 11 | BJ124: 11 | BK124: 7 | BL124: 5 | BM124: 88 | BN124: 0 | BO124: 88 | BP124: 32 | BQ124: 7 | BR124: 9 | BS124: 11 | BT124: 13 | BU124: 13 | BV124: 15 | BW124: 6 | BX124: 107 | BY124: 0 | BZ124: 107 | CA124: 29 | CB124: 6 | CC124: 9 | CD124: 13 | CE124: 11 | CF124: 17 | CG124: 15 | CH124: 5 | CI124: 106 | CJ124: 0 | CK124: 106
A125: INC4 | B125: 48.4 | C125: 43.3 | D125: 41.7 | E125: 32 | F125: 30.1 | G125: 15.6 | H125: 6.8 | I125: 1 | J125: 11.6 | K125: 0 | L125: 5 | M125: 48.5 | N125: 42.3 | O125: 37.8 | P125: 32.9 | Q125: 24.6 | R125: 15.6 | S125: 6.1 | T125: 0.8 | U125: 10.7 | V125: 0 | W125: 4.5 | X125: 41.3 | Y125: 37.7 | Z125: 32.3 | AA125: 28.9 | AB125: 20.8 | AC125: 14.3 | AD125: 4.9 | AE125: 1.2 | AF125: 9.7 | AG125: 0 | AH125: 4.2 | AI125: 40.3 | AJ125: 37.3 | AK125: 39.2 | AL125: 30.1 | AM125: 26.6 | AN125: 14 | AO125: 6.6 | AP125: 1 | AQ125: 10.1 | AR125: 0.1 | AS125: 4.5 | AT125: 45.5 | AU125: 56.9 | AV125: 38.1 | AW125: 37.2 | AX125: 28.3 | AY125: 17.8 | AZ125: 7.1 | BA125: 1 | BB125: 11.8 | BC125: 0 | BD125: 5.5 | BE125: 48.2 | BF125: 40.6 | BG125: 36.6 | BH125: 33.1 | BI125: 25.9 | BJ125: 13 | BK125: 4.9 | BL125: 1.3 | BM125: 10.8 | BN125: 0 | BO125: 5.2 | BP125: 48.2 | BQ125: 46 | BR125: 42 | BS125: 37.7 | BT125: 27.3 | BU125: 18.2 | BV125: 9.4 | BW125: 1.5 | BX125: 13.3 | BY125: 0 | BZ125: 6.5 | CA125: 44.4 | CB125: 48 | CC125: 47.2 | CD125: 38.8 | CE125: 28.4 | CF125: 19.1 | CG125: 9.3 | CH125: 1.3 | CI125: 12.8 | CJ125: 0 | CK125: 6.3
A126: RISM | B126: 23615 | C126: 18054 | D126: 20751 | E126: 16631 | F126: 17132 | G126: 14030 | H126: 15879 | I126: 13326 | J126: 18264 | K126: 9206 | L126: 18185 | M126: 22254 | N126: 17980 | O126: 16062 | P126: 16470 | Q126: 15204 | R126: 15488 | S126: 15010 | T126: 11092 | U126: 17242 | V126: 11269 | W126: 17205 | X126: 22197 | Y126: 17516 | Z126: 18302 | AA126: 17600 | AB126: 14840 | AC126: 17416 | AD126: 12952 | AE126: 13806 | AF126: 17661 | AG126: 9839 | AH126: 17568 | AI126: 20210 | AJ126: 19642 | AK126: 21149 | AL126: 15186 | AM126: 20153 | AN126: 14231 | AO126: 15161 | AP126: 10094 | AQ126: 17274 | AR126: 14919 | AS126: 17250 | AT126: 22382 | AU126: 29494 | AV126: 17485 | AW126: 20124 | AX126: 16899 | AY126: 16972 | AZ126: 16565 | BA126: 12393 | BB126: 19164 | BC126: 4694 | BD126: 19036 | BE126: 25913 | BF126: 18804 | BG126: 20957 | BH126: 20141 | BI126: 20914 | BJ126: 16682 | BK126: 14182 | BL126: 16745 | BM126: 20297 | BN126: 6751 | BO126: 20207 | BP126: 26500 | BQ126: 25151 | BR126: 23621 | BS126: 23338 | BT126: 22099 | BU126: 18781 | BV126: 21505 | BW126: 13882 | BX126: 22344 | BY126: 7409 | BZ126: 22226 | CA126: 26492 | CB126: 21809 | CC126: 25057 | CD126: 25541 | CE126: 20303 | CF126: 23441 | CG126: 20869 | CH126: 14481 | CI126: 22939 | CJ126: 4635 | CK126: 22767
A127: RAP2 | B127: 2.2 | C127: 2 | D127: 2.4 | E127: 3.1 | F127: 2.7 | G127: 3.1 | H127: 2.6 | I127: 2.8 | J127: 3.4 | K127: 2.9 | L127: 4.7 | M127: 2.3 | N127: 2.3 | O127: 3.9 | P127: 2.8 | Q127: 4.1 | R127: 2.2 | S127: 2.4 | T127: 2.4 | U127: 3.3 | V127: 3.5 | W127: 4.5 | X127: 1.9 | Y127: 2 | Z127: 2.1 | AA127: 2.7 | AB127: 2 | AC127: 2.3 | AD127: 2.5 | AE127: 3.1 | AF127: 3.3 | AG127: 2.9 | AH127: 4.4 | AI127: 1.7 | AJ127: 1.7 | AK127: 2.5 | AL127: 1.6 | AM127: 2.2 | AN127: 1.9 | AO127: 2.9 | AP127: 2.3 | AQ127: 3.2 | AR127: 4.3 | AS127: 4.2 | AT127: 1.7 | AU127: 3.4 | AV127: 1.5 | AW127: 1.9 | AX127: 1.9 | AY127: 2.3 | AZ127: 2.5 | BA127: 2.6 | BB127: 3.2 | BC127: 1.3 | BD127: 4.3 | BE127: 2.3 | BF127: 1.6 | BG127: 1.9 | BH127: 2.1 | BI127: 2.1 | BJ127: 1.8 | BK127: 2.1 | BL127: 3.3 | BM127: 3.2 | BN127: 1.8 | BO127: 4.4 | BP127: 2 | BQ127: 2 | BR127: 2.4 | BS127: 2 | BT127: 2.1 | BU127: 2.4 | BV127: 3 | BW127: 2.8 | BX127: 3.5 | BY127: 2 | BZ127: 4.7 | CA127: 1.8 | CB127: 2 | CC127: 1.9 | CD127: 1.9 | CE127: 2.4 | CF127: 2.4 | CG127: 3.2 | CH127: 2.7 | CI127: 3.4 | CJ127: 1.2 | CK127: 4.5
BZ129: VARIAZ OMOG 2012/2011
BZ130: NPAG | CA130: =(CA96/B116-1)*100 -> 42.1 | CB130: 31.1 | CC130: 59.2 | CD130: 34.0 | CE130: 43.1 | CF130: 138.2 | CG130: 171.3 | CH130: 171.4 | CI130: 77.5 | CJ130: -21.1 | CK130: 75.1
BZ131: IPAG | CA131: =(CA98/B118-1)*100 -> 25.0 | CB131: 100.0 | CC131: 100.0 | CD131: 200.0 | CE131: 100.0 | CF131: 50.0 | CG131: 100.0 | CH131: 0.0 | CI131: 46.2 | CK131: 46.2
BZ132: PAGM | CA132: =(CA100/B120-1)*100 -> -12.1 | CB132: 5.2 | CC132: -6.4 | CD132: 51.8 | CE132: 29.0 | CF132: -28.9 | CG132: -38.3 | CH132: -56.5 | CI132: -14.6 | CJ132: -14.4 | CK132: -13.6
BZ133: NRIS | CA133: =(CA102/B122-1)*100 -> 6.4 | CB133: -18.7 | CC133: -19.0 | CD133: -2.9 | CE133: -11.9 | CF133: 17.9 | CG133: 39.6 | CH133: 36.2 | CI133: 5.2 | CJ133: 12.8 | CK133: 5.3
BZ134: IRIS | CA134: =(CA104/B124-1)*100 -> 16.0 | CB134: -14.3 | CC134: -10.0 | CD134: 44.4 | CE134: 0.0 | CF134: 112.5 | CG134: 87.5 | CH134: 25.0 | CI134: 32.5 | CK134: 30.9
BZ135: RISM | CA135: =(CA106/B126-1)*100 -> 12.2 | CB135: 20.8 | CC135: 20.8 | CD135: 53.6 | CE135: 18.5 | CF135: 67.1 | CG135: 31.4 | CH135: 8.7 | CI135: 25.6 | CJ135: -49.7 | CK135: 25.2

Sheet fd-22-24 (hidden)
A1: Prospetto 1
A2: ANNO | B2: NIMP | C2: PREM | D2: PTOT | E2: PREC | F2: RPFR | G2: RPRC | H2: PROV | I2: SPAQ | J2: SPAM | K2: ONER | L2: ALTP | M2: SALT | N2: QUTI | O2: RISL | P2: RISN | Q2: I004 | R2: I007 | S2: I008 | T2: I009 | U2: I010 | V2: I011 | W2: I012 | X2: I013 | Y2: I018 | Z2: I023 | AA2: I024 | AB2: I025 | AC2: I026 | AD2: I027 | AE2: I028 | AF2: I029 | AG2: I035
A3: 2006 | B3: 96 | C3: 3101157 | D3: 36670980 | E3: 3042607 | F3: 1263525 | G3: 371 | H3: 748461 | I3: 108805 | J3: 146084 | K3: -1547186 | L3: -76348 | M3: 414838 | N3: 99081 | O3: 513917 | P3: 462625 | Q3: 1263896 | R3: 358313 | S3: 427 | T3: 36737 | U3: 395478 | V3: 1167424 | W3: 54835 | X3: 1222259 | Y3: -1617162 | Z3: 1024734 | AA3: 9654 | AB3: 55424 | AC3: 1089812 | AD3: 710393 | AE3: 37178 | AF3: 747571 | AG3: 69977
A4: 2007 | B4: 94 | C4: 3190323 | D4: 37143745 | E4: 3131349 | F4: 1320068 | G4: 534 | H4: 790456 | I4: 119123 | J4: 171655 | K4: -1511929 | L4: -74415 | M4: 462209 | N4: 106780 | O4: 568989 | P4: 515079 | Q4: 1320602 | R4: 362078 | S4: 213 | T4: 36477 | U4: 398767 | V4: 1146100 | W4: 57011 | X4: 1203111 | Y4: -1601328 | Z4: 1073177 | AA4: 7709 | AB4: 58254 | AC4: 1139143 | AD4: 704947 | AE4: 38710 | AF4: 743654 | AG4: 89400
A5: 2008 | B5: 103 | C5: 3201795 | D5: 37013985 | E5: 3184716 | F5: 1331173 | G5: 538 | H5: 784917 | I5: 116773 | J5: 155543 | K5: -1567037 | L5: -77717 | M5: 480236 | N5: 40858 | O5: 521094 | P5: 480697 | Q5: 1331710 | R5: 379202 | S5: 325 | T5: 36801 | U5: 416328 | V5: 1151760 | W5: 53007 | X5: 1204766 | Y5: -1620561 | Z5: 1100049 | AA5: 8224 | AB5: 57858 | AC5: 1166131 | AD5: 691533 | AE5: 37680 | AF5: 729211 | AG5: 53524
A6: 2009 | B6: 96 | C6: 3179286 | D6: 36284330 | E6: 3164002 | F6: 1344628 | G6: 858 | H6: 763044 | I6: 120989 | J6: 149937 | K6: -1698772 | L6: -72610 | M6: 359593 | N6: 122696 | O6: 482289 | P6: 459139 | Q6: 1345488 | R6: 395920 | S6: 166 | T6: 34995 | U6: 431083 | V6: 1208771 | W6: 51876 | X6: 1260647 | Y6: -1691453 | Z6: 1136268 | AA6: 7038 | AB6: 54995 | AC6: 1198302 | AD6: 754850 | AE6: 33451 | AF6: 788301 | AG6: -7319
A7: 2010 | B7: 90 | C7: 3047310 | D7: 35159125 | E7: 3029996 | F7: 1322326 | G7: 486 | H7: 750359 | I7: 121006 | J7: 134661 | K7: -1562265 | L7: -80669 | M7: 382086 | N7: 57092 | O7: 439178 | P7: 397924 | Q7: 1322806 | R7: 366847 | S7: 488 | T7: 33278 | U7: 400612 | V7: 1168292 | W7: 47499 | X7: 1215792 | Y7: -1615633 | Z7: 1094886 | AA7: 6976 | AB7: 54155 | AC7: 1156016 | AD7: 760992 | AE7: 29949 | AF7: 790942 | AG7: 53368
A8: 2011 | B8: 87 | C8: 3036165 | D8: 36029469 | E8: 2989330 | F8: 1369649 | G8: 2 | H8: 736956 | I8: 116995 | J8: 138530 | K8: -1480341 | L8: -67705 | M8: 448855 | N8: 38345 | O8: 487200 | P8: 461839 | Q8: 1369649 | R8: 346947 | S8: 795 | T8: 38136 | U8: 385876 | V8: 1112300 | W8: 46962 | X8: 1159262 | Y8: -1543980 | Z8: 1058057 | AA8: 6878 | AB8: 54477 | AC8: 1119413 | AD8: 793773 | AE8: 33121 | AF8: 826894 | AG8: 63639
A9: 2012 | B9: 86 | C9: 2976183 | D9: 35274012 | E9: 2945989 | F9: 1385967 | G9: 0 | H9: 709945 | I9: 129671 | J9: 138040 | K9: -1397480 | L9: -52587 | M9: 518499 | N9: 94370 | O9: 612869 | P9: 569135 | Q9: 1385968 | R9: 301455 | S9: 363 | T9: 36263 | U9: 338080 | V9: 1070907 | W9: 45033 | X9: 1115939 | Y9: -1452413 | Z9: 1021072 | AA9: 7282 | AB9: 56077 | AC9: 1084432 | AD9: 806879 | AE9: 36250 | AF9: 843130 | AG9: 54935
A10: 2013 | B10: 82 | C10: 2957573 | D10: 33530196 | E10: 2959329 | F10: 1382895 | G10: 26 | H10: 717229 | I10: 134833 | J10: 145792 | K10: -1259523 | L10: -65887 | M10: 636045 | N10: 67216 | O10: 703261 | P10: 642020 | Q10: 1382919 | R10: 269010 | S10: 439 | T10: 38049 | U10: 307500 | V10: 1033963 | W10: 46994 | X10: 1080958 | Y10: -1385854 | Z10: 943478 | AA10: 6639 | AB10: 57039 | AC10: 1007157 | AD10: 792436 | AE10: 34773 | AF10: 827210 | AG10: 126329
A11: 2014 | B11: 74 | C11: 2973552 | D11: 32613082 | E11: 2954815 | F11: 1402921 | G11: 62 | H11: 732150 | I11: 138094 | J11: 155435 | K11: -1293226 | L11: -63247 | M11: 572667 | N11: 71212 | O11: 643879 | P11: 612540 | Q11: 1402973 | R11: 262001 | S11: 485 | T11: 40110 | U11: 302597 | V11: 1033215 | W11: 50140 | X11: 1083354 | Y11: -1382927 | Z11: 893738 | AA11: 6920 | AB11: 58315 | AC11: 958972 | AD11: 826158 | AE11: 35440 | AF11: 861598 | AG11: 89701
A12: 
A14: Copiare con trasposizione dei dati
A18: ANNO | B18: 2006 | C18: 2007 | D18: 2008 | E18: 2009 | F18: 2010 | G18: 2011 | H18: 2012 | I18: 2013 | J18: 2014 | K18: 
A19: NIMP | B19: 96 | C19: 94 | D19: 103 | E19: 96 | F19: 90 | G19: 87 | H19: 86 | I19: 82 | J19: 74
A20: PREM | B20: 3101157 | C20: 3190323 | D20: 3201795 | E20: 3179286 | F20: 3047310 | G20: 3036165 | H20: 2976183 | I20: 2957573 | J20: 2973552
A21: PTOT | B21: 36670980 | C21: 37143745 | D21: 37013985 | E21: 36284330 | F21: 35159125 | G21: 36029469 | H21: 35274012 | I21: 33530196 | J21: 32613082
A22: PREC | B22: 3042607 | C22: 3131349 | D22: 3184716 | E22: 3164002 | F22: 3029996 | G22: 2989330 | H22: 2945989 | I22: 2959329 | J22: 2954815
A23: RPFR | B23: 1263525 | C23: 1320068 | D23: 1331173 | E23: 1344628 | F23: 1322326 | G23: 1369649 | H23: 1385967 | I23: 1382895 | J23: 1402921
A24: RPRC | B24: 371 | C24: 534 | D24: 538 | E24: 858 | F24: 486 | G24: 2 | H24: 0 | I24: 26 | J24: 62
A25: PROV | B25: 748461 | C25: 790456 | D25: 784917 | E25: 763044 | F25: 750359 | G25: 736956 | H25: 709945 | I25: 717229 | J25: 732150
A26: SPAQ | B26: 108805 | C26: 119123 | D26: 116773 | E26: 120989 | F26: 121006 | G26: 116995 | H26: 129671 | I26: 134833 | J26: 138094
A27: SPAM | B27: 146084 | C27: 171655 | D27: 155543 | E27: 149937 | F27: 134661 | G27: 138530 | H27: 138040 | I27: 145792 | J27: 155435
A28: ONER | B28: -1547186 | C28: -1511929 | D28: -1567037 | E28: -1698772 | F28: -1562265 | G28: -1480341 | H28: -1397480 | I28: -1259523 | J28: -1293226
A29: ALTP | B29: -76348 | C29: -74415 | D29: -77717 | E29: -72610 | F29: -80669 | G29: -67705 | H29: -52587 | I29: -65887 | J29: -63247
A30: SALT | B30: 414838 | C30: 462209 | D30: 480236 | E30: 359593 | F30: 382086 | G30: 448855 | H30: 518499 | I30: 636045 | J30: 572667
A31: QUTI | B31: 99081 | C31: 106780 | D31: 40858 | E31: 122696 | F31: 57092 | G31: 38345 | H31: 94370 | I31: 67216 | J31: 71212
A32: RISL | B32: 513917 | C32: 568989 | D32: 521094 | E32: 482289 | F32: 439178 | G32: 487200 | H32: 612869 | I32: 703261 | J32: 643879
A33: RISN | B33: 462625 | C33: 515079 | D33: 480697 | E33: 459139 | F33: 397924 | G33: 461839 | H33: 569135 | I33: 642020 | J33: 612540
A34: I004 | B34: 1263896 | C34: 1320602 | D34: 1331710 | E34: 1345488 | F34: 1322806 | G34: 1369649 | H34: 1385968 | I34: 1382919 | J34: 1402973
A35: I007 | B35: 358313 | C35: 362078 | D35: 379202 | E35: 395920 | F35: 366847 | G35: 346947 | H35: 301455 | I35: 269010 | J35: 262001
A36: I008 | B36: 427 | C36: 213 | D36: 325 | E36: 166 | F36: 488 | G36: 795 | H36: 363 | I36: 439 | J36: 485
A37: I009 | B37: 36737 | C37: 36477 | D37: 36801 | E37: 34995 | F37: 33278 | G37: 38136 | H37: 36263 | I37: 38049 | J37: 40110
A38: I010 | B38: 395478 | C38: 398767 | D38: 416328 | E38: 431083 | F38: 400612 | G38: 385876 | H38: 338080 | I38: 307500 | J38: 302597
A39: I011 | B39: 1167424 | C39: 1146100 | D39: 1151760 | E39: 1208771 | F39: 1168292 | G39: 1112300 | H39: 1070907 | I39: 1033963 | J39: 1033215
A40: I012 | B40: 54835 | C40: 57011 | D40: 53007 | E40: 51876 | F40: 47499 | G40: 46962 | H40: 45033 | I40: 46994 | J40: 50140
A41: I013 | B41: 1222259 | C41: 1203111 | D41: 1204766 | E41: 1260647 | F41: 1215792 | G41: 1159262 | H41: 1115939 | I41: 1080958 | J41: 1083354
A42: I018 | B42: -1617162 | C42: -1601328 | D42: -1620561 | E42: -1691453 | F42: -1615633 | G42: -1543980 | H42: -1452413 | I42: -1385854 | J42: -1382927
A43: I023 | B43: 1024734 | C43: 1073177 | D43: 1100049 | E43: 1136268 | F43: 1094886 | G43: 1058057 | H43: 1021072 | I43: 943478 | J43: 893738
A44: I024 | B44: 9654 | C44: 7709 | D44: 8224 | E44: 7038 | F44: 6976 | G44: 6878 | H44: 7282 | I44: 6639 | J44: 6920
A45: I025 | B45: 55424 | C45: 58254 | D45: 57858 | E45: 54995 | F45: 54155 | G45: 54477 | H45: 56077 | I45: 57039 | J45: 58315
A46: I026 | B46: 1089812 | C46: 1139143 | D46: 1166131 | E46: 1198302 | F46: 1156016 | G46: 1119413 | H46: 1084432 | I46: 1007157 | J46: 958972
A47: I027 | B47: 710393 | C47: 704947 | D47: 691533 | E47: 754850 | F47: 760992 | G47: 793773 | H47: 806879 | I47: 792436 | J47: 826158
A48: I028 | B48: 37178 | C48: 38710 | D48: 37680 | E48: 33451 | F48: 29949 | G48: 33121 | H48: 36250 | I48: 34773 | J48: 35440
A49: I029 | B49: 747571 | C49: 743654 | D49: 729211 | E49: 788301 | F49: 790942 | G49: 826894 | H49: 843130 | I49: 827210 | J49: 861598
A50: I035 | B50: 69977 | C50: 89400 | D50: 53524 | E50: -7319 | F50: 53368 | G50: 63639 | H50: 54935 | I50: 126329 | J50: 89701
A56: Senza compagnie
A57: ANNO | B57: NIMP | C57: PREM | D57: PTOT | E57: PREC | F57: RPFR | G57: RPRC | H57: PROV | I57: SPAQ | J57: SPAM | K57: ONER | L57: ALTP | M57: SALT | N57: QUTI | O57: RISL | P57: RISN | Q57: I004 | R57: I007 | S57: I008 | T57: I009 | U57: I010 | V57: I011 | W57: I012 | X57: I013 | Y57: I018 | Z57: I023 | AA57: I024 | AB57: I025 | AC57: I026 | AD57: I027 | AE57: I028 | AF57: I029 | AG57: I035
A58: 2006 | B58: 92 | C58: 3010252 | D58: 35198308 | E58: 2952825 | F58: 1226265 | G58: 371 | H58: 725862 | I58: 107348 | J58: 140015 | K58: -1505303 | L58: -73172 | M58: 400240 | N58: 96791 | O58: 497029 | P58: 445157 | Q58: 1226636 | R58: 350531 | S58: 427 | T58: 35924 | U58: 386883 | V58: 1127718 | W58: 53394 | X58: 1181112 | Y58: -1567420 | Z58: 997215 | AA58: 9445 | AB58: 53814 | AC58: 1060474 | AD58: 690114 | AE58: 36336 | AF58: 726450 | AG58: 62118
A59: 2007 | B59: 89 | C59: 3100573 | D59: 35751942 | E59: 3042833 | F59: 1284067 | G59: 534 | H59: 767852 | I59: 117364 | J59: 164807 | K59: -1476487 | L59: -73548 | M59: 441213 | N59: 104958 | O59: 546171 | P59: 494062 | Q59: 1284602 | R59: 352744 | S59: 185 | T59: 35623 | U59: 388551 | V59: 1114782 | W59: 55774 | X59: 1170556 | Y59: -1558274 | Z59: 1043856 | AA59: 7426 | AB59: 56610 | AC59: 1107895 | AD59: 682899 | AE59: 37856 | AF59: 720752 | AG59: 81788
A60: 2008 | B60: 98 | C60: 3099482 | D60: 35372622 | E60: 3086560 | F60: 1291016 | G60: 538 | H60: 758180 | I60: 114202 | J60: 147795 | K60: -1530194 | L60: -75892 | M60: 457804 | N60: 40790 | O60: 498594 | P60: 458804 | Q60: 1291553 | R60: 369038 | S60: 324 | T60: 35818 | U60: 405180 | V60: 1121472 | W60: 51873 | X60: 1173344 | Y60: -1577991 | Z60: 1071745 | AA60: 7902 | AB60: 56009 | AC60: 1135656 | AD60: 672657 | AE60: 37108 | AF60: 709763 | AG60: 47797
A61: 2009 | B61: 91 | C61: 3068725 | D61: 34450515 | E61: 3053481 | F61: 1304433 | G61: 858 | H61: 734427 | I61: 118366 | J61: 140694 | K61: -1655098 | L61: -71135 | M61: 334704 | N61: 118702 | O61: 453406 | P61: 431729 | Q61: 1305293 | R61: 385106 | S61: 163 | T61: 34108 | U61: 419379 | V61: 1178167 | W61: 50425 | X61: 1228592 | Y61: -1647705 | Z61: 1107566 | AA61: 6685 | AB61: 53275 | AC61: 1167527 | AD61: 735256 | AE61: 32939 | AF61: 768195 | AG61: -7393
A62: 2010 | B62: 89 | C62: 3046322 | D62: 35124971 | E62: 3029233 | F62: 1321871 | G62: 486 | H62: 750333 | I62: 120586 | J62: 134482 | K62: -1562125 | L62: -80665 | M62: 382092 | N62: 57092 | O62: 439184 | P62: 397930 | Q62: 1322351 | R62: 366826 | S62: 488 | T62: 33237 | U62: 400550 | V62: 1168155 | W62: 47492 | X62: 1215648 | Y62: -1615427 | Z62: 1094840 | AA62: 6976 | AB62: 54121 | AC62: 1155936 | AD62: 760954 | AE62: 29946 | AF62: 790901 | AG62: 53302
A63: 2011 | B63: 86 | C63: 3034415 | D63: 35962907 | E63: 2987995 | F63: 1368779 | G63: 2 | H63: 736897 | I63: 116551 | J63: 138342 | K63: -1479980 | L63: -67703 | M63: 448574 | N63: 38333 | O63: 486907 | P63: 461546 | Q63: 1368779 | R63: 346945 | S63: 795 | T63: 38090 | U63: 385828 | V63: 1112109 | W63: 46955 | X63: 1159064 | Y63: -1543734 | Z63: 1057888 | AA63: 6878 | AB63: 54446 | AC63: 1119213 | AD63: 793679 | AE63: 33115 | AF63: 826794 | AG63: 63754
A64: 2012 | B64: 85 | C64: 2973449 | D64: 35172404 | E64: 2943680 | F64: 1384672 | G64: 0 | H64: 709808 | I64: 129224 | J64: 137854 | K64: -1396924 | L64: -52586 | M64: 517517 | N64: 94331 | O64: 611848 | P64: 568114 | Q64: 1384673 | R64: 301455 | S64: 363 | T64: 36189 | U64: 338006 | V64: 1070386 | W64: 45020 | X64: 1115405 | Y64: -1451805 | Z64: 1021054 | AA64: 7282 | AB64: 56054 | AC64: 1084391 | AD64: 806678 | AE64: 36246 | AF64: 842925 | AG64: 54883
A65: 2013 | B65: 82 | C65: 2957573 | D65: 33530196 | E65: 2959329 | F65: 1382895 | G65: 26 | H65: 717229 | I65: 134833 | J65: 145792 | K65: -1259523 | L65: -65887 | M65: 636045 | N65: 67216 | O65: 703261 | P65: 642020 | Q65: 1382919 | R65: 269010 | S65: 439 | T65: 38049 | U65: 307500 | V65: 1033963 | W65: 46994 | X65: 1080958 | Y65: -1385854 | Z65: 943478 | AA65: 6639 | AB65: 57039 | AC65: 1007157 | AD65: 792436 | AE65: 34773 | AF65: 827210 | AG65: 126329
A66: 2014 | B66: 74 | C66: 2973552 | D66: 32613082 | E66: 2954815 | F66: 1402921 | G66: 62 | H66: 732150 | I66: 138094 | J66: 155435 | K66: -1293226 | L66: -63247 | M66: 572667 | N66: 71212 | O66: 643879 | P66: 612540 | Q66: 1402973 | R66: 262001 | S66: 485 | T66: 40110 | U66: 302597 | V66: 1033215 | W66: 50140 | X66: 1083354 | Y66: -1382927 | Z66: 893738 | AA66: 6920 | AB66: 58315 | AC66: 958972 | AD66: 826158 | AE66: 35440 | AF66: 861598 | AG66: 89701
A67: 
A70: SENZA COMPAGNIE
A71: ANNO | B71: 2006 | C71: 2007 | D71: 2008 | E71: 2009 | F71: 2010 | G71: 2011 | H71: 2012 | I71: 2013 | J71: 2014 | K71: 
A72: NIMP | B72: 92 | C72: 89 | D72: 98 | E72: 91 | F72: 89 | G72: 86 | H72: 85 | I72: 82 | J72: 74
A73: PREM | B73: 3010252 | C73: 3100573 | D73: 3099482 | E73: 3068725 | F73: 3046322 | G73: 3034415 | H73: 2973449 | I73: 2957573 | J73: 2973552
A74: PTOT | B74: 35198308 | C74: 35751942 | D74: 35372622 | E74: 34450515 | F74: 35124971 | G74: 35962907 | H74: 35172404 | I74: 33530196 | J74: 32613082
A75: PREC | B75: 2952825 | C75: 3042833 | D75: 3086560 | E75: 3053481 | F75: 3029233 | G75: 2987995 | H75: 2943680 | I75: 2959329 | J75: 2954815 | L75: Premi di competenza
A76: RPFR | B76: 1226265 | C76: 1284067 | D76: 1291016 | E76: 1304433 | F76: 1321871 | G76: 1368779 | H76: 1384672 | I76: 1382895 | J76: 1402921
A77: RPRC | B77: 371 | C77: 534 | D77: 538 | E77: 858 | F77: 486 | G77: 2 | H77: 0 | I77: 26 | J77: 62
A78: PROV | B78: 725862 | C78: 767852 | D78: 758180 | E78: 734427 | F78: 750333 | G78: 736897 | H78: 709808 | I78: 717229 | J78: 732150 | L78: Spese di gestione
A79: SPAQ | B79: 107348 | C79: 117364 | D79: 114202 | E79: 118366 | F79: 120586 | G79: 116551 | H79: 129224 | I79: 134833 | J79: 138094 | L79: Spese di gestione
A80: SPAM | B80: 140015 | C80: 164807 | D80: 147795 | E80: 140694 | F80: 134482 | G80: 138342 | H80: 137854 | I80: 145792 | J80: 155435 | L80: Spese di gestione
A81: ONER | B81: -1505303 | C81: -1476487 | D81: -1530194 | E81: -1655098 | F81: -1562125 | G81: -1479980 | H81: -1396924 | I81: -1259523 | J81: -1293226 | L81: Oneri relativi ai sinistri
A82: ALTP | B82: -73172 | C82: -73548 | D82: -75892 | E82: -71135 | F82: -80665 | G82: -67703 | H82: -52586 | I82: -65887 | J82: -63247 | L82: Altre partite tecniche
A83: SALT | B83: 400240 | C83: 441213 | D83: 457804 | E83: 334704 | F83: 382092 | G83: 448574 | H83: 517517 | I83: 636045 | J83: 572667 | L83: Saldo tecnico al lordo della riassicurazione
A84: QUTI | B84: 96791 | C84: 104958 | D84: 40790 | E84: 118702 | F84: 57092 | G84: 38333 | H84: 94331 | I84: 67216 | J84: 71212 | L84: Quota dell'utile degli investimenti
A85: RISL | B85: 497029 | C85: 546171 | D85: 498594 | E85: 453406 | F85: 439184 | G85: 486907 | H85: 611848 | I85: 703261 | J85: 643879 | L85: Risultato del conto tecnico al lordo della riassicurazione
A86: RISN | B86: 445157 | C86: 494062 | D86: 458804 | E86: 431729 | F86: 397930 | G86: 461546 | H86: 568114 | I86: 642020 | J86: 612540 | L86: Risultato del conto tecnico al netto della riassicurazione
A87: I004 | B87: 1226636 | C87: 1284602 | D87: 1291553 | E87: 1305293 | F87: 1322351 | G87: 1368779 | H87: 1384673 | I87: 1382919 | J87: 1402973
A88: I007 | B88: 350531 | C88: 352744 | D88: 369038 | E88: 385106 | F88: 366826 | G88: 346945 | H88: 301455 | I88: 269010 | J88: 262001
A89: I008 | B89: 427 | C89: 185 | D89: 324 | E89: 163 | F89: 488 | G89: 795 | H89: 363 | I89: 439 | J89: 485
A90: I009 | B90: 35924 | C90: 35623 | D90: 35818 | E90: 34108 | F90: 33237 | G90: 38090 | H90: 36189 | I90: 38049 | J90: 40110
A91: I010 | B91: 386883 | C91: 388551 | D91: 405180 | E91: 419379 | F91: 400550 | G91: 385828 | H91: 338006 | I91: 307500 | J91: 302597
A92: I011 | B92: 1127718 | C92: 1114782 | D92: 1121472 | E92: 1178167 | F92: 1168155 | G92: 1112109 | H92: 1070386 | I92: 1033963 | J92: 1033215
A93: I012 | B93: 53394 | C93: 55774 | D93: 51873 | E93: 50425 | F93: 47492 | G93: 46955 | H93: 45020 | I93: 46994 | J93: 50140
A94: I013 | B94: 1181112 | C94: 1170556 | D94: 1173344 | E94: 1228592 | F94: 1215648 | G94: 1159064 | H94: 1115405 | I94: 1080958 | J94: 1083354
A95: I018 | B95: -1567420 | C95: -1558274 | D95: -1577991 | E95: -1647705 | F95: -1615427 | G95: -1543734 | H95: -1451805 | I95: -1385854 | J95: -1382927
A96: I023 | B96: 997215 | C96: 1043856 | D96: 1071745 | E96: 1107566 | F96: 1094840 | G96: 1057888 | H96: 1021054 | I96: 943478 | J96: 893738
A97: I024 | B97: 9445 | C97: 7426 | D97: 7902 | E97: 6685 | F97: 6976 | G97: 6878 | H97: 7282 | I97: 6639 | J97: 6920
A98: I025 | B98: 53814 | C98: 56610 | D98: 56009 | E98: 53275 | F98: 54121 | G98: 54446 | H98: 56054 | I98: 57039 | J98: 58315
A99: I026 | B99: 1060474 | C99: 1107895 | D99: 1135656 | E99: 1167527 | F99: 1155936 | G99: 1119213 | H99: 1084391 | I99: 1007157 | J99: 958972
A100: I027 | B100: 690114 | C100: 682899 | D100: 672657 | E100: 735256 | F100: 760954 | G100: 793679 | H100: 806678 | I100: 792436 | J100: 826158
A101: I028 | B101: 36336 | C101: 37856 | D101: 37108 | E101: 32939 | F101: 29946 | G101: 33115 | H101: 36246 | I101: 34773 | J101: 35440
A102: I029 | B102: 726450 | C102: 720752 | D102: 709763 | E102: 768195 | F102: 790901 | G102: 826794 | H102: 842925 | I102: 827210 | J102: 861598
A103: I035 | B103: 62118 | C103: 81788 | D103: 47797 | E103: -7393 | F103: 53302 | G103: 63754 | H103: 54883 | I103: 126329 | J103: 89701

Sheet 9
A3: TAVOLA N. 9
A5: Ramo I - Indicatori del bilancio tecnico
A7: (valori in %)
A8: Esercizio | B8: 2014 | C8: =B8+1 -> 2015 | D8: =C8+1 -> 2016 | E8: =D8+1 -> 2017 | F8: =E8+1 -> 2018 | G8: =F8+1 -> 2019
A9: Spese di gestione/Premi contabilizzati | B9: 3.8 | C9: 3.9 | D9: 4.1 | E9: 4.6 | F9: 4.3 | G9: 4.0
A10: Premi di nuova produzione/Premi contabilizzati | B10: 88.1 | C10: 87.8 | D10: 85.3 | E10: 81.5 | F10: 82.4 | G10: 85.3
A11: Premi ceduti/Premi lordi | B11: 1.0 | C11: 0.9 | D11: 0.9 | E11: 0.9 | F11: 0.8 | G11: 0.7
A12: Riserve tecniche/Premi contabilizzati(1) | B12: 4.6 | C12: 5.3 | D12: 6.1 | E12: 7.6 | F12: 7.5 | G12: 7.2
A13: Riscatti/Riserve matematiche | B13: 6.6 | C13: 6.9 | D13: 5.7 | E13: 5.8 | F13: 5.8 | G13: 4.8
A14: Riscatti/Premi contabilizzati | B14: 30.2 | C14: 36.9 | D14: 35.1 | E14: 44.6 | F14: 43.7 | G14: 34.3
A15: Scadenze/Riserve matematiche | B15: 3.1 | C15: 3.2 | D15: 2.8 | E15: 2.2 | F15: 2.6 | G15: 3.4
A16: Scadenze/Premi contabilizzati | B16: 14.4 | C16: 17.1 | D16: 17.0 | E16: 17.0 | F16: 19.6 | G16: 24.5
A17: Riscatti, sinistri e scadenze/Riserve matematiche | B17: 11.0 | C17: 11.6 | D17: 9.9 | E17: 9.6 | F17: 9.9 | G17: 9.6
A18: Riscatti, sinistri e scadenze/Premi contabilizzati | B18: 50.3 | C18: 61.4 | D18: 60.6 | E18: 73.1 | F18: 74.5 | G18: 69.6
A19: Riserve matematiche/Premi contabilizzati(1) | B19: 4.6 | C19: 5.3 | D19: 6.1 | E19: 7.6 | F19: 7.5 | G19: 7.2
A20: Provvigioni di acquisto/Premi contabilizzati | B20: 2.1 | C20: 2.1 | D20: 2.2 | E20: 2.3 | F20: 2.1 | G20: 1.9
A21: Altre spese di amministrazione/Premi contabilizzati | B21: 0.7 | C21: 0.7 | D21: 0.8 | E21: 0.8 | F21: 0.8 | G21: 0.8
A22: Risultato conto tecnico del lavoro conservato/Premi contabilizzati | B22: 2.0 | C22: 2.1 | D22: 4.0 | E22: 3.8 | F22: 0.2 | G22: 6.8
A23: Fonte: Regolamento ISVAP n. 22/2008, Modulo 20, ramo I
A24: (1) L'indicatore riporta un dato puntuale

Sheet fd-23 (hidden)
A1: Prospetto 23 | C1: INCOLLARE I DATI NELLA TABELLA EVIDENZIATA IN GIALLO. SUCCESSIVAMENTE TRSPORRE I DATI NELLA TABELLE EVIDENZIATA IN VERDE
A2: FL1 | B2: 1 | C2: 1 | D2: 1 | E2: 1 | F2: 1 | G2: 1 | H2: 1 | I2: 1 | J2: 2 | K2: 2 | L2: 2 | M2: 2 | N2: 2 | O2: 2 | P2: 2 | Q2: 2 | R2: 3 | S2: 3 | T2: 3 | U2: 3 | V2: 3 | W2: 3 | X2: 3 | Y2: 3 | Z2: 4 | AA2: 4 | AB2: 4 | AC2: 4 | AD2: 4 | AE2: 4 | AF2: 4 | AG2: 4 | AH2: 9 | AI2: 9 | AJ2: 9 | AK2: 9 | AL2: 9 | AM2: 9 | AN2: 9 | AO2: 9
A3: ANNO | B3: 2007 | C3: 2008 | D3: 2009 | E3: 2010 | F3: 2011 | G3: 2012 | H3: 2013 | I3: 2014 | J3: 2007 | K3: 2008 | L3: 2009 | M3: 2010 | N3: 2011 | O3: 2012 | P3: 2013 | Q3: 2014 | R3: 2007 | S3: 2008 | T3: 2009 | U3: 2010 | V3: 2011 | W3: 2012 | X3: 2013 | Y3: 2014 | Z3: 2007 | AA3: 2008 | AB3: 2009 | AC3: 2010 | AD3: 2011 | AE3: 2012 | AF3: 2013 | AG3: 2014 | AH3: 2007 | AI3: 2008 | AJ3: 2009 | AK3: 2010 | AL3: 2011 | AM3: 2012 | AN3: 2013 | AO3: 2014
A4: NIMP | B4: 8 | C4: 8 | D4: 8 | E4: 8 | F4: 10 | G4: 10 | H4: 7 | I4: 6 | J4: 8 | K4: 6 | L4: 6 | M4: 5 | N4: 2 | O4: 3 | P4: 3 | Q4: 2 | R4: 25 | S4: 29 | T4: 27 | U4: 27 | V4: 27 | W4: 25 | X4: 27 | Y4: 27 | Z4: 53 | AA4: 60 | AB4: 55 | AC4: 50 | AD4: 48 | AE4: 48 | AF4: 45 | AG4: 39 | AH4: 94 | AI4: 103 | AJ4: 96 | AK4: 90 | AL4: 87 | AM4: 86 | AN4: 82 | AO4: 74
A5: PREM | B5: 1938768 | C5: 1935353 | D5: 2008710 | E5: 1928537 | F5: 2116369 | G5: 2078908 | H5: 1883607 | I5: 1972072 | J5: 580263 | K5: 488861 | L5: 477394 | M5: 380828 | N5: 148626 | O5: 202374 | P5: 257802 | Q5: 166659 | R5: 556692 | S5: 655815 | T5: 574123 | U5: 619359 | V5: 643569 | W5: 575304 | X5: 684171 | Y5: 710287 | Z5: 114600 | AA5: 121766 | AB5: 119059 | AC5: 118586 | AD5: 127601 | AE5: 119597 | AF5: 131993 | AG5: 124534 | AH5: 3190323 | AI5: 3201795 | AJ5: 3179286 | AK5: 3047310 | AL5: 3036165 | AM5: 2976183 | AN5: 2957573 | AO5: 2973552
A6: SPES | B6: 604365 | C6: 575689 | D6: 596519 | E6: 585834 | F6: 646256 | G6: 645363 | H6: 604318 | I6: 653519 | J6: 237473 | K6: 175147 | L6: 161398 | M6: 130321 | N6: 50541 | O6: 69908 | P6: 87916 | Q6: 61208 | R6: 204787 | S6: 263068 | T6: 227624 | U6: 245282 | V6: 239242 | W6: 211453 | X6: 249685 | Y6: 259007 | Z6: 34609 | AA6: 43329 | AB6: 48429 | AC6: 44589 | AD6: 56442 | AE6: 50932 | AF6: 55935 | AG6: 51945 | AH6: 1081234 | AI6: 1057233 | AJ6: 1033970 | AK6: 1006026 | AL6: 992481 | AM6: 977656 | AN6: 997854 | AO6: 1025679
A7: PREC | B7: 1920706 | C7: 1938429 | D7: 2022651 | E7: 1954117 | F7: 2126156 | G7: 2079775 | H7: 1918360 | I7: 1976379 | J7: 576635 | K7: 479405 | L7: 477253 | M7: 382942 | N7: 146471 | O7: 202407 | P7: 256057 | Q7: 165480 | R7: 526725 | S7: 648753 | T7: 557571 | U7: 585185 | V7: 602036 | W7: 550377 | X7: 659000 | Y7: 690433 | Z7: 107283 | AA7: 118129 | AB7: 106527 | AC7: 107752 | AD7: 114667 | AE7: 113430 | AF7: 125912 | AG7: 122523 | AH7: 0 | AI7: 0 | AJ7: 0 | AK7: 0 | AL7: 0 | AM7: 0 | AN7: 0 | AO7: 0
A8: ONER | B8: -984983 | C8: -1029785 | D8: -1190378 | E8: -1086492 | F8: -1144501 | G8: -1077408 | H8: -876388 | I8: -940045 | J8: -248087 | K8: -245643 | L8: -261900 | M8: -224602 | N8: -80499 | O8: -92696 | P8: -95168 | Q8: -75870 | R8: -242356 | S8: -257946 | T8: -215429 | U8: -220878 | V8: -225015 | W8: -202078 | X8: -248120 | Y8: -241496 | Z8: -36503 | AA8: -33663 | AB8: -31065 | AC8: -30293 | AD8: -30326 | AE8: -25298 | AF8: -39847 | AG8: -35815 | AH8: 0 | AI8: 0 | AJ8: 0 | AK8: 0 | AL8: 0 | AM8: 0 | AN8: 0 | AO8: 0
A9: I004 | B9: 742480 | C9: 748163 | D9: 773093 | E9: 746899 | F9: 830715 | G9: 829897 | H9: 743704 | I9: 782881 | J9: 232402 | K9: 210972 | L9: 228749 | M9: 191600 | N9: 80950 | O9: 98445 | P9: 125962 | Q9: 87022 | R9: 295747 | S9: 324925 | T9: 290938 | U9: 326375 | V9: 382394 | W9: 378417 | X9: 406467 | Y9: 429533 | Z9: 49973 | AA9: 47650 | AB9: 52708 | AC9: 57932 | AD9: 75590 | AE9: 79209 | AF9: 106786 | AG9: 103537 | AH9: 0 | AI9: 0 | AJ9: 0 | AK9: 0 | AL9: 0 | AM9: 0 | AN9: 0 | AO9: 0
A10: I007 | B10: 238834 | C10: 249169 | D10: 276826 | E10: 260908 | F10: 273684 | G10: 228829 | H10: 178026 | I10: 185532 | J10: 58856 | K10: 57122 | L10: 62575 | M10: 49583 | N10: 16683 | O10: 22923 | P10: 27026 | Q10: 17189 | R10: 56884 | S10: 65814 | T10: 50918 | U10: 49203 | V10: 50084 | W10: 43778 | X10: 55952 | Y10: 51683 | Z10: 7504 | AA10: 7097 | AB10: 5601 | AC10: 7153 | AD10: 6496 | AE10: 5925 | AF10: 8006 | AG10: 7597 | AH10: 0 | AI10: 0 | AJ10: 0 | AK10: 0 | AL10: 0 | AM10: 0 | AN10: 0 | AO10: 0
A11: I008 | B11: 49 | C11: 52 | D11: 139 | E11: 457 | F11: 605 | G11: 361 | H11: 6 | I11: 5 | J11: 42 | K11: 0 | L11: 3 | M11: 0 | N11: 0 | O11: 0 | P11: 1 | Q11: 2 | R11: 114 | S11: 262 | T11: 14 | U11: 31 | V11: 189 | W11: 1 | X11: 403 | Y11: 463 | Z11: 8 | AA11: 11 | AB11: 10 | AC11: 0 | AD11: 1 | AE11: 1 | AF11: 29 | AG11: 15 | AH11: 0 | AI11: 0 | AJ11: 0 | AK11: 0 | AL11: 0 | AM11: 0 | AN11: 0 | AO11: 0
A12: I009 | B12: 22542 | C12: 23308 | D12: 21605 | E12: 22017 | F12: 28635 | G12: 26819 | H12: 27364 | I12: 30380 | J12: 6832 | K12: 5783 | L12: 7286 | M12: 5598 | N12: 2530 | O12: 3409 | P12: 3605 | Q12: 2629 | R12: 5923 | S12: 6405 | T12: 5047 | U12: 4360 | V12: 5779 | W12: 4973 | X12: 5806 | Y12: 5892 | Z12: 1180 | AA12: 1305 | AB12: 1057 | AC12: 1303 | AD12: 1192 | AE12: 1062 | AF12: 1274 | AG12: 1209 | AH12: 0 | AI12: 0 | AJ12: 0 | AK12: 0 | AL12: 0 | AM12: 0 | AN12: 0 | AO12: 0
A13: I010 | B13: 261424 | C13: 272528 | D13: 298571 | E13: 283382 | F13: 302924 | G13: 256008 | H13: 205397 | I13: 215918 | J13: 65730 | K13: 62905 | L13: 69864 | M13: 55181 | N13: 19213 | O13: 26332 | P13: 30632 | Q13: 19820 | R13: 62920 | S13: 72481 | T13: 55979 | U13: 53593 | V13: 56052 | W13: 48752 | X13: 62161 | Y13: 58038 | Z13: 8693 | AA13: 8414 | AB13: 6669 | AC13: 8456 | AD13: 7687 | AE13: 6988 | AF13: 9310 | AG13: 8821 | AH13: 0 | AI13: 0 | AJ13: 0 | AK13: 0 | AL13: 0 | AM13: 0 | AN13: 0 | AO13: 0
A14: I011 | B14: 723275 | C14: 734157 | D14: 807295 | E14: 797637 | F14: 842718 | G14: 804252 | H14: 714725 | I14: 733871 | J14: 191220 | K14: 175324 | L14: 188778 | M14: 157542 | N14: 56206 | O14: 66683 | P14: 73201 | Q14: 54680 | R14: 196663 | S14: 207583 | T14: 182635 | U14: 184942 | V14: 185487 | W14: 173672 | X14: 211162 | Y14: 208880 | Z14: 34942 | AA14: 34696 | AB14: 30063 | AC14: 28171 | AD14: 27889 | AE14: 26300 | AF14: 34875 | AG14: 35784 | AH14: 0 | AI14: 0 | AJ14: 0 | AK14: 0 | AL14: 0 | AM14: 0 | AN14: 0 | AO14: 0
A15: I012 | B15: 29103 | C15: 27407 | D15: 26746 | E15: 25900 | F15: 32052 | G15: 30505 | H15: 30622 | I15: 33729 | J15: 13290 | K15: 11041 | L15: 12195 | M15: 8894 | N15: 2697 | O15: 3309 | P15: 3933 | Q15: 2757 | R15: 12897 | S15: 13046 | T15: 11606 | U15: 11320 | V15: 11072 | W15: 10002 | X15: 11108 | Y15: 11806 | Z15: 1721 | AA15: 1513 | AB15: 1329 | AC15: 1385 | AD15: 1141 | AE15: 1217 | AF15: 1331 | AG15: 1848 | AH15: 0 | AI15: 0 | AJ15: 0 | AK15: 0 | AL15: 0 | AM15: 0 | AN15: 0 | AO15: 0
A16: I013 | B16: 752377 | C16: 761563 | D16: 834041 | E16: 823537 | F16: 874770 | G16: 834757 | H16: 745347 | I16: 767600 | J16: 204510 | K16: 186365 | L16: 200973 | M16: 166436 | N16: 58903 | O16: 69992 | P16: 77134 | Q16: 57437 | R16: 209561 | S16: 220629 | T16: 194240 | U16: 196262 | V16: 196559 | W16: 183674 | X16: 222270 | Y16: 220686 | Z16: 36663 | AA16: 36209 | AB16: 31393 | AC16: 29557 | AD16: 29030 | AE16: 27516 | AF16: 36207 | AG16: 37631 | AH16: 0 | AI16: 0 | AJ16: 0 | AK16: 0 | AL16: 0 | AM16: 0 | AN16: 0 | AO16: 0
A17: I018 | B17: -1013594 | C17: -1033814 | D17: -1132435 | E17: -1106279 | F17: -1172419 | G17: -1089199 | H17: -950522 | I17: -983297 | J17: -270138 | K17: -249089 | L17: -270763 | M17: -221551 | N17: -78115 | O17: -96322 | P17: -107765 | Q17: -77251 | R17: -272357 | S17: -293090 | T17: -250202 | U17: -249841 | V17: -256766 | W17: -232395 | X17: -282070 | Y17: -275641 | Z17: -45239 | AA17: -44568 | AB17: -38053 | AC17: -37962 | AD17: -36680 | AE17: -34497 | AF17: -45497 | AG17: -46738 | AH17: 0 | AI17: 0 | AJ17: 0 | AK17: 0 | AL17: 0 | AM17: 0 | AN17: 0 | AO17: 0
A18: I023 | B18: 710325 | C18: 735938 | D18: 796945 | E18: 785920 | F18: 834350 | G18: 800541 | H18: 681778 | I18: 671724 | J18: 176634 | K18: 171377 | L18: 175980 | M18: 149587 | N18: 62586 | O18: 67629 | P18: 76438 | Q18: 47313 | R18: 161076 | S18: 170535 | T18: 142983 | U18: 140545 | V18: 144869 | W18: 134637 | X18: 164139 | Y18: 154620 | Z18: 25142 | AA18: 22199 | AB18: 20360 | AC18: 18834 | AD18: 16252 | AE18: 18265 | AF18: 21123 | AG18: 20081 | AH18: 0 | AI18: 0 | AJ18: 0 | AK18: 0 | AL18: 0 | AM18: 0 | AN18: 0 | AO18: 0
A19: I024 | B19: 4955 | C19: 5241 | D19: 4623 | E19: 4673 | F19: 5194 | G19: 5543 | H19: 4645 | I19: 4827 | J19: 1422 | K19: 1173 | L19: 1082 | M19: 910 | N19: 439 | O19: 568 | P19: 332 | Q19: 318 | R19: 1117 | S19: 1580 | T19: 975 | U19: 1309 | V19: 1169 | W19: 1113 | X19: 1467 | Y19: 1576 | Z19: 215 | AA19: 230 | AB19: 358 | AC19: 84 | AD19: 76 | AE19: 58 | AF19: 195 | AG19: 199 | AH19: 0 | AI19: 0 | AJ19: 0 | AK19: 0 | AL19: 0 | AM19: 0 | AN19: 0 | AO19: 0
A20: I025 | B20: 32934 | C20: 33182 | D20: 32488 | E20: 33357 | F20: 39297 | G20: 40623 | H20: 39138 | I20: 42194 | J20: 12336 | K20: 10571 | L20: 11010 | M20: 9309 | N20: 3616 | O20: 4905 | P20: 4913 | Q20: 3193 | R20: 11439 | S20: 12729 | T20: 10164 | U20: 10353 | V20: 10563 | W20: 9549 | X20: 11831 | Y20: 11779 | Z20: 1545 | AA20: 1376 | AB20: 1333 | AC20: 1136 | AD20: 1001 | AE20: 1000 | AF20: 1157 | AG20: 1149 | AH20: 0 | AI20: 0 | AJ20: 0 | AK20: 0 | AL20: 0 | AM20: 0 | AN20: 0 | AO20: 0
A21: I026 | B21: 748215 | C21: 774361 | D21: 834056 | E21: 823949 | F21: 878841 | G21: 846707 | H21: 725562 | I21: 718745 | J21: 190392 | K21: 183121 | L21: 188072 | M21: 159806 | N21: 66641 | O21: 73102 | P21: 81683 | Q21: 50824 | R21: 173633 | S21: 184844 | T21: 154122 | U21: 152207 | V21: 156601 | W21: 145299 | X21: 177437 | Y21: 167975 | Z21: 26903 | AA21: 23805 | AB21: 22052 | AC21: 20054 | AD21: 17330 | AE21: 19324 | AF21: 22475 | AG21: 21428 | AH21: 0 | AI21: 0 | AJ21: 0 | AK21: 0 | AL21: 0 | AM21: 0 | AN21: 0 | AO21: 0
A22: I027 | B22: 434200 | C22: 423938 | D22: 504840 | E22: 514421 | F22: 598302 | G22: 614064 | H22: 523527 | I22: 562715 | J22: 109708 | K22: 97718 | L22: 103030 | M22: 92039 | N22: 41269 | O22: 41680 | P22: 56067 | Q22: 28960 | R22: 123905 | S22: 137468 | T22: 120233 | U22: 132330 | V22: 131669 | W22: 131130 | X22: 188072 | Y22: 211223 | Z22: 37134 | AA22: 32409 | AB22: 26747 | AC22: 22202 | AD22: 22533 | AE22: 20005 | AF22: 24770 | AG22: 23260 | AH22: 0 | AI22: 0 | AJ22: 0 | AK22: 0 | AL22: 0 | AM22: 0 | AN22: 0 | AO22: 0
A23: I028 | B23: 22269 | C23: 21942 | D23: 18906 | E23: 16570 | F23: 21664 | G23: 23937 | H23: 22246 | I23: 23233 | J23: 6217 | K23: 5254 | L23: 6236 | M23: 5000 | N23: 2056 | O23: 3896 | P23: 3529 | Q23: 1724 | R23: 8866 | S23: 9167 | T23: 7145 | U23: 7233 | V23: 8381 | W23: 7532 | X23: 7974 | Y23: 9547 | Z23: 1358 | AA23: 1317 | AB23: 1164 | AC23: 1146 | AD23: 1020 | AE23: 885 | AF23: 1024 | AG23: 936 | AH23: 0 | AI23: 0 | AJ23: 0 | AK23: 0 | AL23: 0 | AM23: 0 | AN23: 0 | AO23: 0
A24: I029 | B24: 456468 | C24: 445880 | D24: 523745 | E24: 530991 | F24: 619966 | G24: 638002 | H24: 545774 | I24: 585948 | J24: 115925 | K24: 102972 | L24: 109266 | M24: 97039 | N24: 43325 | O24: 45576 | P24: 59596 | Q24: 30684 | R24: 132771 | S24: 146634 | T24: 127378 | U24: 139563 | V24: 140050 | W24: 138662 | X24: 196046 | Y24: 220770 | Z24: 38490 | AA24: 33725 | AB24: 27912 | AC24: 23349 | AD24: 23553 | AE24: 20890 | AF24: 25794 | AG24: 24196 | AH24: 0 | AI24: 0 | AJ24: 0 | AK24: 0 | AL24: 0 | AM24: 0 | AN24: 0 | AO24: 0
A25: I035 | B25: 28612 | C25: 4029 | D25: -57943 | E25: 19786 | F25: 27918 | G25: 11792 | H25: 74134 | I25: 43252 | J25: 22051 | K25: 3446 | L25: 8863 | M25: -3051 | N25: -2384 | O25: 3626 | P25: 12597 | Q25: 1381 | R25: 30001 | S25: 35144 | T25: 34773 | U25: 28963 | V25: 31751 | W25: 30317 | X25: 33950 | Y25: 34145 | Z25: 8736 | AA25: 10905 | AB25: 6988 | AC25: 7670 | AD25: 6354 | AE25: 9200 | AF25: 5648 | AG25: 10923 | AH25: 0 | AI25: 0 | AJ25: 0 | AK25: 0 | AL25: 0 | AM25: 0 | AN25: 0 | AO25: 0
B29: FL1 | C29: ANNO | D29: NIMP | E29: PREM | F29: SPES | G29: PREC | H29: ONER | I29: I004 | J29: I007 | K29: I008 | L29: I009 | M29: I010 | N29: I011 | O29: I012 | P29: I013 | Q29: I018 | R29: I023 | S29: I024 | T29: I025 | U29: I026 | V29: I027 | W29: I028 | X29: I029 | Y29: I035
B30: 1 | C30: 2007 | D30: 8 | E30: 1938768 | F30: 604365 | G30: 1920706 | H30: -984983 | I30: 742480 | J30: 238834 | K30: 49 | L30: 22542 | M30: 261424 | N30: 723275 | O30: 29103 | P30: 752377 | Q30: -1013594 | R30: 710325 | S30: 4955 | T30: 32934 | U30: 748215 | V30: 434200 | W30: 22269 | X30: 456468 | Y30: 28612
B31: 1 | C31: 2008 | D31: 8 | E31: 1935353 | F31: 575689 | G31: 1938429 | H31: -1029785 | I31: 748163 | J31: 249169 | K31: 52 | L31: 23308 | M31: 272528 | N31: 734157 | O31: 27407 | P31: 761563 | Q31: -1033814 | R31: 735938 | S31: 5241 | T31: 33182 | U31: 774361 | V31: 423938 | W31: 21942 | X31: 445880 | Y31: 4029
B32: 1 | C32: 2009 | D32: 8 | E32: 2008710 | F32: 596519 | G32: 2022651 | H32: -1190378 | I32: 773093 | J32: 276826 | K32: 139 | L32: 21605 | M32: 298571 | N32: 807295 | O32: 26746 | P32: 834041 | Q32: -1132435 | R32: 796945 | S32: 4623 | T32: 32488 | U32: 834056 | V32: 504840 | W32: 18906 | X32: 523745 | Y32: -57943
B33: 1 | C33: 2010 | D33: 8 | E33: 1928537 | F33: 585834 | G33: 1954117 | H33: -1086492 | I33: 746899 | J33: 260908 | K33: 457 | L33: 22017 | M33: 283382 | N33: 797637 | O33: 25900 | P33: 823537 | Q33: -1106279 | R33: 785920 | S33: 4673 | T33: 33357 | U33: 823949 | V33: 514421 | W33: 16570 | X33: 530991 | Y33: 19786
B34: 1 | C34: 2011 | D34: 10 | E34: 2116369 | F34: 646256 | G34: 2126156 | H34: -1144501 | I34: 830715 | J34: 273684 | K34: 605 | L34: 28635 | M34: 302924 | N34: 842718 | O34: 32052 | P34: 874770 | Q34: -1172419 | R34: 834350 | S34: 5194 | T34: 39297 | U34: 878841 | V34: 598302 | W34: 21664 | X34: 619966 | Y34: 27918
B35: 1 | C35: 2012 | D35: 10 | E35: 2078908 | F35: 645363 | G35: 2079775 | H35: -1077408 | I35: 829897 | J35: 228829 | K35: 361 | L35: 26819 | M35: 256008 | N35: 804252 | O35: 30505 | P35: 834757 | Q35: -1089199 | R35: 800541 | S35: 5543 | T35: 40623 | U35: 846707 | V35: 614064 | W35: 23937 | X35: 638002 | Y35: 11792
B36: 1 | C36: 2013 | D36: 7 | E36: 1883607 | F36: 604318 | G36: 1918360 | H36: -876388 | I36: 743704 | J36: 178026 | K36: 6 | L36: 27364 | M36: 205397 | N36: 714725 | O36: 30622 | P36: 745347 | Q36: -950522 | R36: 681778 | S36: 4645 | T36: 39138 | U36: 725562 | V36: 523527 | W36: 22246 | X36: 545774 | Y36: 74134
B37: 1 | C37: 2014 | D37: 6 | E37: 1972072 | F37: 653519 | G37: 1976379 | H37: -940045 | I37: 782881 | J37: 185532 | K37: 5 | L37: 30380 | M37: 215918 | N37: 733871 | O37: 33729 | P37: 767600 | Q37: -983297 | R37: 671724 | S37: 4827 | T37: 42194 | U37: 718745 | V37: 562715 | W37: 23233 | X37: 585948 | Y37: 43252
B38: 2 | C38: 2007 | D38: 8 | E38: 580263 | F38: 237473 | G38: 576635 | H38: -248087 | I38: 232402 | J38: 58856 | K38: 42 | L38: 6832 | M38: 65730 | N38: 191220 | O38: 13290 | P38: 204510 | Q38: -270138 | R38: 176634 | S38: 1422 | T38: 12336 | U38: 190392 | V38: 109708 | W38: 6217 | X38: 115925 | Y38: 22051
B39: 2 | C39: 2008 | D39: 6 | E39: 488861 | F39: 175147 | G39: 479405 | H39: -245643 | I39: 210972 | J39: 57122 | K39: 0 | L39: 5783 | M39: 62905 | N39: 175324 | O39: 11041 | P39: 186365 | Q39: -249089 | R39: 171377 | S39: 1173 | T39: 10571 | U39: 183121 | V39: 97718 | W39: 5254 | X39: 102972 | Y39: 3446
B40: 2 | C40: 2009 | D40: 6 | E40: 477394 | F40: 161398 | G40: 477253 | H40: -261900 | I40: 228749 | J40: 62575 | K40: 3 | L40: 7286 | M40: 69864 | N40: 188778 | O40: 12195 | P40: 200973 | Q40: -270763 | R40: 175980 | S40: 1082 | T40: 11010 | U40: 188072 | V40: 103030 | W40: 6236 | X40: 109266 | Y40: 8863
B41: 2 | C41: 2010 | D41: 5 | E41: 380828 | F41: 130321 | G41: 382942 | H41: -224602 | I41: 191600 | J41: 49583 | K41: 0 | L41: 5598 | M41: 55181 | N41: 157542 | O41: 8894 | P41: 166436 | Q41: -221551 | R41: 149587 | S41: 910 | T41: 9309 | U41: 159806 | V41: 92039 | W41: 5000 | X41: 97039 | Y41: -3051
B42: 2 | C42: 2011 | D42: 2 | E42: 148626 | F42: 50541 | G42: 146471 | H42: -80499 | I42: 80950 | J42: 16683 | K42: 0 | L42: 2530 | M42: 19213 | N42: 56206 | O42: 2697 | P42: 58903 | Q42: -78115 | R42: 62586 | S42: 439 | T42: 3616 | U42: 66641 | V42: 41269 | W42: 2056 | X42: 43325 | Y42: -2384
B43: 2 | C43: 2012 | D43: 3 | E43: 202374 | F43: 69908 | G43: 202407 | H43: -92696 | I43: 98445 | J43: 22923 | K43: 0 | L43: 3409 | M43: 26332 | N43: 66683 | O43: 3309 | P43: 69992 | Q43: -96322 | R43: 67629 | S43: 568 | T43: 4905 | U43: 73102 | V43: 41680 | W43: 3896 | X43: 45576 | Y43: 3626
B44: 2 | C44: 2013 | D44: 3 | E44: 257802 | F44: 87916 | G44: 256057 | H44: -95168 | I44: 125962 | J44: 27026 | K44: 1 | L44: 3605 | M44: 30632 | N44: 73201 | O44: 3933 | P44: 77134 | Q44: -107765 | R44: 76438 | S44: 332 | T44: 4913 | U44: 81683 | V44: 56067 | W44: 3529 | X44: 59596 | Y44: 12597
B45: 2 | C45: 2014 | D45: 2 | E45: 166659 | F45: 61208 | G45: 165480 | H45: -75870 | I45: 87022 | J45: 17189 | K45: 2 | L45: 2629 | M45: 19820 | N45: 54680 | O45: 2757 | P45: 57437 | Q45: -77251 | R45: 47313 | S45: 318 | T45: 3193 | U45: 50824 | V45: 28960 | W45: 1724 | X45: 30684 | Y45: 1381
B46: 3 | C46: 2007 | D46: 25 | E46: 556692 | F46: 204787 | G46: 526725 | H46: -242356 | I46: 295747 | J46: 56884 | K46: 114 | L46: 5923 | M46: 62920 | N46: 196663 | O46: 12897 | P46: 209561 | Q46: -272357 | R46: 161076 | S46: 1117 | T46: 11439 | U46: 173633 | V46: 123905 | W46: 8866 | X46: 132771 | Y46: 30001
B47: 3 | C47: 2008 | D47: 29 | E47: 655815 | F47: 263068 | G47: 648753 | H47: -257946 | I47: 324925 | J47: 65814 | K47: 262 | L47: 6405 | M47: 72481 | N47: 207583 | O47: 13046 | P47: 220629 | Q47: -293090 | R47: 170535 | S47: 1580 | T47: 12729 | U47: 184844 | V47: 137468 | W47: 9167 | X47: 146634 | Y47: 35144
B48: 3 | C48: 2009 | D48: 27 | E48: 574123 | F48: 227624 | G48: 557571 | H48: -215429 | I48: 290938 | J48: 50918 | K48: 14 | L48: 5047 | M48: 55979 | N48: 182635 | O48: 11606 | P48: 194240 | Q48: -250202 | R48: 142983 | S48: 975 | T48: 10164 | U48: 154122 | V48: 120233 | W48: 7145 | X48: 127378 | Y48: 34773
B49: 3 | C49: 2010 | D49: 27 | E49: 619359 | F49: 245282 | G49: 585185 | H49: -220878 | I49: 326375 | J49: 49203 | K49: 31 | L49: 4360 | M49: 53593 | N49: 184942 | O49: 11320 | P49: 196262 | Q49: -249841 | R49: 140545 | S49: 1309 | T49: 10353 | U49: 152207 | V49: 132330 | W49: 7233 | X49: 139563 | Y49: 28963
B50: 3 | C50: 2011 | D50: 27 | E50: 643569 | F50: 239242 | G50: 602036 | H50: -225015 | I50: 382394 | J50: 50084 | K50: 189 | L50: 5779 | M50: 56052 | N50: 185487 | O50: 11072 | P50: 196559 | Q50: -256766 | R50: 144869 | S50: 1169 | T50: 10563 | U50: 156601 | V50: 131669 | W50: 8381 | X50: 140050 | Y50: 31751
B51: 3 | C51: 2012 | D51: 25 | E51: 575304 | F51: 211453 | G51: 550377 | H51: -202078 | I51: 378417 | J51: 43778 | K51: 1 | L51: 4973 | M51: 48752 | N51: 173672 | O51: 10002 | P51: 183674 | Q51: -232395 | R51: 134637 | S51: 1113 | T51: 9549 | U51: 145299 | V51: 131130 | W51: 7532 | X51: 138662 | Y51: 30317
B52: 3 | C52: 2013 | D52: 27 | E52: 684171 | F52: 249685 | G52: 659000 | H52: -248120 | I52: 406467 | J52: 55952 | K52: 403 | L52: 5806 | M52: 62161 | N52: 211162 | O52: 11108 | P52: 222270 | Q52: -282070 | R52: 164139 | S52: 1467 | T52: 11831 | U52: 177437 | V52: 188072 | W52: 7974 | X52: 196046 | Y52: 33950
B53: 3 | C53: 2014 | D53: 27 | E53: 710287 | F53: 259007 | G53: 690433 | H53: -241496 | I53: 429533 | J53: 51683 | K53: 463 | L53: 5892 | M53: 58038 | N53: 208880 | O53: 11806 | P53: 220686 | Q53: -275641 | R53: 154620 | S53: 1576 | T53: 11779 | U53: 167975 | V53: 211223 | W53: 9547 | X53: 220770 | Y53: 34145
B54: 4 | C54: 2007 | D54: 53 | E54: 114600 | F54: 34609 | G54: 107283 | H54: -36503 | I54: 49973 | J54: 7504 | K54: 8 | L54: 1180 | M54: 8693 | N54: 34942 | O54: 1721 | P54: 36663 | Q54: -45239 | R54: 25142 | S54: 215 | T54: 1545 | U54: 26903 | V54: 37134 | W54: 1358 | X54: 38490 | Y54: 8736
B55: 4 | C55: 2008 | D55: 60 | E55: 121766 | F55: 43329 | G55: 118129 | H55: -33663 | I55: 47650 | J55: 7097 | K55: 11 | L55: 1305 | M55: 8414 | N55: 34696 | O55: 1513 | P55: 36209 | Q55: -44568 | R55: 22199 | S55: 230 | T55: 1376 | U55: 23805 | V55: 32409 | W55: 1317 | X55: 33725 | Y55: 10905
B56: 4 | C56: 2009 | D56: 55 | E56: 119059 | F56: 48429 | G56: 106527 | H56: -31065 | I56: 52708 | J56: 5601 | K56: 10 | L56: 1057 | M56: 6669 | N56: 30063 | O56: 1329 | P56: 31393 | Q56: -38053 | R56: 20360 | S56: 358 | T56: 1333 | U56: 22052 | V56: 26747 | W56: 1164 | X56: 27912 | Y56: 6988
B57: 4 | C57: 2010 | D57: 50 | E57: 118586 | F57: 44589 | G57: 107752 | H57: -30293 | I57: 57932 | J57: 7153 | K57: 0 | L57: 1303 | M57: 8456 | N57: 28171 | O57: 1385 | P57: 29557 | Q57: -37962 | R57: 18834 | S57: 84 | T57: 1136 | U57: 20054 | V57: 22202 | W57: 1146 | X57: 23349 | Y57: 7670
B58: 4 | C58: 2011 | D58: 48 | E58: 127601 | F58: 56442 | G58: 114667 | H58: -30326 | I58: 75590 | J58: 6496 | K58: 1 | L58: 1192 | M58: 7687 | N58: 27889 | O58: 1141 | P58: 29030 | Q58: -36680 | R58: 16252 | S58: 76 | T58: 1001 | U58: 17330 | V58: 22533 | W58: 1020 | X58: 23553 | Y58: 6354
B59: 4 | C59: 2012 | D59: 48 | E59: 119597 | F59: 50932 | G59: 113430 | H59: -25298 | I59: 79209 | J59: 5925 | K59: 1 | L59: 1062 | M59: 6988 | N59: 26300 | O59: 1217 | P59: 27516 | Q59: -34497 | R59: 18265 | S59: 58 | T59: 1000 | U59: 19324 | V59: 20005 | W59: 885 | X59: 20890 | Y59: 9200
B60: 4 | C60: 2013 | D60: 45 | E60: 131993 | F60: 55935 | G60: 125912 | H60: -39847 | I60: 106786 | J60: 8006 | K60: 29 | L60: 1274 | M60: 9310 | N60: 34875 | O60: 1331 | P60: 36207 | Q60: -45497 | R60: 21123 | S60: 195 | T60: 1157 | U60: 22475 | V60: 24770 | W60: 1024 | X60: 25794 | Y60: 5648
B61: 4 | C61: 2014 | D61: 39 | E61: 124534 | F61: 51945 | G61: 122523 | H61: -35815 | I61: 103537 | J61: 7597 | K61: 15 | L61: 1209 | M61: 8821 | N61: 35784 | O61: 1848 | P61: 37631 | Q61: -46738 | R61: 20081 | S61: 199 | T61: 1149 | U61: 21428 | V61: 23260 | W61: 936 | X61: 24196 | Y61: 10923
B62: 9 | C62: 2007 | D62: 94 | E62: 3190323 | F62: 1081234 | G62: 0 | H62: 0 | I62: 0 | J62: 0 | K62: 0 | L62: 0 | M62: 0 | N62: 0 | O62: 0 | P62: 0 | Q62: 0 | R62: 0 | S62: 0 | T62: 0 | U62: 0 | V62: 0 | W62: 0 | X62: 0 | Y62: 0
B63: 9 | C63: 2008 | D63: 103 | E63: 3201795 | F63: 1057233 | G63: 0 | H63: 0 | I63: 0 | J63: 0 | K63: 0 | L63: 0 | M63: 0 | N63: 0 | O63: 0 | P63: 0 | Q63: 0 | R63: 0 | S63: 0 | T63: 0 | U63: 0 | V63: 0 | W63: 0 | X63: 0 | Y63: 0
B64: 9 | C64: 2009 | D64: 96 | E64: 3179286 | F64: 1033970 | G64: 0 | H64: 0 | I64: 0 | J64: 0 | K64: 0 | L64: 0 | M64: 0 | N64: 0 | O64: 0 | P64: 0 | Q64: 0 | R64: 0 | S64: 0 | T64: 0 | U64: 0 | V64: 0 | W64: 0 | X64: 0 | Y64: 0
B65: 9 | C65: 2010 | D65: 90 | E65: 3047310 | F65: 1006026 | G65: 0 | H65: 0 | I65: 0 | J65: 0 | K65: 0 | L65: 0 | M65: 0 | N65: 0 | O65: 0 | P65: 0 | Q65: 0 | R65: 0 | S65: 0 | T65: 0 | U65: 0 | V65: 0 | W65: 0 | X65: 0 | Y65: 0
B66: 9 | C66: 2011 | D66: 87 | E66: 3036165 | F66: 992481 | G66: 0 | H66: 0 | I66: 0 | J66: 0 | K66: 0 | L66: 0 | M66: 0 | N66: 0 | O66: 0 | P66: 0 | Q66: 0 | R66: 0 | S66: 0 | T66: 0 | U66: 0 | V66: 0 | W66: 0 | X66: 0 | Y66: 0
B67: 9 | C67: 2012 | D67: 86 | E67: 2976183 | F67: 977656 | G67: 0 | H67: 0 | I67: 0 | J67: 0 | K67: 0 | L67: 0 | M67: 0 | N67: 0 | O67: 0 | P67: 0 | Q67: 0 | R67: 0 | S67: 0 | T67: 0 | U67: 0 | V67: 0 | W67: 0 | X67: 0 | Y67: 0
B68: 9 | C68: 2013 | D68: 82 | E68: 2957573 | F68: 997854 | G68: 0 | H68: 0 | I68: 0 | J68: 0 | K68: 0 | L68: 0 | M68: 0 | N68: 0 | O68: 0 | P68: 0 | Q68: 0 | R68: 0 | S68: 0 | T68: 0 | U68: 0 | V68: 0 | W68: 0 | X68: 0 | Y68: 0
B69: 9 | C69: 2014 | D69: 74 | E69: 2973552 | F69: 1025679 | G69: 0 | H69: 0 | I69: 0 | J69: 0 | K69: 0 | L69: 0 | M69: 0 | N69: 0 | O69: 0 | P69: 0 | Q69: 0 | R69: 0 | S69: 0 | T69: 0 | U69: 0 | V69: 0 | W69: 0 | X69: 0 | Y69: 0
C70: 
B76: 2001 | C76: 2002 | D76: 2003 | E76: 2004 | F76: 2005 | G76: 2006 | H76: 2007 | I76: 2008 | J76: 2001 | K76: 2002 | L76: 2003 | M76: 2004 | N76: 2005 | O76: 2006 | P76: 2007 | Q76: 2008 | R76: 2001 | S76: 2002 | T76: 2003 | U76: 2004 | V76: 2005 | W76: 2006 | X76: 2007 | Y76: 2008 | Z76: 2001 | AA76: 2002 | AB76: 2003 | AC76: 2004 | AD76: 2005 | AE76: 2006 | AF76: 2007 | AG76: 2008 | AH76: 2001 | AI76: 2002 | AJ76: 2003 | AK76: 2004 | AL76: 2005 | AM76: 2006 | AN76: 2007 | AO76: 2008
B77: 1 | C77: 1 | D77: 1 | E77: 1 | F77: 1 | G77: 1 | H77: 1 | I77: 1 | J77: 2 | K77: 2 | L77: 2 | M77: 2 | N77: 2 | O77: 2 | P77: 2 | Q77: 2 | R77: 3 | S77: 3 | T77: 3 | U77: 3 | V77: 3 | W77: 3 | X77: 3 | Y77: 3 | Z77: 4 | AA77: 4 | AB77: 4 | AC77: 4 | AD77: 4 | AE77: 4 | AF77: 4 | AG77: 4 | AH77: 9 | AI77: 9 | AJ77: 9 | AK77: 9 | AL77: 9 | AM77: 9 | AN77: 9 | AO77: 9
B78: 9 | C78: 7 | D78: 7 | E78: 9 | F78: 10 | G78: 10 | H78: 10 | I78: 10 | J78: 10 | K78: 11 | L78: 11 | M78: 7 | N78: 8 | O78: 9 | P78: 8 | Q78: 7 | R78: 20 | S78: 22 | T78: 27 | U78: 28 | V78: 26 | W78: 23 | X78: 21 | Y78: 22 | Z78: 49 | AA78: 46 | AB78: 40 | AC78: 37 | AD78: 34 | AE78: 34 | AF78: 35 | AG78: 36 | AH78: 88 | AI78: 86 | AJ78: 85 | AK78: 81 | AL78: 78 | AM78: 76 | AN78: 74 | AO78: 75
B79: 1390126 | C79: 1364400 | D79: 1481333 | E79: 1806218 | F79: 1891877 | G79: 1895729 | H79: 2077744 | I79: 2091007 | J79: 776765 | K79: 882448 | L79: 844333 | M79: 542950 | N79: 548096 | O79: 624508 | P79: 552421 | Q79: 465228 | R79: 480085 | S79: 537631 | T79: 619120 | U79: 684657 | V79: 614798 | W79: 576981 | X79: 543624 | Y79: 551546 | Z79: 163954 | AA79: 170584 | AB79: 117633 | AC79: 110741 | AD79: 99703 | AE79: 99767 | AF79: 110475 | AG79: 99964 | AH79: 2810930 | AI79: 2955063 | AJ79: 3062419 | AK79: 3144566 | AL79: 3154474 | AM79: 3196985 | AN79: 3284264 | AO79: 3207745
B80: 341606 | C80: 314618 | D80: 347189 | E80: 423840 | F80: 434188 | G80: 433483 | H80: 490812 | I80: 486228 | J80: 189030 | K80: 220801 | L80: 217276 | M80: 137652 | N80: 148592 | O80: 172698 | P80: 175811 | Q80: 159619 | R80: 118208 | S80: 133656 | T80: 145275 | U80: 171568 | V80: 141657 | W80: 134238 | X80: 128288 | Y80: 147835 | Z80: 43514 | AA80: 39655 | AB80: 27872 | AC80: 26087 | AD80: 23255 | AE80: 24858 | AF80: 31638 | AG80: 30097 | AH80: 692358 | AI80: 708730 | AJ80: 737612 | AK80: 759147 | AL80: 747692 | AM80: 765277 | AN80: 826549 | AO80: 823779
B81: 1362563 | C81: 1325892 | D81: 1471056 | E81: 1791785 | F81: 1872103 | G81: 1882287 | H81: 2027760 | I81: 2098005 | J81: 766581 | K81: 881070 | L81: 829111 | M81: 538205 | N81: 538336 | O81: 595833 | P81: 521441 | Q81: 469117 | R81: 481226 | S81: 513942 | T81: 595114 | U81: 662924 | V81: 588799 | W81: 562106 | X81: 530317 | Y81: 555309 | Z81: 160766 | AA81: 164629 | AB81: 114942 | AC81: 106200 | AD81: 93844 | AE81: 95325 | AF81: 101224 | AG81: 98391 | AH81: 0 | AI81: 0 | AJ81: 0 | AK81: 0 | AL81: 0 | AM81: 0 | AN81: 0 | AO81: 0
B82: -563827 | C82: -535714 | D82: -620249 | E82: -714667 | F82: -856647 | G82: -890015 | H82: -994609 | I82: -1256426 | J82: -291259 | K82: -359708 | L82: -338097 | M82: -193572 | N82: -221184 | O82: -263574 | P82: -256357 | Q82: -271045 | R82: -231564 | S82: -223714 | T82: -246539 | U82: -303085 | V82: -295144 | W82: -278279 | X82: -280141 | Y82: -344585 | Z82: -73544 | AA82: -86032 | AB82: -51838 | AC82: -48732 | AD82: -43922 | AE82: -52840 | AF82: -48259 | AG82: -61398 | AH82: 0 | AI82: 0 | AJ82: 0 | AK82: 0 | AL82: 0 | AM82: 0 | AN82: 0 | AO82: 0
B83: 433103 | C83: 437375 | D83: 481487 | E83: 592374 | F83: 651272 | G83: 664716 | H83: 765253 | I83: 772867 | J83: 232223 | K83: 269956 | L83: 274456 | M83: 170708 | N83: 194535 | O83: 254004 | P83: 250090 | Q83: 190018 | R83: 152865 | S83: 186720 | T83: 209920 | U83: 247595 | V83: 224929 | W83: 208642 | X83: 197225 | Y83: 238604 | Z83: 55463 | AA83: 58750 | AB83: 39094 | AC83: 39727 | AD83: 41069 | AE83: 43179 | AF83: 55605 | AG83: 53580 | AH83: 0 | AI83: 0 | AJ83: 0 | AK83: 0 | AL83: 0 | AM83: 0 | AN83: 0 | AO83: 0
B84: 356791 | C84: 339823 | D84: 377452 | E84: 474813 | F84: 565922 | G84: 589483 | H84: 685285 | I84: 856440 | J84: 175479 | K84: 212118 | L84: 207808 | M84: 126481 | N84: 146033 | O84: 169488 | P84: 164762 | Q84: 178970 | R84: 123860 | S84: 127069 | T84: 152259 | U84: 181689 | V84: 177627 | W84: 177396 | X84: 172885 | Y84: 226270 | Z84: 39801 | AA84: 45079 | AB84: 28356 | AC84: 27002 | AD84: 26618 | AE84: 26734 | AF84: 27264 | AG84: 33521 | AH84: 0 | AI84: 0 | AJ84: 0 | AK84: 0 | AL84: 0 | AM84: 0 | AN84: 0 | AO84: 0
B85: 36 | C85: 29 | D85: 33 | E85: 74 | F85: 1042 | G85: 1143 | H85: 94 | I85: 337 | J85: 348 | K85: 97 | L85: 188 | M85: 113 | N85: 101 | O85: 355 | P85: 44 | Q85: 0 | R85: 236 | S85: 164 | T85: 170 | U85: 194 | V85: 276 | W85: 185 | X85: 7 | Y85: 496 | Z85: 70 | AA85: 49 | AB85: 8 | AC85: 11 | AD85: 45 | AE85: 142 | AF85: 46 | AG85: 136 | AH85: 0 | AI85: 0 | AJ85: 0 | AK85: 0 | AL85: 0 | AM85: 0 | AN85: 0 | AO85: 0
B86: 30225 | C86: 24101 | D86: 27321 | E86: 37598 | F86: 42932 | G86: 45878 | H86: 55715 | I86: 70147 | J86: 15644 | K86: 18360 | L86: 17784 | M86: 10990 | N86: 10365 | O86: 12246 | P86: 14530 | Q86: 17857 | R86: 9666 | S86: 10547 | T86: 12038 | U86: 12694 | V86: 13634 | W86: 14172 | X86: 12763 | Y86: 16649 | Z86: 3259 | AA86: 3480 | AB86: 3570 | AC86: 2837 | AD86: 2763 | AE86: 2412 | AF86: 2711 | AG86: 3846 | AH86: 0 | AI86: 0 | AJ86: 0 | AK86: 0 | AL86: 0 | AM86: 0 | AN86: 0 | AO86: 0
B87: 387051 | C87: 363953 | D87: 404806 | E87: 512485 | F87: 609896 | G87: 636504 | H87: 741095 | I87: 926924 | J87: 191471 | K87: 230575 | L87: 225780 | M87: 137584 | N87: 156499 | O87: 182089 | P87: 179336 | Q87: 196827 | R87: 133762 | S87: 137780 | T87: 164467 | U87: 194576 | V87: 191537 | W87: 191751 | X87: 185655 | Y87: 243416 | Z87: 43125 | AA87: 48608 | AB87: 31934 | AC87: 29850 | AD87: 29426 | AE87: 29288 | AF87: 30021 | AG87: 37503 | AH87: 0 | AI87: 0 | AJ87: 0 | AK87: 0 | AL87: 0 | AM87: 0 | AN87: 0 | AO87: 0
B88: 228346 | C88: 203189 | D88: 239237 | E88: 260484 | F88: 280387 | G88: 284923 | H88: 289688 | I88: 332796 | J88: 137485 | K88: 158173 | L88: 144077 | M88: 78010 | N88: 82955 | O88: 93711 | P88: 83214 | Q88: 81805 | R88: 109941 | S88: 108397 | T88: 108911 | U88: 132497 | V88: 124009 | W88: 110744 | X88: 110384 | Y88: 119998 | Z88: 34818 | AA88: 42672 | AB88: 23677 | AC88: 25230 | AD88: 21077 | AE88: 24558 | AF88: 25167 | AG88: 27106 | AH88: 0 | AI88: 0 | AJ88: 0 | AK88: 0 | AL88: 0 | AM88: 0 | AN88: 0 | AO88: 0
B89: 9323 | C89: 7315 | D89: 10359 | E89: 13811 | F89: 14749 | G89: 14369 | H89: 14650 | I89: 15682 | J89: 6704 | K89: 8338 | L89: 8466 | M89: 5171 | N89: 4788 | O89: 5994 | P89: 5763 | Q89: 6186 | R89: 4570 | S89: 5587 | T89: 5197 | U89: 6415 | V89: 6600 | W89: 6015 | X89: 6521 | Y89: 5549 | Z89: 2451 | AA89: 3053 | AB89: 2362 | AC89: 2237 | AD89: 1626 | AE89: 1684 | AF89: 1549 | AG89: 1816 | AH89: 0 | AI89: 0 | AJ89: 0 | AK89: 0 | AL89: 0 | AM89: 0 | AN89: 0 | AO89: 0
B90: 237668 | C90: 210504 | D90: 249596 | E90: 274295 | F90: 295136 | G90: 299292 | H90: 304339 | I90: 348478 | J90: 144189 | K90: 166511 | L90: 152543 | M90: 83181 | N90: 87743 | O90: 99705 | P90: 88977 | Q90: 87991 | R90: 114513 | S90: 113984 | T90: 114108 | U90: 138912 | V90: 130608 | W90: 116760 | X90: 116905 | Y90: 125549 | Z90: 37269 | AA90: 45724 | AB90: 26039 | AC90: 27467 | AD90: 22703 | AE90: 26242 | AF90: 26716 | AG90: 28922 | AH90: 0 | AI90: 0 | AJ90: 0 | AK90: 0 | AL90: 0 | AM90: 0 | AN90: 0 | AO90: 0
B91: -617917 | C91: -568498 | D91: -649041 | E91: -780005 | F91: -899013 | G91: -927481 | H91: -1040406 | I91: -1271452 | J91: -333269 | K91: -395604 | L91: -374535 | M91: -219668 | N91: -243206 | O91: -279941 | P91: -267013 | Q91: -283962 | R91: -246859 | S91: -248439 | T91: -277352 | U91: -331865 | V91: -320153 | W91: -306430 | X91: -301574 | Y91: -368245 | Z91: -79902 | AA91: -93716 | AB91: -59709 | AC91: -56325 | AD91: -51655 | AE91: -54893 | AF91: -56558 | AG91: -66269 | AH91: 0 | AI91: 0 | AJ91: 0 | AK91: 0 | AL91: 0 | AM91: 0 | AN91: 0 | AO91: 0
B92: 185637 | C92: 170745 | D92: 191041 | E92: 241269 | F92: 243418 | G92: 247983 | H92: 272272 | I92: 280467 | J92: 123101 | K92: 128643 | L92: 117818 | M92: 63681 | N92: 73028 | O92: 81535 | P92: 68959 | Q92: 67714 | R92: 88308 | S92: 77514 | T92: 84444 | U92: 92168 | V92: 80421 | W92: 82371 | X92: 77973 | Y92: 88713 | Z92: 28281 | AA92: 32921 | AB92: 26380 | AC92: 15782 | AD92: 15378 | AE92: 16333 | AF92: 18866 | AG92: 18138 | AH92: 0 | AI92: 0 | AJ92: 0 | AK92: 0 | AL92: 0 | AM92: 0 | AN92: 0 | AO92: 0
B93: 1808 | C93: 1658 | D93: 1954 | E93: 2728 | F93: 3627 | G93: 4089 | H93: 3395 | I93: 3776 | J93: 2832 | K93: 2482 | L93: 1370 | M93: 904 | N93: 932 | O93: 1252 | P93: 741 | Q93: 805 | R93: 640 | S93: 760 | T93: 882 | U93: 934 | V93: 1180 | W93: 709 | X93: 619 | Y93: 769 | Z93: 364 | AA93: 332 | AB93: 218 | AC93: 190 | AD93: 251 | AE93: 298 | AF93: 537 | AG93: 391 | AH93: 0 | AI93: 0 | AJ93: 0 | AK93: 0 | AL93: 0 | AM93: 0 | AN93: 0 | AO93: 0
B94: 9620 | C94: 8025 | D94: 8397 | E94: 10932 | F94: 11321 | G94: 12699 | H94: 15713 | I94: 17497 | J94: 7297 | K94: 8401 | L94: 7747 | M94: 4619 | N94: 3924 | O94: 4761 | P94: 5138 | Q94: 5173 | R94: 5166 | S94: 4980 | T94: 6256 | U94: 5904 | V94: 5785 | W94: 5571 | X94: 5741 | Y94: 5766 | Z94: 2224 | AA94: 2124 | AB94: 2199 | AC94: 2169 | AD94: 1598 | AE94: 1365 | AF94: 1763 | AG94: 1672 | AH94: 0 | AI94: 0 | AJ94: 0 | AK94: 0 | AL94: 0 | AM94: 0 | AN94: 0 | AO94: 0
B95: 197065 | C95: 180429 | D95: 201392 | E95: 254929 | F95: 258365 | G95: 264772 | H95: 291382 | I95: 301739 | J95: 133230 | K95: 139526 | L95: 126935 | M95: 69204 | N95: 77884 | O95: 87548 | P95: 74838 | Q95: 73692 | R95: 94114 | S95: 83254 | T95: 91583 | U95: 99006 | V95: 87386 | W95: 88650 | X95: 84334 | Y95: 95248 | Z95: 30871 | AA95: 35377 | AB95: 28797 | AC95: 18141 | AD95: 17227 | AE95: 17996 | AF95: 21166 | AG95: 20201 | AH95: 0 | AI95: 0 | AJ95: 0 | AK95: 0 | AL95: 0 | AM95: 0 | AN95: 0 | AO95: 0
B96: 57817 | C96: 59041 | D96: 71388 | E96: 91210 | F96: 96013 | G96: 98829 | H96: 97373 | I96: 105053 | J96: 56316 | K96: 60847 | L96: 58656 | M96: 33836 | N96: 33981 | O96: 31821 | P96: 27201 | Q96: 21715 | R96: 47932 | S96: 47497 | T96: 45675 | U96: 40719 | V96: 41537 | W96: 36066 | X96: 35938 | Y96: 38880 | Z96: 15127 | AA96: 19533 | AB96: 15064 | AC96: 13035 | AD96: 9138 | AE96: 11131 | AF96: 17664 | AG96: 16435 | AH96: 0 | AI96: 0 | AJ96: 0 | AK96: 0 | AL96: 0 | AM96: 0 | AN96: 0 | AO96: 0
B97: 3347 | C97: 2946 | D97: 3108 | E97: 5960 | F97: 7602 | G97: 8940 | H97: 10793 | I97: 7449 | J97: 2664 | K97: 3866 | L97: 4204 | M97: 1785 | N97: 1562 | O97: 1586 | P97: 1324 | Q97: 1258 | R97: 2244 | S97: 2238 | T97: 2122 | U97: 1834 | V97: 1872 | W97: 1700 | X97: 2166 | Y97: 1659 | Z97: 992 | AA97: 1107 | AB97: 1194 | AC97: 896 | AD97: 829 | AE97: 929 | AF97: 1410 | AG97: 968 | AH97: 0 | AI97: 0 | AJ97: 0 | AK97: 0 | AL97: 0 | AM97: 0 | AN97: 0 | AO97: 0
B98: 61165 | C98: 61986 | D98: 74495 | E98: 97170 | F98: 103615 | G98: 107769 | H98: 108166 | I98: 112501 | J98: 58979 | K98: 64713 | L98: 62860 | M98: 35621 | N98: 35543 | O98: 33407 | P98: 28525 | Q98: 22973 | R98: 50175 | S98: 49735 | T98: 47797 | U98: 42554 | V98: 43410 | W98: 37767 | X98: 38104 | Y98: 40539 | Z98: 16119 | AA98: 20640 | AB98: 16258 | AC98: 13931 | AD98: 9967 | AE98: 12060 | AF98: 19074 | AG98: 17403 | AH98: 0 | AI98: 0 | AJ98: 0 | AK98: 0 | AL98: 0 | AM98: 0 | AN98: 0 | AO98: 0
B99: 54090 | C99: 32784 | D99: 28792 | E99: 65338 | F99: 42366 | G99: 37467 | H99: 45796 | I99: 15026 | J99: 42009 | K99: 35896 | L99: 36438 | M99: 26096 | N99: 22022 | O99: 16367 | P99: 10656 | Q99: 12917 | R99: 15298 | S99: 24725 | T99: 30813 | U99: 28780 | V99: 25008 | W99: 28150 | X99: 21433 | Y99: 23660 | Z99: 6360 | AA99: 7681 | AB99: 7871 | AC99: 7594 | AD99: 7733 | AE99: 2053 | AF99: 8299 | AG99: 4871 | AH99: 0 | AI99: 0 | AJ99: 0 | AK99: 0 | AL99: 0 | AM99: 0 | AN99: 0 | AO99: 0

Sheet 10
A2: TAVOLA N. 10
A4: Ramo I - Indicatori per quartili
A5: (valori in %)
B6: Indicatori | C6: 2007 | D6: 2008 | E6: 2014 | F6: =+E6+1 -> 2015 | G6: =+F6+1 -> 2016 | H6: =+G6+1 -> 2017 | I6: =+H6+1 -> 2018 | J6: =+I6+1 -> 2019
A7: I quartile | B7: Spese di gestione/Premi contabilizzati | C7: 52.8 | D7: 53.3 | E7: 15.1 | F7: 12.9 | G7: 9.3 | H7: 12.3 | I7: 7.6 | J7: 9.6
B8: Premi di nuova produzione/Premi contabilizzati | C8: -1.5 | D8: -0.2 | E8: 77.5 | F8: 85.9 | G8: 83.4 | H8: 74.2 | I8: 85.5 | J8: 77.6
B9: Premi ceduti/Premi lordi | C9: 51.3 | D9: 53.1 | E9: 5.9 | F9: 3.6 | G9: 4.3 | H9: 4.7 | I9: 2.6 | J9: 5.4
B10: Riserve tecniche/Premi contabilizzati(1) | E10: 5.1 | F10: 4.7 | G10: 4.2 | H10: 6.5 | I10: 4.7 | J10: 5.4
B11: Riscatti/Riserve matematiche | C11: 2.7 | D11: 2.6 | E11: 5.6 | F11: 8.8 | G11: 6.5 | H11: 6.6 | I11: 10.9 | J11: 4.0
B12: Riscatti/Premi contabilizzati | C12: 62.4 | D12: 62.4 | E12: 28.2 | F12: 40.8 | G12: 26.9 | H12: 42.1 | I12: 50.7 | J12: 21.4
B13: Scadenze/Riserve matematiche | C13: 100.6 | D13: 101.0 | E13: 3.7 | F13: 3.3 | G13: 3.6 | H13: 3.0 | I13: 2.7 | J13: 3.0
B14: Scadenze/Premi contabilizzati | C14: 95.8 | D14: 95.9 | E14: 18.9 | F14: 15.4 | G14: 15.2 | H14: 18.9 | I14: 12.3 | J14: 16.0
B15: Riscatti, sinistri e scadenze/Riserve matematiche | C15: 4.2 | D15: 4.1 | E15: 12.2 | F15: 14.7 | G15: 13.0 | H15: 12.3 | I15: 15.6 | J15: 9.6
B16: Riscatti, sinistri e scadenze/Premi contabilizzati | C16: 62.2 | D16: 63.1 | E16: 61.7 | F16: 68.2 | G16: 54.0 | H16: 78.5 | I16: 72.2 | J16: 50.6
B17: Riserve matematiche/Premi contabilizzati(1) | C17: 37.8 | D17: 36.9 | E17: 5.0 | F17: 4.6 | G17: 4.2 | H17: 6.4 | I17: 4.6 | J17: 5.3
B18: Provvigioni di acquisto/Premi contabilizzati | C18: 52.1 | D18: 54.1 | E18: 8.4 | F18: 7.7 | G18: 4.9 | H18: 6.8 | I18: 4.3 | J18: 5.6
B19: Altre spese di amministrazione/Premi contabilizzati | C19: 94.5 | D19: 94.6 | E19: 2.0 | F19: 1.7 | G19: 1.5 | H19: 2.2 | I19: 1.1 | J19: 1.7
B20: Risultato conto tecnico del lavoro conservato/Premi contabilizzati | C20: 5.5 | D20: 5.4 | E20: -2.6 | F20: 1.8 | G20: 4.0 | H20: 10.2 | I20: -1.1 | J20: 3.4
A21: II quartile | B21: Spese di gestione/Premi contabilizzati | C21: 46.8 | D21: 52.0 | E21: 2.8 | F21: 3.4 | G21: 3.9 | H21: 4.6 | I21: 4.1 | J21: 5.2
B22: Premi di nuova produzione/Premi contabilizzati | C22: -3.8 | D22: -0.7 | E22: 94.3 | F22: 93.0 | G22: 90.7 | H22: 88.0 | I22: 90.1 | J22: 88.5
B23: Premi ceduti/Premi lordi | C23: 43.0 | D23: 51.2 | E23: 1.6 | F23: 2.1 | G23: 1.6 | H23: 1.8 | I23: 1.0 | J23: 1.0
B24: Riserve tecniche/Premi contabilizzati(1) | E24: 2.7 | F24: 3.6 | G24: 5.0 | H24: 7.2 | I24: 7.0 | J24: 7.4
B25: Riscatti/Riserve matematiche | C25: 3.5 | D25: 3.5 | E25: 23.9 | F25: 15.2 | G25: 9.0 | H25: 5.9 | I25: 5.0 | J25: 5.1
B26: Riscatti/Premi contabilizzati | C26: 55.2 | D26: 59.2 | E26: 63.6 | F26: 53.9 | G26: 44.7 | H26: 42.0 | I26: 34.7 | J26: 37.4
B27: Scadenze/Riserve matematiche | C27: 95.3 | D27: 102.3 | E27: 4.6 | F27: 5.9 | G27: 3.0 | H27: 2.4 | I27: 3.1 | J27: 3.3
B28: Scadenze/Premi contabilizzati | C28: 93.9 | D28: 94.4 | E28: 12.3 | F28: 20.8 | G28: 15.0 | H28: 16.9 | I28: 21.5 | J28: 24.0
B29: Riscatti, sinistri e scadenze/Riserve matematiche | C29: 6.1 | D29: 5.6 | E29: 30.0 | F29: 22.6 | G29: 13.4 | H29: 9.6 | I29: 9.5 | J29: 9.9
B30: Riscatti, sinistri e scadenze/Premi contabilizzati | C30: 63.8 | D30: 64.4 | E30: 79.7 | F30: 80.2 | G30: 66.4 | H30: 68.6 | I30: 66.8 | J30: 72.5
B31: Riserve matematiche/Premi contabilizzati(1) | C31: 36.2 | D31: 35.6 | E31: 2.7 | F31: 3.6 | G31: 5.0 | H31: 7.1 | I31: 7.0 | J31: 7.3
B32: Provvigioni di acquisto/Premi contabilizzati | C32: 44.1 | D32: 50.3 | E32: 1.2 | F32: 1.5 | G32: 1.5 | H32: 1.7 | I32: 1.4 | J32: 1.9
B33: Altre spese di amministrazione/Premi contabilizzati | C33: 92.5 | D33: 93.4 | E33: 0.6 | F33: 0.8 | G33: 0.8 | H33: 0.9 | I33: 0.8 | J33: 1.1
B34: Risultato conto tecnico del lavoro conservato/Premi contabilizzati | C34: 7.5 | D34: 6.6 | E34: 1.1 | F34: 0.1 | G34: 0.4 | H34: -0.9 | I34: -2.3 | J34: 3.4
B35: (1) L'indicatore riporta un dato puntuale
A37: TAVOLA N. 10
A39: Ramo I - Indicatori per quartili
A40: (valori in %)
B41: Indicatori | C41: 2007 | D41: 2008 | E41: 2014 | F41: =+E41+1 -> 2015 | G41: =+F41+1 -> 2016 | H41: 2017 | I41: 2018 | J41: 2019
A42: III quartile | B42: Spese di gestione/Premi contabilizzati | C42: 51.7 | D42: 45.2 | E42: 3.2 | F42: 3.6 | G42: 3.9 | H42: 5.0 | I42: 3.9 | J42: 2.8
B43: Premi di nuova produzione/Premi contabilizzati | C43: -5.7 | D43: -5.4 | E43: 92.7 | F43: 91.4 | G43: 92.3 | H43: 90.3 | I43: 92.4 | J43: 95.3
B44: Premi ceduti/Premi lordi | C44: 46.0 | D44: 39.8 | E44: 1.4 | F44: 1.3 | G44: 1.4 | H44: 1.8 | I44: 1.5 | J44: 1.1
B45: Riserve tecniche/Premi contabilizzati(1) | E45: 4.3 | F45: 5.3 | G45: 5.8 | H45: 8.2 | I45: 6.3 | J45: 5.7
B46: Riscatti/Riserve matematiche | C46: 3.6 | D46: 3.0 | E46: 5.0 | F46: 5.0 | G46: 6.4 | H46: 6.3 | I46: 7.0 | J46: 6.1
B47: Riscatti/Premi contabilizzati | C47: 61.5 | D47: 56.0 | E47: 20.9 | F47: 26.3 | G47: 37.0 | H47: 52.0 | I47: 44.1 | J47: 34.7
B48: Scadenze/Riserve matematiche | C48: 114.6 | D48: 105.5 | E48: 4.5 | F48: 4.0 | G48: 2.9 | H48: 2.3 | I48: 2.6 | J48: 3.4
B49: Scadenze/Premi contabilizzati | C49: 93.6 | D49: 94.0 | E49: 19.1 | F49: 21.1 | G49: 16.6 | H49: 18.9 | I49: 16.0 | J49: 19.1
B50: Riscatti, sinistri e scadenze/Riserve matematiche | C50: 6.4 | D50: 6.0 | E50: 10.7 | F50: 10.5 | G50: 11.0 | H50: 10.3 | I50: 11.6 | J50: 11.4
B51: Riscatti, sinistri e scadenze/Premi contabilizzati | C51: 61.2 | D51: 60.1 | E51: 45.3 | F51: 54.9 | G51: 63.0 | H51: 84.4 | I51: 72.4 | J51: 64.9
B52: Riserve matematiche/Premi contabilizzati(1) | C52: 38.8 | D52: 39.9 | E52: 4.2 | F52: 5.2 | G52: 5.7 | H52: 8.2 | I52: 6.3 | J52: 5.7
B53: Provvigioni di acquisto/Premi contabilizzati | C53: 42.5 | D53: 39.2 | E53: 1.3 | F53: 1.4 | G53: 1.6 | H53: 1.9 | I53: 1.7 | J53: 1.4
B54: Altre spese di amministrazione/Premi contabilizzati | C54: 92.7 | D54: 92.6 | E54: 0.6 | F54: 0.8 | G54: 0.7 | H54: 0.8 | I54: 0.6 | J54: 0.4
B55: Risultato conto tecnico del lavoro conservato/Premi contabilizzati | C55: 7.3 | D55: 7.4 | E55: 2.2 | F55: 2.1 | G55: 2.9 | H55: 4.9 | I55: -2.0 | J55: 3.7
A56: IV quartile | B56: Spese di gestione/Premi contabilizzati | C56: 42.2 | D56: 37.7 | E56: 3.8 | F56: 3.9 | G56: 4.0 | H56: 4.4 | I56: 4.3 | J56: 4.0
B57: Premi di nuova produzione/Premi contabilizzati | C57: -8.1 | D57: -9.2 | E57: 86.8 | F57: 86.7 | G57: 83.4 | H57: 79.6 | I57: 78.9 | J57: 82.7
B58: Premi ceduti/Premi lordi | C58: 34.0 | D58: 28.5 | E58: 0.8 | F58: 0.7 | G58: 0.6 | H58: 0.6 | I58: 0.5 | J58: 0.4
B59: Riserve tecniche/Premi contabilizzati(1) | E59: 4.8 | F59: 5.5 | G59: 6.4 | H59: 7.6 | I59: 8.0 | J59: 7.7
B60: Riscatti/Riserve matematiche | C60: 2.7 | D60: 2.4 | E60: 5.8 | F60: 6.7 | G60: 5.4 | H60: 5.7 | I60: 5.5 | J60: 4.5
B61: Riscatti/Premi contabilizzati | C61: 65.6 | D61: 57.4 | E61: 28.2 | F61: 37.1 | G61: 34.2 | H61: 43.5 | I61: 44.3 | J61: 34.4
B62: Scadenze/Riserve matematiche | C62: 109.2 | D62: 96.6 | E62: 2.8 | F62: 2.9 | G62: 2.7 | H62: 2.2 | I62: 2.6 | J62: 3.4
B63: Scadenze/Premi contabilizzati | C63: 95.9 | D63: 96.0 | E63: 13.7 | F63: 16.0 | G63: 17.3 | H63: 16.6 | I63: 20.6 | J63: 26.2
B64: Riscatti, sinistri e scadenze/Riserve matematiche | C64: 4.1 | D64: 4.0 | E64: 9.9 | F64: 11.0 | G64: 9.4 | H64: 9.4 | I64: 9.5 | J64: 9.3
B65: Riscatti, sinistri e scadenze/Premi contabilizzati | C65: 48.8 | D65: 51.8 | E65: 47.9 | F65: 60.6 | G65: 59.8 | H65: 71.4 | I65: 76.0 | J65: 71.1
B66: Riserve matematiche/Premi contabilizzati(1) | C66: 51.2 | D66: 48.2 | E66: 4.8 | F66: 5.5 | G66: 6.3 | H66: 7.6 | I66: 8.0 | J66: 7.6
B67: Provvigioni di acquisto/Premi contabilizzati | C67: 31.1 | D67: 26.5 | E67: 2.2 | F67: 2.2 | G67: 2.3 | H67: 2.4 | I67: 2.1 | J67: 1.9
B68: Altre spese di amministrazione/Premi contabilizzati | C68: 92.3 | D68: 91.7 | E68: 0.7 | F68: 0.7 | G68: 0.8 | H68: 0.8 | I68: 0.8 | J68: 0.8
B69: Risultato conto tecnico del lavoro conservato/Premi contabilizzati | C69: 7.7 | D69: 8.3 | E69: 2.2 | F69: 2.3 | G69: 4.5 | H69: 3.9 | I69: 1.0 | J69: 8.0
A70: Fonte: Regolamento ISVAP n. 22/2008, Modulo 20, ramo I
B71: (1) L'indicatore riporta un dato puntuale
